{"text_format":"1","workbook":"xlsx","n_sheets":11,"sheets":["Page 1","Visite de guidage","OBJECTIFS GENERAUX","Plan d'action N","Feuil3","Visite évaluation","Visite N + 1","Plan d'action N + 1","Visite N + 2","Plan d'action N + 2","Actions Ligue-district"],"not_rendered":{"charts":0,"images":5,"macros":1,"external_links":0,"defined_names":0,"comments":0,"pivot_tables":0},"unopened":[],"bounds":{"document_bytes":16777216,"sheet_cells":100000,"rows_first":2000,"rows_last":500,"rows_between":2000,"halvings":0,"cell_chars":16384,"cell_head_chars":4096},"cells_cut":0,"cells_raw":0,"read":"whole","date_system":"1900"}

{"sheet":"Page 1","index":0,"n_rows":25,"n_cols":11,"rows_kept":25,"cut":false,"hidden":false,"merged":[[6,0,6,11],[1,3,1,8],[3,3,3,8]]}
[]
[null,null,null,"Le Label Jeunes FFF"]
[]
[null,null,null,"PROJET CLUB DE :"]
[]
[]
["NOM DU CLUB"]
["Les valeurs du club :",null,null,null,null,null,null,null,null,"LOGO CLUB"]
[]
[]
[]
[]
[]
[]
[]
[]
[]
[]
[]
[]
[]
[]
[]
[]
["LOGO LIGUE",null,null,null,null,null,null,null,null,null,"LOGO DISTRICT"]

{"sheet":"Visite de guidage","index":1,"n_rows":22,"n_cols":6,"rows_kept":22,"cut":false,"hidden":false,"merged":[[0,3,0,4],[0,6,0,7],[2,3,2,4],[2,5,2,7],[3,3,3,4],[3,5,3,7],[4,3,4,4],[4,5,4,7],[5,3,5,4],[5,5,5,7],[6,3,6,4],[6,5,6,7],[7,3,7,4],[7,5,7,7],[8,3,8,4],[8,5,8,7],[10,1,10,4],[10,5,10,8],[11,1,11,4],[11,5,11,8],[12,1,12,4],[12,5,12,8],[13,1,13,4],[13,5,13,8],[14,1,14,4],[14,5,14,8],[15,1,15,4],[15,5,15,8],[16,1,16,4],[16,5,16,8],[22,0,24,7],[17,1,17,4],[17,5,17,8],[18,1,18,4],[18,5,18,8],[19,1,19,4],[19,5,19,8]]}
["Visite de guidage :",null,null,{"$f":"'Page 1'!$A$7","v":"NOM DU CLUB"},null,"LE :"]
[]
["Représentants FFF :"]
[]
[]
["Représentants clubs :"]
[]
[]
[]
[]
[null,"Points Faibles",null,null,null,"Points Forts"]
[]
[]
[]
[]
[]
[]
[]
[]
[]
[]
["Commentaires :"]

{"sheet":"OBJECTIFS GENERAUX","index":2,"n_rows":74,"n_cols":9,"rows_kept":74,"cut":false,"hidden":false,"merged":[[0,5,0,8],[1,0,1,8],[20,0,20,8],[19,5,19,8],[19,0,19,3],[0,0,0,3],[59,0,59,3],[59,5,59,8],[60,0,60,8],[35,0,35,3],[35,5,35,8],[36,0,36,8]]}
["Les objectifs du club",null,null,null,null,{"$f":"'Page 1'!$A$7","v":"NOM DU CLUB"}]
["Le projet associatif :"]
[]
[]
[]
[]
[]
["1. Augmenter l'effectif jeunes","N","N + 1","N + 2",null,"6. Mettre en place des actions de promotion et de recrutement","N","N + 1","N + 2"]
["Des joueurs",null,null,null,null,"Actions à l'école élémentaire"]
["Des joueuses",null,null,null,null,"Journées portes ouvertes"]
["2. Fidéliser l'effectif jeunes","N","N + 1","N + 2",null,"Outils de communication"]
["Des joueurs ",null,null,null,null,"7. Améliorer l'animation du club","N","N + 1","N + 2"]
["Des joueuses",null,null,null,null,"Le club house"]
["3. Augmenter l'effectif dirigeants","N","N + 1","N + 2",null,"Actions d'intégrations des parents"]
["Avec des parents",null,null,null,null,"Initiatives en faveur des jeunes"]
["Avec des femmes",null,null,null,null,"Actions en direction du publics handicapés"]
["4. Améliorer la sécurité opérationnelle",null,null,null,null,"Représentation aux réunions des instances"]
["5. Améliorer la qualité des installations"]
[]
["Les objectifs du club ",null,null,null,null,{"$f":"'Page 1'!$A$7","v":"NOM DU CLUB"}]
["Le projet Sportif :"]
[]
[]
[]
[]
[]
["1. Développer le nombre d'équipes engagées","N","N + 1 ","N + 2",null,"4. Améliorer les participations et normes d'entrainments","N","N + 1 ","N + 2"]
["Développer le nombre d'équipes garçons",null,null,null,null,"Participer aux journées et plateaux garçons et filles"]
["Développer le nombre d'équipes filles",null,null,null,null,"Développer le perfectionnement gardien de but"]
["2. Créer et ou optimiser une équipe techinque","N","N + 1 ","N + 2",null,"Créer une section sportive"]
["Mettre en place des programmations annuelles et ou des contenus d'entrainements",null,null,null,null,"5. Proposer des pratiques nouvelles","N","N + 1 ","N + 2"]
["Mettre en place des réunions d'éducateurs",null,null,null,null,"Futsal"]
["3. Améliorer les méthodes pédagogiques utilisées",null,null,null,null,"Beach soccer"]
[null,null,null,null,null,"Loisir pour les jeunes"]
[]
["Les objectifs du club ",null,null,null,null,{"$f":"'Page 1'!$A$7","v":"NOM DU CLUB"}]
["Le projet Educatif :"]
[]
[]
[]
[]
[]
[]
[]
[]
[]
[]
[]
[]
[]
[]
[]
[]
["1. Améliorer la structuration du PEF","N","N +1 ","N + 2",null,"3. Améliorer la communication du PEF","N","N +1 ","N + 2"]
["Améliorer et ou créer la structuration du PEF",null,null,null,null,"Valoriser le PEF"]
["Concevoir une programmation"]
["2. Améliorer le déploiement du PEF","N","N +1 ","N + 2"]
["Optimiser le travail de la Commission"]
["Implication des éducateurs"]
["Les objectifs du club ",null,null,null,null,{"$f":"'Page 1'!$A$7","v":"NOM DU CLUB"}]
["Le projet Encadrement et Formation :"]
[]
[]
[]
[]
[]
[]
[]
["1. Améliorer l'encadrement","N","N + 1 ","N + 2",null,"2. Fidéliser l'encadrement","N","N + 1 ","N + 2"]
["Structuration du club",null,null,null,null,"Valoriser les encadrants"]
["La sécurité des adhérents",null,null,null,null,"Renforcer l'identité club"]
["Féminiser l'encadrement"]
["Former les encadrants"]
["Trouver des jeunes arbitres"]

{"sheet":"Plan d'action N","index":3,"n_rows":236,"n_cols":13,"rows_kept":236,"cut":false,"hidden":false,"merged":[[0,3,0,8],[3,3,3,8],[106,3,106,8],[167,3,167,8],[201,3,201,8]]}
["PLAN D'ACTIONS ",null,{"$f":"'Page 1'!$A$7","v":"NOM DU CLUB"},"2017/2018"]
[]
["Plan d’actions volet associatif"]
[null,null,null,"Saison N"]
["Objectif général","Axe d'amélioration","Intitulé des actions et résultats envisagés","1er trimestre","2ème trimestre","3ème trimestre","Nom du responsable","Objectifs envisagés","Actions réalisées",null,null,null,"X"]
[{"$f":"IF('OBJECTIFS GENERAUX'!$B$9=\"x\",Feuil3!$A$1,\"\")","v":""},{"$f":"IF('OBJECTIFS GENERAUX'!$B$9=\"x\",Feuil3!$B$2,\"\")","v":""},{"$f":"IF('OBJECTIFS GENERAUX'!$B$9=\"x\",Feuil3!B3,\"\")","v":""},null,null,null,null,null,null,{"$f":"IF('OBJECTIFS GENERAUX'!$B$9=\"x\",\"x\",\"\")","v":""},111]
[null,null,{"$f":"IF('OBJECTIFS GENERAUX'!$B$9=\"x\",Feuil3!B4,\"\")","v":""},null,null,null,null,null,null,{"$f":"IF('OBJECTIFS GENERAUX'!$B$9=\"x\",\"x\",\"\")","v":""},112]
[null,null,{"$f":"IF('OBJECTIFS GENERAUX'!$B$9=\"x\",Feuil3!B5,\"\")","v":""},null,null,null,null,null,null,{"$f":"IF('OBJECTIFS GENERAUX'!$B$9=\"x\",\"x\",\"\")","v":""},113]
[null,null,{"$f":"IF('OBJECTIFS GENERAUX'!$B$9=\"x\",Feuil3!B6,\"\")","v":""},null,null,null,null,null,null,{"$f":"IF('OBJECTIFS GENERAUX'!$B$9=\"x\",\"x\",\"\")","v":""},114]
[null,null,{"$f":"IF('OBJECTIFS GENERAUX'!$B$9=\"x\",Feuil3!B7,\"\")","v":""},null,null,null,null,null,null,{"$f":"IF('OBJECTIFS GENERAUX'!$B$9=\"x\",\"x\",\"\")","v":""},115]
[null,null,{"$f":"IF('OBJECTIFS GENERAUX'!$B$9=\"x\",Feuil3!B8,\"\")","v":""},null,null,null,null,null,null,{"$f":"IF('OBJECTIFS GENERAUX'!$B$9=\"x\",\"x\",\"\")","v":""},116]
[null,null,{"$f":"IF('OBJECTIFS GENERAUX'!$B$9=\"x\",'Actions Ligue-district'!B3,\"\")","v":""},null,null,null,null,null,null,{"$f":"IF('OBJECTIFS GENERAUX'!$B$9=\"x\",\"x\",\"\")","v":""},117]
[{"$f":"IF('OBJECTIFS GENERAUX'!$B$10=\"x\",Feuil3!$A$1,\"\")","v":""},{"$f":"IF('OBJECTIFS GENERAUX'!$B$10=\"x\",Feuil3!$B$9,\"\")","v":""},{"$f":"IF('OBJECTIFS GENERAUX'!$B$10=\"x\",Feuil3!B10,\"\")","v":""},null,null,null,null,null,"",{"$f":"IF('OBJECTIFS GENERAUX'!$B$10=\"x\",\"x\",\"\")","v":""},121]
[null,null,{"$f":"IF('OBJECTIFS GENERAUX'!$B$10=\"x\",Feuil3!B11,\"\")","v":""},null,null,null,null,null,null,{"$f":"IF('OBJECTIFS GENERAUX'!$B$10=\"x\",\"x\",\"\")","v":""},122]
[null,null,{"$f":"IF('OBJECTIFS GENERAUX'!$B$10=\"x\",Feuil3!B12,\"\")","v":""},null,null,null,null,null,null,{"$f":"IF('OBJECTIFS GENERAUX'!$B$10=\"x\",\"x\",\"\")","v":""},123]
[null,null,{"$f":"IF('OBJECTIFS GENERAUX'!$B$10=\"x\",Feuil3!B13,\"\")","v":""},null,null,null,null,null,null,{"$f":"IF('OBJECTIFS GENERAUX'!$B$10=\"x\",\"x\",\"\")","v":""},124]
[null,null,{"$f":"IF('OBJECTIFS GENERAUX'!$B$10=\"x\",Feuil3!B14,\"\")","v":""},null,null,null,null,null,null,{"$f":"IF('OBJECTIFS GENERAUX'!$B$10=\"x\",\"x\",\"\")","v":""},125]
[null,null,{"$f":"IF('OBJECTIFS GENERAUX'!$B$10=\"x\",Feuil3!B15,\"\")","v":""},null,null,null,null,null,null,{"$f":"IF('OBJECTIFS GENERAUX'!$B$10=\"x\",\"x\",\"\")","v":""},126]
[null,null,{"$f":"IF('OBJECTIFS GENERAUX'!$B$10=\"x\",Feuil3!B16,\"\")","v":""},null,null,null,null,null,null,{"$f":"IF('OBJECTIFS GENERAUX'!$B$10=\"x\",\"x\",\"\")","v":""},127]
[null,null,{"$f":"IF('OBJECTIFS GENERAUX'!$B$10=\"x\",'Actions Ligue-district'!B4,\"\")","v":""},null,null,null,null,null,null,{"$f":"IF('OBJECTIFS GENERAUX'!$B$10=\"x\",\"x\",\"\")","v":""},127]
[{"$f":"IF(OR('OBJECTIFS GENERAUX'!$B$12=\"x\",'OBJECTIFS GENERAUX'!$B$13=\"x\"),Feuil3!A17,\"\")","v":""},{"$f":"IF(OR('OBJECTIFS GENERAUX'!$B$12=\"x\",'OBJECTIFS GENERAUX'!$B$13=\"x\"),Feuil3!$B$18,\"\")","v":""},{"$f":"IF(OR('OBJECTIFS GENERAUX'!$B$12=\"x\",'OBJECTIFS GENERAUX'!$B$13=\"x\"),Feuil3!B19,\"\")","v":""},null,null,null,null,null,null,{"$f":"IF(OR('OBJECTIFS GENERAUX'!$B$12=\"x\",'OBJECTIFS GENERAUX'!$B$13=\"x\"),\"x\",\"\")","v":""},211]
[null,null,{"$f":"IF(OR('OBJECTIFS GENERAUX'!$B$12=\"x\",'OBJECTIFS GENERAUX'!$B$13=\"x\"),Feuil3!B20,\"\")","v":""},null,null,null,null,null,null,{"$f":"IF(OR('OBJECTIFS GENERAUX'!$B$12=\"x\",'OBJECTIFS GENERAUX'!$B$13=\"x\"),\"x\",\"\")","v":""},212]
[null,null,{"$f":"IF(OR('OBJECTIFS GENERAUX'!$B$12=\"x\",'OBJECTIFS GENERAUX'!$B$13=\"x\"),Feuil3!B21,\"\")","v":""},null,null,null,null,null,null,{"$f":"IF(OR('OBJECTIFS GENERAUX'!$B$12=\"x\",'OBJECTIFS GENERAUX'!$B$13=\"x\"),\"x\",\"\")","v":""},213]
[null,null,{"$f":"IF(OR('OBJECTIFS GENERAUX'!$B$12=\"x\",'OBJECTIFS GENERAUX'!$B$13=\"x\"),Feuil3!B22,\"\")","v":""},null,null,null,null,null,null,{"$f":"IF(OR('OBJECTIFS GENERAUX'!$B$12=\"x\",'OBJECTIFS GENERAUX'!$B$13=\"x\"),\"x\",\"\")","v":""},214]
[null,null,{"$f":"IF(OR('OBJECTIFS GENERAUX'!$B$12=\"x\",'OBJECTIFS GENERAUX'!$B$13=\"x\"),Feuil3!B23,\"\")","v":""},null,null,null,null,null,null,{"$f":"IF(OR('OBJECTIFS GENERAUX'!$B$12=\"x\",'OBJECTIFS GENERAUX'!$B$13=\"x\"),\"x\",\"\")","v":""},215]
[null,null,{"$f":"IF(OR('OBJECTIFS GENERAUX'!$B$12=\"x\",'OBJECTIFS GENERAUX'!$B$13=\"x\"),'Actions Ligue-district'!B6,\"\")","v":""},null,null,null,null,null,null,{"$f":"IF(OR('OBJECTIFS GENERAUX'!$B$12=\"x\",'OBJECTIFS GENERAUX'!$B$13=\"x\"),\"x\",\"\")","v":""},215]
[{"$f":"IF(OR('OBJECTIFS GENERAUX'!$B$12=\"x\",'OBJECTIFS GENERAUX'!$B$13=\"x\"),Feuil3!A17,\"\")","v":""},{"$f":"IF(OR('OBJECTIFS GENERAUX'!$B$12=\"x\",'OBJECTIFS GENERAUX'!$B$13=\"x\"),Feuil3!$B$24,\"\")","v":""},{"$f":"IF(OR('OBJECTIFS GENERAUX'!$B$12=\"x\",'OBJECTIFS GENERAUX'!$B$13=\"x\"),Feuil3!B25,\"\")","v":""},null,null,null,null,null,null,{"$f":"IF(OR('OBJECTIFS GENERAUX'!$B$12=\"x\",'OBJECTIFS GENERAUX'!$B$13=\"x\"),\"x\",\"\")","v":""},221]
[null,null,{"$f":"IF(OR('OBJECTIFS GENERAUX'!$B$12=\"x\",'OBJECTIFS GENERAUX'!$B$13=\"x\"),Feuil3!B26,\"\")","v":""},null,null,null,null,null,null,{"$f":"IF(OR('OBJECTIFS GENERAUX'!$B$12=\"x\",'OBJECTIFS GENERAUX'!$B$13=\"x\"),\"x\",\"\")","v":""},222]
[null,null,{"$f":"IF(OR('OBJECTIFS GENERAUX'!$B$12=\"x\",'OBJECTIFS GENERAUX'!$B$13=\"x\"),Feuil3!B27,\"\")","v":""},null,null,null,null,null,null,{"$f":"IF(OR('OBJECTIFS GENERAUX'!$B$12=\"x\",'OBJECTIFS GENERAUX'!$B$13=\"x\"),\"x\",\"\")","v":""},223]
[null,null,{"$f":"IF(OR('OBJECTIFS GENERAUX'!$B$12=\"x\",'OBJECTIFS GENERAUX'!$B$13=\"x\"),Feuil3!B28,\"\")","v":""},null,null,null,null,null,null,{"$f":"IF(OR('OBJECTIFS GENERAUX'!$B$12=\"x\",'OBJECTIFS GENERAUX'!$B$13=\"x\"),\"x\",\"\")","v":""},224]
[null,null,{"$f":"IF(OR('OBJECTIFS GENERAUX'!$B$12=\"x\",'OBJECTIFS GENERAUX'!$B$13=\"x\"),'Actions Ligue-district'!B7,\"\")","v":""},null,null,null,null,null,null,{"$f":"IF(OR('OBJECTIFS GENERAUX'!$B$12=\"x\",'OBJECTIFS GENERAUX'!$B$13=\"x\"),\"x\",\"\")","v":""},225]
[{"$f":"IF('OBJECTIFS GENERAUX'!$B$15=\"x\",Feuil3!$A$29,\"\")","v":""},{"$f":"IF('OBJECTIFS GENERAUX'!$B$15=\"x\",Feuil3!$B$30,\"\")","v":""},{"$f":"IF('OBJECTIFS GENERAUX'!$B$15=\"x\",Feuil3!B31,\"\")","v":""},null,null,null,null,null,null,{"$f":"IF('OBJECTIFS GENERAUX'!$B$15=\"x\",\"x\",\"\")","v":""},311]
[null,null,{"$f":"IF('OBJECTIFS GENERAUX'!$B$15=\"x\",Feuil3!B32,\"\")","v":""},null,null,null,null,null,null,{"$f":"IF('OBJECTIFS GENERAUX'!$B$15=\"x\",\"x\",\"\")","v":""},312]
[null,null,{"$f":"IF('OBJECTIFS GENERAUX'!$B$15=\"x\",Feuil3!B33,\"\")","v":""},null,null,null,null,null,null,{"$f":"IF('OBJECTIFS GENERAUX'!$B$15=\"x\",\"x\",\"\")","v":""},313]
[null,null,{"$f":"IF('OBJECTIFS GENERAUX'!$B$15=\"x\",Feuil3!B34,\"\")","v":""},null,null,null,null,null,null,{"$f":"IF('OBJECTIFS GENERAUX'!$B$15=\"x\",\"x\",\"\")","v":""},314]
[null,null,{"$f":"IF('OBJECTIFS GENERAUX'!$B$15=\"x\",Feuil3!B35,\"\")","v":""},null,null,null,null,null,null,{"$f":"IF('OBJECTIFS GENERAUX'!$B$15=\"x\",\"x\",\"\")","v":""},315]
[null,null,{"$f":"IF('OBJECTIFS GENERAUX'!$B$15=\"x\",Feuil3!B36,\"\")","v":""},null,null,null,null,null,null,{"$f":"IF('OBJECTIFS GENERAUX'!$B$15=\"x\",\"x\",\"\")","v":""},316]
[null,null,{"$f":"IF('OBJECTIFS GENERAUX'!$B$15=\"x\",Feuil3!B37,\"\")","v":""},null,null,null,null,null,null,{"$f":"IF('OBJECTIFS GENERAUX'!$B$15=\"x\",\"x\",\"\")","v":""},317]
[null,null,{"$f":"IF('OBJECTIFS GENERAUX'!$B$15=\"x\",'Actions Ligue-district'!B9,\"\")","v":""},null,null,null,null,null,null,{"$f":"IF('OBJECTIFS GENERAUX'!$B$15=\"x\",\"x\",\"\")","v":""},318]
[{"$f":"IF('OBJECTIFS GENERAUX'!$B$16=\"x\",Feuil3!$A$29,\"\")","v":""},{"$f":"IF('OBJECTIFS GENERAUX'!$B$16=\"x\",Feuil3!B38,\"\")","v":""},{"$f":"IF('OBJECTIFS GENERAUX'!$B$16=\"x\",Feuil3!B39,\"\")","v":""},null,null,null,null,null,null,{"$f":"IF('OBJECTIFS GENERAUX'!$B$16=\"x\",\"x\",\"\")","v":""},321]
[null,null,{"$f":"IF('OBJECTIFS GENERAUX'!$B$16=\"x\",Feuil3!B40,\"\")","v":""},null,null,null,null,null,null,{"$f":"IF('OBJECTIFS GENERAUX'!$B$16=\"x\",\"x\",\"\")","v":""},322]
[null,null,{"$f":"IF('OBJECTIFS GENERAUX'!$B$16=\"x\",Feuil3!B42,\"\")","v":""},null,null,null,null,null,null,{"$f":"IF('OBJECTIFS GENERAUX'!$B$16=\"x\",\"x\",\"\")","v":""},323]
[null,null,{"$f":"IF('OBJECTIFS GENERAUX'!$B$16=\"x\",Feuil3!B41,\"\")","v":""},null,null,null,null,null,null,{"$f":"IF('OBJECTIFS GENERAUX'!$B$16=\"x\",\"x\",\"\")","v":""},324]
[null,null,{"$f":"IF('OBJECTIFS GENERAUX'!$B$16=\"x\",'Actions Ligue-district'!B10,\"\")","v":""},null,null,null,null,null,null,{"$f":"IF('OBJECTIFS GENERAUX'!$B$16=\"x\",\"x\",\"\")","v":""},325]
[{"$f":"IF('OBJECTIFS GENERAUX'!$B$17=\"x\",Feuil3!$A$43,\"\")","v":""},{"$f":"IF('OBJECTIFS GENERAUX'!$B$17=\"x\",Feuil3!$B$43,\"\")","v":""},{"$f":"IF('OBJECTIFS GENERAUX'!$B$17=\"x\",Feuil3!B44,\"\")","v":""},null,null,null,null,null,null,{"$f":"IF('OBJECTIFS GENERAUX'!$B$17=\"x\",\"x\",\"\")","v":""},411]
[null,null,{"$f":"IF('OBJECTIFS GENERAUX'!$B$17=\"x\",Feuil3!B45,\"\")","v":""},null,null,null,null,null,null,{"$f":"IF('OBJECTIFS GENERAUX'!$B$17=\"x\",\"x\",\"\")","v":""},412]
[null,null,{"$f":"IF('OBJECTIFS GENERAUX'!$B$17=\"x\",Feuil3!B46,\"\")","v":""},null,null,null,null,null,null,{"$f":"IF('OBJECTIFS GENERAUX'!$B$17=\"x\",\"x\",\"\")","v":""},413]
[null,null,{"$f":"IF('OBJECTIFS GENERAUX'!$B$17=\"x\",Feuil3!B47,\"\")","v":""},null,null,null,null,null,null,{"$f":"IF('OBJECTIFS GENERAUX'!$B$17=\"x\",\"x\",\"\")","v":""},414]
[null,null,{"$f":"IF('OBJECTIFS GENERAUX'!$B$17=\"x\",Feuil3!B48,\"\")","v":""},null,null,null,null,null,null,{"$f":"IF('OBJECTIFS GENERAUX'!$B$17=\"x\",\"x\",\"\")","v":""},415]
[null,null,{"$f":"IF('OBJECTIFS GENERAUX'!$B$17=\"x\",Feuil3!B49,\"\")","v":""},null,null,null,null,null,null,{"$f":"IF('OBJECTIFS GENERAUX'!$B$17=\"x\",\"x\",\"\")","v":""},416]
[null,null,{"$f":"IF('OBJECTIFS GENERAUX'!$B$17=\"x\",'Actions Ligue-district'!B11,\"\")","v":""},null,null,null,null,null,null,{"$f":"IF('OBJECTIFS GENERAUX'!$B$17=\"x\",\"x\",\"\")","v":""},417]
[{"$f":"IF('OBJECTIFS GENERAUX'!$B$18=\"x\",Feuil3!$A$50,\"\")","v":""},{"$f":"IF('OBJECTIFS GENERAUX'!$B$18=\"x\",Feuil3!$B$50,\"\")","v":""},{"$f":"IF('OBJECTIFS GENERAUX'!$B$18=\"x\",Feuil3!B51,\"\")","v":""},null,null,null,null,null,null,{"$f":"IF('OBJECTIFS GENERAUX'!$B$18=\"x\",\"x\",\"\")","v":""},511]
[null,null,{"$f":"IF('OBJECTIFS GENERAUX'!$B$18=\"x\",Feuil3!B52,\"\")","v":""},null,null,null,null,null,null,{"$f":"IF('OBJECTIFS GENERAUX'!$B$18=\"x\",\"x\",\"\")","v":""},512]
[null,null,{"$f":"IF('OBJECTIFS GENERAUX'!$B$18=\"x\",Feuil3!B53,\"\")","v":""},null,null,null,null,null,null,{"$f":"IF('OBJECTIFS GENERAUX'!$B$18=\"x\",\"x\",\"\")","v":""},513]
[null,null,{"$f":"IF('OBJECTIFS GENERAUX'!$B$18=\"x\",'Actions Ligue-district'!B13,\"\")","v":""},null,null,null,null,null,null,{"$f":"IF('OBJECTIFS GENERAUX'!$B$18=\"x\",\"x\",\"\")","v":""},514]
[{"$f":"IF('OBJECTIFS GENERAUX'!$B$18=\"x\",Feuil3!$A$50,\"\")","v":""},{"$f":"IF('OBJECTIFS GENERAUX'!$B$18=\"x\",Feuil3!$B$54,\"\")","v":""},{"$f":"IF('OBJECTIFS GENERAUX'!$B$18=\"x\",Feuil3!B55,\"\")","v":""},null,null,null,null,null,null,{"$f":"IF('OBJECTIFS GENERAUX'!$B$18=\"x\",\"x\",\"\")","v":""},521]
[null,null,{"$f":"IF('OBJECTIFS GENERAUX'!$B$18=\"x\",Feuil3!B56,\"\")","v":""},null,null,null,null,null,null,{"$f":"IF('OBJECTIFS GENERAUX'!$B$18=\"x\",\"x\",\"\")","v":""},522]
[null,null,{"$f":"IF('OBJECTIFS GENERAUX'!$B$18=\"x\",Feuil3!B57,\"\")","v":""},null,null,null,null,null,null,{"$f":"IF('OBJECTIFS GENERAUX'!$B$18=\"x\",\"x\",\"\")","v":""},523]
[null,null,{"$f":"IF('OBJECTIFS GENERAUX'!$B$18=\"x\",Feuil3!B58,\"\")","v":""},null,null,null,null,null,null,{"$f":"IF('OBJECTIFS GENERAUX'!$B$18=\"x\",\"x\",\"\")","v":""},524]
[null,null,{"$f":"IF('OBJECTIFS GENERAUX'!$B$18=\"x\",'Actions Ligue-district'!B14,\"\")","v":""},null,null,null,null,null,null,{"$f":"IF('OBJECTIFS GENERAUX'!$B$18=\"x\",\"x\",\"\")","v":""},525]
[{"$f":"IF('OBJECTIFS GENERAUX'!$B$18=\"x\",Feuil3!$A$50,\"\")","v":""},{"$f":"IF('OBJECTIFS GENERAUX'!$B$18=\"x\",Feuil3!$B$59,\"\")","v":""},{"$f":"IF('OBJECTIFS GENERAUX'!$B$18=\"x\",Feuil3!B60,\"\")","v":""},null,null,null,null,null,null,{"$f":"IF('OBJECTIFS GENERAUX'!$B$18=\"x\",\"x\",\"\")","v":""},531]
[null,null,{"$f":"IF('OBJECTIFS GENERAUX'!$B$18=\"x\",Feuil3!B61,\"\")","v":""},null,null,null,null,null,null,{"$f":"IF('OBJECTIFS GENERAUX'!$B$18=\"x\",\"x\",\"\")","v":""},532]
[null,null,{"$f":"IF('OBJECTIFS GENERAUX'!$B$18=\"x\",'Actions Ligue-district'!B15,\"\")","v":""},null,null,null,null,null,null,{"$f":"IF('OBJECTIFS GENERAUX'!$B$18=\"x\",\"x\",\"\")","v":""},533]
[{"$f":"IF('OBJECTIFS GENERAUX'!$G$9=\"x\",Feuil3!$A$62,\"\")","v":""},{"$f":"IF('OBJECTIFS GENERAUX'!$G$9=\"x\",Feuil3!$B$63,\"\")","v":""},{"$f":"IF('OBJECTIFS GENERAUX'!$G$9=\"x\",Feuil3!B64,\"\")","v":""},null,null,null,null,null,null,{"$f":"IF('OBJECTIFS GENERAUX'!$G$9=\"x\",\"x\",\"\")","v":""},611]
[null,null,{"$f":"IF('OBJECTIFS GENERAUX'!$G$9=\"x\",Feuil3!B65,\"\")","v":""},null,null,null,null,null,null,{"$f":"IF('OBJECTIFS GENERAUX'!$G$9=\"x\",\"x\",\"\")","v":""},612]
[null,null,{"$f":"IF('OBJECTIFS GENERAUX'!$G$9=\"x\",Feuil3!B66,\"\")","v":""},null,null,null,null,null,null,{"$f":"IF('OBJECTIFS GENERAUX'!$G$9=\"x\",\"x\",\"\")","v":""},613]
[null,null,{"$f":"IF('OBJECTIFS GENERAUX'!$G$9=\"x\",Feuil3!B67,\"\")","v":""},null,null,null,null,null,null,{"$f":"IF('OBJECTIFS GENERAUX'!$G$9=\"x\",\"x\",\"\")","v":""},614]
[null,null,{"$f":"IF('OBJECTIFS GENERAUX'!$G$9=\"x\",'Actions Ligue-district'!B17,\"\")","v":""},null,null,null,null,null,null,{"$f":"IF('OBJECTIFS GENERAUX'!$G$9=\"x\",\"x\",\"\")","v":""},615]
[{"$f":"IF('OBJECTIFS GENERAUX'!$G$10=\"x\",Feuil3!$A$62,\"\")","v":""},{"$f":"IF('OBJECTIFS GENERAUX'!$G$10=\"x\",Feuil3!$B$68,\"\")","v":""},{"$f":"IF('OBJECTIFS GENERAUX'!$G$10=\"x\",Feuil3!B69,\"\")","v":""},null,null,null,null,null,null,{"$f":"IF('OBJECTIFS GENERAUX'!$G$10=\"x\",\"x\",\"\")","v":""},711]
[null,null,{"$f":"IF('OBJECTIFS GENERAUX'!$G$10=\"x\",Feuil3!B70,\"\")","v":""},null,null,null,null,null,null,{"$f":"IF('OBJECTIFS GENERAUX'!$G$10=\"x\",\"x\",\"\")","v":""},712]
[null,null,{"$f":"IF('OBJECTIFS GENERAUX'!$G$10=\"x\",'Actions Ligue-district'!B18,\"\")","v":""},null,null,null,null,null,null,{"$f":"IF('OBJECTIFS GENERAUX'!$G$10=\"x\",\"x\",\"\")","v":""},713]
[{"$f":"IF('OBJECTIFS GENERAUX'!$G$11=\"x\",Feuil3!$A$62,\"\")","v":""},{"$f":"IF('OBJECTIFS GENERAUX'!$G$11=\"x\",Feuil3!$B$71,\"\")","v":""},{"$f":"IF('OBJECTIFS GENERAUX'!$G$11=\"x\",Feuil3!B72,\"\")","v":""},null,null,null,null,null,null,{"$f":"IF('OBJECTIFS GENERAUX'!$G$11=\"x\",\"x\",\"\")","v":""},721]
[null,null,{"$f":"IF('OBJECTIFS GENERAUX'!$G$11=\"x\",Feuil3!B73,\"\")","v":""},null,null,null,null,null,null,{"$f":"IF('OBJECTIFS GENERAUX'!$G$11=\"x\",\"x\",\"\")","v":""},722]
[null,null,{"$f":"IF('OBJECTIFS GENERAUX'!$G$11=\"x\",Feuil3!B74,\"\")","v":""},null,null,null,null,null,null,{"$f":"IF('OBJECTIFS GENERAUX'!$G$11=\"x\",\"x\",\"\")","v":""},723]
[null,null,{"$f":"IF('OBJECTIFS GENERAUX'!$G$11=\"x\",Feuil3!B75,\"\")","v":""},null,null,null,null,null,null,{"$f":"IF('OBJECTIFS GENERAUX'!$G$11=\"x\",\"x\",\"\")","v":""},724]
[null,null,{"$f":"IF('OBJECTIFS GENERAUX'!$G$11=\"x\",Feuil3!B76,\"\")","v":""},null,null,null,null,null,null,{"$f":"IF('OBJECTIFS GENERAUX'!$G$11=\"x\",\"x\",\"\")","v":""},725]
[null,null,{"$f":"IF('OBJECTIFS GENERAUX'!$G$11=\"x\",Feuil3!B77,\"\")","v":""},null,null,null,null,null,null,{"$f":"IF('OBJECTIFS GENERAUX'!$G$11=\"x\",\"x\",\"\")","v":""},726]
[null,null,{"$f":"IF('OBJECTIFS GENERAUX'!$G$11=\"x\",Feuil3!B78,\"\")","v":""},null,null,null,null,null,null,{"$f":"IF('OBJECTIFS GENERAUX'!$G$11=\"x\",\"x\",\"\")","v":""},727]
[null,null,{"$f":"IF('OBJECTIFS GENERAUX'!$G$11=\"x\",'Actions Ligue-district'!B19,\"\")","v":""},null,null,null,null,null,null,{"$f":"IF('OBJECTIFS GENERAUX'!$G$11=\"x\",\"x\",\"\")","v":""},728]
[{"$f":"IF('OBJECTIFS GENERAUX'!$G$13=\"x\",Feuil3!$A$79,\"\")","v":""},{"$f":"IF('OBJECTIFS GENERAUX'!$G$13=\"x\",Feuil3!$B$80,\"\")","v":""},{"$f":"IF('OBJECTIFS GENERAUX'!$G$13=\"x\",Feuil3!B81,\"\")","v":""},null,null,null,null,null,null,{"$f":"IF('OBJECTIFS GENERAUX'!$G$13=\"x\",\"x\",\"\")","v":""},811]
[null,null,{"$f":"IF('OBJECTIFS GENERAUX'!$G$13=\"x\",Feuil3!B82,\"\")","v":""},null,null,null,null,null,null,{"$f":"IF('OBJECTIFS GENERAUX'!$G$13=\"x\",\"x\",\"\")","v":""},812]
[null,null,{"$f":"IF('OBJECTIFS GENERAUX'!$G$13=\"x\",Feuil3!B83,\"\")","v":""},null,null,null,null,null,null,{"$f":"IF('OBJECTIFS GENERAUX'!$G$13=\"x\",\"x\",\"\")","v":""},813]
[null,null,{"$f":"IF('OBJECTIFS GENERAUX'!$G$13=\"x\",Feuil3!B84,\"\")","v":""},null,null,null,null,null,null,{"$f":"IF('OBJECTIFS GENERAUX'!$G$13=\"x\",\"x\",\"\")","v":""},814]
[null,null,{"$f":"IF('OBJECTIFS GENERAUX'!$G$13=\"x\",'Actions Ligue-district'!B21,\"\")","v":""},null,null,null,null,null,null,{"$f":"IF('OBJECTIFS GENERAUX'!$G$13=\"x\",\"x\",\"\")","v":""},815]
[{"$f":"IF('OBJECTIFS GENERAUX'!$G$14=\"x\",Feuil3!$A$79,\"\")","v":""},{"$f":"IF('OBJECTIFS GENERAUX'!$G$14=\"x\",Feuil3!B85,\"\")","v":""},{"$f":"IF('OBJECTIFS GENERAUX'!$G$14=\"x\",Feuil3!B85,\"\")","v":""},null,null,null,null,null,null,{"$f":"IF('OBJECTIFS GENERAUX'!$G$14=\"x\",\"x\",\"\")","v":""},821]
[null,null,{"$f":"IF('OBJECTIFS GENERAUX'!$G$14=\"x\",Feuil3!B86,\"\")","v":""},null,null,null,null,null,null,{"$f":"IF('OBJECTIFS GENERAUX'!$G$14=\"x\",\"x\",\"\")","v":""},822]
[null,null,{"$f":"IF('OBJECTIFS GENERAUX'!$G$14=\"x\",Feuil3!B87,\"\")","v":""},null,null,null,null,null,null,{"$f":"IF('OBJECTIFS GENERAUX'!$G$14=\"x\",\"x\",\"\")","v":""},823]
[null,null,{"$f":"IF('OBJECTIFS GENERAUX'!$G$14=\"x\",'Actions Ligue-district'!B22,\"\")","v":""},null,null,null,null,null,null,{"$f":"IF('OBJECTIFS GENERAUX'!$G$14=\"x\",\"x\",\"\")","v":""},824]
[{"$f":"IF('OBJECTIFS GENERAUX'!$G$15=\"x\",Feuil3!$A$79,\"\")","v":""},{"$f":"IF('OBJECTIFS GENERAUX'!$G$15=\"x\",Feuil3!B89,\"\")","v":""},{"$f":"IF('OBJECTIFS GENERAUX'!$G$15=\"x\",Feuil3!B88,\"\")","v":""},null,null,null,null,null,null,{"$f":"IF('OBJECTIFS GENERAUX'!$G$15=\"x\",\"x\",\"\")","v":""},831]
[null,null,{"$f":"IF('OBJECTIFS GENERAUX'!$G$15=\"x\",Feuil3!B89,\"\")","v":""},null,null,null,null,null,null,{"$f":"IF('OBJECTIFS GENERAUX'!$G$15=\"x\",\"x\",\"\")","v":""},832]
[null,null,{"$f":"IF('OBJECTIFS GENERAUX'!$G$15=\"x\",Feuil3!B90,\"\")","v":""},null,null,null,null,null,null,{"$f":"IF('OBJECTIFS GENERAUX'!$G$15=\"x\",\"x\",\"\")","v":""},833]
[null,null,{"$f":"IF('OBJECTIFS GENERAUX'!$G$15=\"x\",Feuil3!B91,\"\")","v":""},null,null,null,null,null,null,{"$f":"IF('OBJECTIFS GENERAUX'!$G$15=\"x\",\"x\",\"\")","v":""},834]
[null,null,{"$f":"IF('OBJECTIFS GENERAUX'!$G$15=\"x\",Feuil3!B92,\"\")","v":""},null,null,null,null,null,null,{"$f":"IF('OBJECTIFS GENERAUX'!$G$15=\"x\",\"x\",\"\")","v":""},835]
[null,null,{"$f":"IF('OBJECTIFS GENERAUX'!$G$15=\"x\",Feuil3!B93,\"\")","v":""},null,null,null,null,null,null,{"$f":"IF('OBJECTIFS GENERAUX'!$G$15=\"x\",\"x\",\"\")","v":""},836]
[null,null,{"$f":"IF('OBJECTIFS GENERAUX'!$G$15=\"x\",Feuil3!B94,\"\")","v":""},null,null,null,null,null,null,{"$f":"IF('OBJECTIFS GENERAUX'!$G$15=\"x\",\"x\",\"\")","v":""},837]
[null,null,{"$f":"IF('OBJECTIFS GENERAUX'!$G$15=\"x\",'Actions Ligue-district'!B23,\"\")","v":""},null,null,null,null,null,null,{"$f":"IF('OBJECTIFS GENERAUX'!$G$15=\"x\",\"x\",\"\")","v":""},838]
[{"$f":"IF('OBJECTIFS GENERAUX'!$G$16=\"x\",Feuil3!$A$79,\"\")","v":""},{"$f":"IF('OBJECTIFS GENERAUX'!$G$16=\"x\",Feuil3!$B$95,\"\")","v":""},{"$f":"IF('OBJECTIFS GENERAUX'!$G$16=\"x\",Feuil3!B96,\"\")","v":""},null,null,null,null,null,null,{"$f":"IF('OBJECTIFS GENERAUX'!$G$16=\"x\",\"x\",\"\")","v":""},841]
[null,null,{"$f":"IF('OBJECTIFS GENERAUX'!$G$16=\"x\",Feuil3!B97,\"\")","v":""},null,null,null,null,null,null,{"$f":"IF('OBJECTIFS GENERAUX'!$G$16=\"x\",\"x\",\"\")","v":""},842]
[null,null,{"$f":"IF('OBJECTIFS GENERAUX'!$G$16=\"x\",'Actions Ligue-district'!B24,\"\")","v":""},null,null,null,null,null,null,{"$f":"IF('OBJECTIFS GENERAUX'!$G$16=\"x\",\"x\",\"\")","v":""},843]
[{"$f":"IF('OBJECTIFS GENERAUX'!$G$17=\"x\",Feuil3!$A$79,\"\")","v":""},{"$f":"IF('OBJECTIFS GENERAUX'!$G$17=\"x\",Feuil3!$B$98,\"\")","v":""},{"$f":"IF('OBJECTIFS GENERAUX'!$G$17=\"x\",Feuil3!B99,\"\")","v":""},null,null,null,null,null,null,{"$f":"IF('OBJECTIFS GENERAUX'!$G$17=\"x\",\"x\",\"\")","v":""},851]
[null,null,{"$f":"IF('OBJECTIFS GENERAUX'!$G$17=\"x\",Feuil3!B100,\"\")","v":""},null,null,null,null,null,null,{"$f":"IF('OBJECTIFS GENERAUX'!$G$17=\"x\",\"x\",\"\")","v":""},852]
[null,null,{"$f":"IF('OBJECTIFS GENERAUX'!$G$17=\"x\",Feuil3!B101,\"\")","v":""},null,null,null,null,null,null,{"$f":"IF('OBJECTIFS GENERAUX'!$G$17=\"x\",\"x\",\"\")","v":""},853]
[null,null,{"$f":"IF('OBJECTIFS GENERAUX'!$G$17=\"x\",'Actions Ligue-district'!B25,\"\")","v":""},null,null,null,null,null,null,{"$f":"IF('OBJECTIFS GENERAUX'!$G$17=\"x\",\"x\",\"\")","v":""},854]
[]
[]
["Plan d’actions volet sportif"]
[null,null,null,"Saison N"]
["Objectif général","Axe d'amélioration","Intitulé des actions et résultats envisagés","1er trimestre","2ème trimestre","3ème trimestre","Nom du responsable","Objectifs envisagés","Actions réalisées"]
[{"$f":"IF('OBJECTIFS GENERAUX'!$B$28=\"x\",Feuil3!$C$1,\"\")","v":""},{"$f":"IF('OBJECTIFS GENERAUX'!$B$28=\"x\",Feuil3!$C$1,\"\")","v":""},{"$f":"IF('OBJECTIFS GENERAUX'!$B$28=\"x\",Feuil3!B3,\"\")","v":""},null,null,null,null,null,null,{"$f":"IF('OBJECTIFS GENERAUX'!$B$28=\"x\",\"x\",\"\")","v":""},111]
[null,null,{"$f":"IF('OBJECTIFS GENERAUX'!$B$28=\"x\",Feuil3!B4,\"\")","v":""},null,null,null,null,null,null,{"$f":"IF('OBJECTIFS GENERAUX'!$B$28=\"x\",\"x\",\"\")","v":""},112]
[null,null,{"$f":"IF('OBJECTIFS GENERAUX'!$B$28=\"x\",Feuil3!B5,\"\")","v":""},null,null,null,null,null,null,{"$f":"IF('OBJECTIFS GENERAUX'!$B$28=\"x\",\"x\",\"\")","v":""},113]
[null,null,{"$f":"IF('OBJECTIFS GENERAUX'!$B$28=\"x\",Feuil3!B6,\"\")","v":""},null,null,null,null,null,null,{"$f":"IF('OBJECTIFS GENERAUX'!$B$28=\"x\",\"x\",\"\")","v":""},114]
[null,null,{"$f":"IF('OBJECTIFS GENERAUX'!$B$28=\"x\",Feuil3!B7,\"\")","v":""},null,null,null,null,null,null,{"$f":"IF('OBJECTIFS GENERAUX'!$B$28=\"x\",\"x\",\"\")","v":""},115]
[null,null,{"$f":"IF('OBJECTIFS GENERAUX'!$B$28=\"x\",Feuil3!B8,\"\")","v":""},null,null,null,null,null,null,{"$f":"IF('OBJECTIFS GENERAUX'!$B$28=\"x\",\"x\",\"\")","v":""},116]
[null,null,{"$f":"IF('OBJECTIFS GENERAUX'!$B$28=\"x\",'Actions Ligue-district'!B28,\"\")","v":""},null,null,null,null,null,null,{"$f":"IF('OBJECTIFS GENERAUX'!$B$28=\"x\",\"x\",\"\")","v":""},117]
[{"$f":"IF('OBJECTIFS GENERAUX'!$B$29=\"x\",Feuil3!C1,\"\")","v":""},{"$f":"IF('OBJECTIFS GENERAUX'!$B$29=\"x\",Feuil3!B9,\"\")","v":""},{"$f":"IF('OBJECTIFS GENERAUX'!$B$29=\"x\",Feuil3!B10,\"\")","v":""},null,null,null,null,null,null,{"$f":"IF('OBJECTIFS GENERAUX'!$B$29=\"x\",\"x\",\"\")","v":""},121]
[null,null,{"$f":"IF('OBJECTIFS GENERAUX'!$B$29=\"x\",Feuil3!B11,\"\")","v":""},null,null,null,null,null,null,{"$f":"IF('OBJECTIFS GENERAUX'!$B$29=\"x\",\"x\",\"\")","v":""},122]
[null,null,{"$f":"IF('OBJECTIFS GENERAUX'!$B$29=\"x\",Feuil3!B12,\"\")","v":""},null,null,null,null,null,null,{"$f":"IF('OBJECTIFS GENERAUX'!$B$29=\"x\",\"x\",\"\")","v":""},123]
[null,null,{"$f":"IF('OBJECTIFS GENERAUX'!$B$29=\"x\",Feuil3!B13,\"\")","v":""},null,null,null,null,null,null,{"$f":"IF('OBJECTIFS GENERAUX'!$B$29=\"x\",\"x\",\"\")","v":""},124]
[null,null,{"$f":"IF('OBJECTIFS GENERAUX'!$B$29=\"x\",Feuil3!B14,\"\")","v":""},null,null,null,null,null,null,{"$f":"IF('OBJECTIFS GENERAUX'!$B$29=\"x\",\"x\",\"\")","v":""},125]
[null,null,{"$f":"IF('OBJECTIFS GENERAUX'!$B$29=\"x\",Feuil3!B15,\"\")","v":""},null,null,null,null,null,null,{"$f":"IF('OBJECTIFS GENERAUX'!$B$29=\"x\",\"x\",\"\")","v":""},126]
[null,null,{"$f":"IF('OBJECTIFS GENERAUX'!$B$29=\"x\",Feuil3!B16,\"\")","v":""},null,null,null,null,null,null,{"$f":"IF('OBJECTIFS GENERAUX'!$B$29=\"x\",\"x\",\"\")","v":""},127]
[null,null,{"$f":"IF('OBJECTIFS GENERAUX'!$B$29=\"x\",'Actions Ligue-district'!B29,\"\")","v":""},null,null,null,null,null,null,{"$f":"IF('OBJECTIFS GENERAUX'!$B$29=\"x\",\"x\",\"\")","v":""},128]
[{"$f":"IF('OBJECTIFS GENERAUX'!$B$31=\"x\",Feuil3!C4,\"\")","v":""},{"$f":"IF('OBJECTIFS GENERAUX'!$B$31=\"x\",Feuil3!D5,\"\")","v":""},{"$f":"IF('OBJECTIFS GENERAUX'!$B$31=\"x\",Feuil3!D6,\"\")","v":""},null,null,null,null,null,null,{"$f":"IF('OBJECTIFS GENERAUX'!$B$31=\"x\",\"x\",\"\")","v":""},211]
[null,null,{"$f":"IF('OBJECTIFS GENERAUX'!$B$31=\"x\",Feuil3!D7,\"\")","v":""},null,null,null,null,null,null,{"$f":"IF('OBJECTIFS GENERAUX'!$B$31=\"x\",\"x\",\"\")","v":""},212]
[null,null,{"$f":"IF('OBJECTIFS GENERAUX'!$B$31=\"x\",Feuil3!D8,\"\")","v":""},null,null,null,null,null,null,{"$f":"IF('OBJECTIFS GENERAUX'!$B$31=\"x\",\"x\",\"\")","v":""},213]
[null,null,{"$f":"IF('OBJECTIFS GENERAUX'!$B$31=\"x\",Feuil3!D9,\"\")","v":""},null,null,null,null,null,null,{"$f":"IF('OBJECTIFS GENERAUX'!$B$31=\"x\",\"x\",\"\")","v":""},214]
[null,null,{"$f":"IF('OBJECTIFS GENERAUX'!$B$31=\"x\",'Actions Ligue-district'!B31,\"\")","v":""},null,null,null,null,null,null,{"$f":"IF('OBJECTIFS GENERAUX'!$B$31=\"x\",\"x\",\"\")","v":""},215]
[{"$f":"IF('OBJECTIFS GENERAUX'!$B$32=\"x\",Feuil3!C4,\"\")","v":""},{"$f":"IF('OBJECTIFS GENERAUX'!$B$32=\"x\",Feuil3!D10,\"\")","v":""},{"$f":"IF('OBJECTIFS GENERAUX'!$B$32=\"x\",Feuil3!D11,\"\")","v":""},null,null,null,null,null,null,{"$f":"IF('OBJECTIFS GENERAUX'!$B$32=\"x\",\"x\",\"\")","v":""},221]
[null,null,{"$f":"IF('OBJECTIFS GENERAUX'!$B$32=\"x\",Feuil3!D12,\"\")","v":""},null,null,null,null,null,null,{"$f":"IF('OBJECTIFS GENERAUX'!$B$32=\"x\",\"x\",\"\")","v":""},222]
[null,null,{"$f":"IF('OBJECTIFS GENERAUX'!$B$32=\"x\",Feuil3!D13,\"\")","v":""},null,null,null,null,null,null,{"$f":"IF('OBJECTIFS GENERAUX'!$B$32=\"x\",\"x\",\"\")","v":""},223]
[null,null,{"$f":"IF('OBJECTIFS GENERAUX'!$B$32=\"x\",Feuil3!D14,\"\")","v":""},null,null,null,null,null,null,{"$f":"IF('OBJECTIFS GENERAUX'!$B$32=\"x\",\"x\",\"\")","v":""},224]
[null,null,{"$f":"IF('OBJECTIFS GENERAUX'!$B$32=\"x\",'Actions Ligue-district'!B32,\"\")","v":""},null,null,null,null,null,null,{"$f":"IF('OBJECTIFS GENERAUX'!$B$32=\"x\",\"x\",\"\")","v":""},224]
[{"$f":"IF('OBJECTIFS GENERAUX'!$B$33=\"x\",Feuil3!C15,\"\")","v":""},{"$f":"IF('OBJECTIFS GENERAUX'!$B$33=\"x\",Feuil3!D15,\"\")","v":""},{"$f":"IF('OBJECTIFS GENERAUX'!$B$33=\"x\",Feuil3!D16,\"\")","v":""},null,null,null,null,null,null,{"$f":"IF('OBJECTIFS GENERAUX'!$B$33=\"x\",\"x\",\"\")","v":""},311]
[null,null,{"$f":"IF('OBJECTIFS GENERAUX'!$B$33=\"x\",Feuil3!D17,\"\")","v":""},null,null,null,null,null,null,{"$f":"IF('OBJECTIFS GENERAUX'!$B$33=\"x\",\"x\",\"\")","v":""},312]
[null,null,{"$f":"IF('OBJECTIFS GENERAUX'!$B$33=\"x\",Feuil3!D18,\"\")","v":""},null,null,null,null,null,null,{"$f":"IF('OBJECTIFS GENERAUX'!$B$33=\"x\",\"x\",\"\")","v":""},313]
[null,null,{"$f":"IF('OBJECTIFS GENERAUX'!$B$33=\"x\",'Actions Ligue-district'!B33,\"\")","v":""},null,null,null,null,null,null,{"$f":"IF('OBJECTIFS GENERAUX'!$B$33=\"x\",\"x\",\"\")","v":""},314]
[{"$f":"IF('OBJECTIFS GENERAUX'!$G$28=\"x\",Feuil3!C19,\"\")","v":""},{"$f":"IF('OBJECTIFS GENERAUX'!$G$28=\"x\",Feuil3!D20,\"\")","v":""},{"$f":"IF('OBJECTIFS GENERAUX'!$G$28=\"x\",Feuil3!D21,\"\")","v":""},null,null,null,null,null,null,{"$f":"IF('OBJECTIFS GENERAUX'!$G$28=\"x\",\"x\",\"\")","v":""},411]
[null,null,{"$f":"IF('OBJECTIFS GENERAUX'!$G$28=\"x\",Feuil3!D22,\"\")","v":""},null,null,null,null,null,null,{"$f":"IF('OBJECTIFS GENERAUX'!$G$28=\"x\",\"x\",\"\")","v":""},412]
[null,null,{"$f":"IF('OBJECTIFS GENERAUX'!$G$28=\"x\",Feuil3!D23,\"\")","v":""},null,null,null,null,null,null,{"$f":"IF('OBJECTIFS GENERAUX'!$G$28=\"x\",\"x\",\"\")","v":""},413]
[null,null,{"$f":"IF('OBJECTIFS GENERAUX'!$G$28=\"x\",Feuil3!D24,\"\")","v":""},null,null,null,null,null,null,{"$f":"IF('OBJECTIFS GENERAUX'!$G$28=\"x\",\"x\",\"\")","v":""},414]
[null,null,{"$f":"IF('OBJECTIFS GENERAUX'!$G$28=\"x\",'Actions Ligue-district'!B35,\"\")","v":""},null,null,null,null,null,null,{"$f":"IF('OBJECTIFS GENERAUX'!$G$28=\"x\",\"x\",\"\")","v":""},415]
[{"$f":"IF('OBJECTIFS GENERAUX'!$G$29=\"x\",Feuil3!C19,\"\")","v":""},{"$f":"IF('OBJECTIFS GENERAUX'!$G$29=\"x\",Feuil3!D25,\"\")","v":""},{"$f":"IF('OBJECTIFS GENERAUX'!$G$29=\"x\",Feuil3!D26,\"\")","v":""},null,null,null,null,null,null,{"$f":"IF('OBJECTIFS GENERAUX'!$G$29=\"x\",\"x\",\"\")","v":""},421]
[null,null,{"$f":"IF('OBJECTIFS GENERAUX'!$G$29=\"x\",Feuil3!D27,\"\")","v":""},null,null,null,null,null,null,{"$f":"IF('OBJECTIFS GENERAUX'!$G$29=\"x\",\"x\",\"\")","v":""},422]
[null,null,{"$f":"IF('OBJECTIFS GENERAUX'!$G$29=\"x\",'Actions Ligue-district'!B36,\"\")","v":""},null,null,null,null,null,null,{"$f":"IF('OBJECTIFS GENERAUX'!$G$29=\"x\",\"x\",\"\")","v":""},423]
[{"$f":"IF('OBJECTIFS GENERAUX'!$G$30=\"x\",Feuil3!C19,\"\")","v":""},{"$f":"IF('OBJECTIFS GENERAUX'!$G$30=\"x\",Feuil3!D28,\"\")","v":""},{"$f":"IF('OBJECTIFS GENERAUX'!$G$30=\"x\",Feuil3!D29,\"\")","v":""},null,null,null,null,null,null,{"$f":"IF('OBJECTIFS GENERAUX'!$G$30=\"x\",\"x\",\"\")","v":""},431]
[null,null,{"$f":"IF('OBJECTIFS GENERAUX'!$G$30=\"x\",Feuil3!D30,\"\")","v":""},null,null,null,null,null,null,{"$f":"IF('OBJECTIFS GENERAUX'!$G$30=\"x\",\"x\",\"\")","v":""},432]
[null,null,{"$f":"IF('OBJECTIFS GENERAUX'!$G$30=\"x\",Feuil3!D31,\"\")","v":""},null,null,null,null,null,null,{"$f":"IF('OBJECTIFS GENERAUX'!$G$30=\"x\",\"x\",\"\")","v":""},433]
[null,null,{"$f":"IF('OBJECTIFS GENERAUX'!$G$30=\"x\",Feuil3!D32,\"\")","v":""},null,null,null,null,null,null,{"$f":"IF('OBJECTIFS GENERAUX'!$G$30=\"x\",\"x\",\"\")","v":""},434]
[null,null,{"$f":"IF('OBJECTIFS GENERAUX'!$G$30=\"x\",'Actions Ligue-district'!B37,\"\")","v":""},null,null,null,null,null,null,{"$f":"IF('OBJECTIFS GENERAUX'!$G$30=\"x\",\"x\",\"\")","v":""},435]
[null,null,{"$f":"IF('OBJECTIFS GENERAUX'!$G$32=\"x\",'Actions Ligue-district'!B39,\"\")","v":""},null,null,null,null,null,null,{"$f":"IF('OBJECTIFS GENERAUX'!$G$32=\"x\",\"x\",\"\")","v":""},511]
[{"$f":"IF(OR('OBJECTIFS GENERAUX'!$G$32=\"x\",'OBJECTIFS GENERAUX'!$G$33=\"x\",'OBJECTIFS GENERAUX'!$G$34=\"x\"),Feuil3!C33,\"\")","v":""},{"$f":"IF(OR('OBJECTIFS GENERAUX'!$G$32=\"x\",'OBJECTIFS GENERAUX'!$G$33=\"x\",'OBJECTIFS GENERAUX'!$G$34=\"x\"),Feuil3!D34,\"\")","v":""},{"$f":"IF(OR('OBJECTIFS GENERAUX'!$G$32=\"x\",'OBJECTIFS GENERAUX'!$G$33=\"x\",'OBJECTIFS GENERAUX'!$G$34=\"x\"),Feuil3!D35,\"\")","v":""},null,null,null,null,null,null,{"$f":"IF(OR('OBJECTIFS GENERAUX'!$G$32=\"x\",'OBJECTIFS GENERAUX'!$G$33=\"x\",'OBJECTIFS GENERAUX'!$G$34=\"x\"),\"x\",\"\")","v":""},512]
[null,null,{"$f":"IF(OR('OBJECTIFS GENERAUX'!$G$32=\"x\",'OBJECTIFS GENERAUX'!$G$33=\"x\",'OBJECTIFS GENERAUX'!$G$34=\"x\"),Feuil3!D36,\"\")","v":""},null,null,null,null,null,null,{"$f":"IF(OR('OBJECTIFS GENERAUX'!$G$32=\"x\",'OBJECTIFS GENERAUX'!$G$33=\"x\",'OBJECTIFS GENERAUX'!$G$34=\"x\"),\"x\",\"\")","v":""},513]
[null,null,{"$f":"IF(OR('OBJECTIFS GENERAUX'!$G$32=\"x\",'OBJECTIFS GENERAUX'!$G$33=\"x\",'OBJECTIFS GENERAUX'!$G$34=\"x\"),Feuil3!D37,\"\")","v":""},null,null,null,null,null,null,{"$f":"IF(OR('OBJECTIFS GENERAUX'!$G$32=\"x\",'OBJECTIFS GENERAUX'!$G$33=\"x\",'OBJECTIFS GENERAUX'!$G$34=\"x\"),\"x\",\"\")","v":""},514]
[null,null,{"$f":"IF(OR('OBJECTIFS GENERAUX'!$G$32=\"x\",'OBJECTIFS GENERAUX'!$G$33=\"x\",'OBJECTIFS GENERAUX'!$G$34=\"x\"),Feuil3!D38,\"\")","v":""},null,null,null,null,null,null,{"$f":"IF(OR('OBJECTIFS GENERAUX'!$G$32=\"x\",'OBJECTIFS GENERAUX'!$G$33=\"x\",'OBJECTIFS GENERAUX'!$G$34=\"x\"),\"x\",\"\")","v":""},515]
[null,null,{"$f":"IF(OR('OBJECTIFS GENERAUX'!$G$32=\"x\",'OBJECTIFS GENERAUX'!$G$33=\"x\",'OBJECTIFS GENERAUX'!$G$34=\"x\"),Feuil3!D39,\"\")","v":""},null,null,null,null,null,null,{"$f":"IF(OR('OBJECTIFS GENERAUX'!$G$32=\"x\",'OBJECTIFS GENERAUX'!$G$33=\"x\",'OBJECTIFS GENERAUX'!$G$34=\"x\"),\"x\",\"\")","v":""},516]
[null,null,{"$f":"IF(OR('OBJECTIFS GENERAUX'!$G$32=\"x\",'OBJECTIFS GENERAUX'!$G$33=\"x\",'OBJECTIFS GENERAUX'!$G$34=\"x\"),Feuil3!D40,\"\")","v":""},null,null,null,null,null,null,{"$f":"IF(OR('OBJECTIFS GENERAUX'!$G$32=\"x\",'OBJECTIFS GENERAUX'!$G$33=\"x\",'OBJECTIFS GENERAUX'!$G$34=\"x\"),\"x\",\"\")","v":""},517]
[null,null,{"$f":"IF(OR('OBJECTIFS GENERAUX'!$G$32=\"x\",'OBJECTIFS GENERAUX'!$G$33=\"x\",'OBJECTIFS GENERAUX'!$G$34=\"x\"),Feuil3!D41,\"\")","v":""},null,null,null,null,null,null,{"$f":"IF(OR('OBJECTIFS GENERAUX'!$G$32=\"x\",'OBJECTIFS GENERAUX'!$G$33=\"x\",'OBJECTIFS GENERAUX'!$G$34=\"x\"),\"x\",\"\")","v":""},518]
[null,null,{"$f":"IF(OR('OBJECTIFS GENERAUX'!$G$32=\"x\",'OBJECTIFS GENERAUX'!$G$33=\"x\",'OBJECTIFS GENERAUX'!$G$34=\"x\"),Feuil3!D43,\"\")","v":""},null,null,null,null,null,null,{"$f":"IF(OR('OBJECTIFS GENERAUX'!$G$32=\"x\",'OBJECTIFS GENERAUX'!$G$33=\"x\",'OBJECTIFS GENERAUX'!$G$34=\"x\"),\"x\",\"\")","v":""},519]
[null,null,{"$f":"IF(OR('OBJECTIFS GENERAUX'!$G$32=\"x\",'OBJECTIFS GENERAUX'!$G$33=\"x\",'OBJECTIFS GENERAUX'!$G$34=\"x\"),Feuil3!D44,\"\")","v":""},null,null,null,null,null,null,{"$f":"IF(OR('OBJECTIFS GENERAUX'!$G$32=\"x\",'OBJECTIFS GENERAUX'!$G$33=\"x\",'OBJECTIFS GENERAUX'!$G$34=\"x\"),\"x\",\"\")","v":""},520]
[null,null,{"$f":"IF(OR('OBJECTIFS GENERAUX'!$G$32=\"x\",'OBJECTIFS GENERAUX'!$G$33=\"x\",'OBJECTIFS GENERAUX'!$G$34=\"x\"),Feuil3!D45,\"\")","v":""},null,null,null,null,null,null,{"$f":"IF(OR('OBJECTIFS GENERAUX'!$G$32=\"x\",'OBJECTIFS GENERAUX'!$G$33=\"x\",'OBJECTIFS GENERAUX'!$G$34=\"x\"),\"x\",\"\")","v":""},521]
[null,null,{"$f":"IF('OBJECTIFS GENERAUX'!$G$33=\"x\",'Actions Ligue-district'!B40,\"\")","v":""},null,null,null,null,null,null,{"$f":"IF('OBJECTIFS GENERAUX'!$G$33=\"x\",\"x\",\"\")","v":""},522]
[null,null,{"$f":"IF('OBJECTIFS GENERAUX'!$G$34=\"x\",'Actions Ligue-district'!B41,\"\")","v":""},null,null,null,null,null,null,{"$f":"IF('OBJECTIFS GENERAUX'!$G$34=\"x\",\"x\",\"\")","v":""},523]
[]
[]
["Plan d’actions volet éducatif"]
[]
[null,null,null,"Saison N"]
["Objectif général","Axe d'amélioration","Intitulé des actions et résultats envisagés","1er trimestre","2ème trimestre","3ème trimestre","Nom du responsable","Objectifs envisagés","Actions réalisées"]
[{"$f":"IF('OBJECTIFS GENERAUX'!$B$55=\"x\",Feuil3!$E$1,\"\")","v":""},{"$f":"IF('OBJECTIFS GENERAUX'!$B$55=\"x\",Feuil3!F2,\"\")","v":""},{"$f":"IF('OBJECTIFS GENERAUX'!$B$55=\"x\",Feuil3!F3,\"\")","v":""},null,null,null,null,null,null,{"$f":"IF('OBJECTIFS GENERAUX'!$B$55=\"x\",\"x\",\"\")","v":""},111]
[null,null,{"$f":"IF('OBJECTIFS GENERAUX'!$B$55=\"x\",Feuil3!F4,\"\")","v":""},null,null,null,null,null,null,{"$f":"IF('OBJECTIFS GENERAUX'!$B$55=\"x\",\"x\",\"\")","v":""},112]
[null,null,{"$f":"IF('OBJECTIFS GENERAUX'!$B$55=\"x\",Feuil3!F5,\"\")","v":""},null,null,null,null,null,null,{"$f":"IF('OBJECTIFS GENERAUX'!$B$55=\"x\",\"x\",\"\")","v":""},113]
[null,null,{"$f":"IF('OBJECTIFS GENERAUX'!$B$55=\"x\",Feuil3!F6,\"\")","v":""},null,null,null,null,null,null,{"$f":"IF('OBJECTIFS GENERAUX'!$B$55=\"x\",\"x\",\"\")","v":""},114]
[null,null,{"$f":"IF('OBJECTIFS GENERAUX'!$B$55=\"x\",Feuil3!F7,\"\")","v":""},null,null,null,null,null,null,{"$f":"IF('OBJECTIFS GENERAUX'!$B$55=\"x\",\"x\",\"\")","v":""},115]
[null,null,{"$f":"IF('OBJECTIFS GENERAUX'!$B$55=\"x\",'Actions Ligue-district'!B44,\"\")","v":""},null,null,null,null,null,null,{"$f":"IF('OBJECTIFS GENERAUX'!$B$55=\"x\",\"x\",\"\")","v":""},116]
[{"$f":"IF('OBJECTIFS GENERAUX'!$B$56=\"x\",Feuil3!$E$1,\"\")","v":""},{"$f":"IF('OBJECTIFS GENERAUX'!$B$56=\"x\",Feuil3!F7,\"\")","v":""},{"$f":"IF('OBJECTIFS GENERAUX'!$B$56=\"x\",Feuil3!F8,\"\")","v":""},null,null,null,null,null,null,{"$f":"IF('OBJECTIFS GENERAUX'!$B$56=\"x\",\"x\",\"\")","v":""},121]
[null,null,{"$f":"IF('OBJECTIFS GENERAUX'!$B$56=\"x\",Feuil3!F9,\"\")","v":""},null,null,null,null,null,null,{"$f":"IF('OBJECTIFS GENERAUX'!$B$56=\"x\",\"x\",\"\")","v":""},122]
[null,null,{"$f":"IF('OBJECTIFS GENERAUX'!$B$56=\"x\",Feuil3!F10,\"\")","v":""},null,null,null,null,null,null,{"$f":"IF('OBJECTIFS GENERAUX'!$B$56=\"x\",\"x\",\"\")","v":""},123]
[null,null,{"$f":"IF('OBJECTIFS GENERAUX'!$B$56=\"x\",'Actions Ligue-district'!B45,\"\")","v":""},null,null,null,null,null,null,{"$f":"IF('OBJECTIFS GENERAUX'!$B$56=\"x\",\"x\",\"\")","v":""},124]
[{"$f":"IF('OBJECTIFS GENERAUX'!$B$58=\"x\",Feuil3!E11,\"\")","v":""},{"$f":"IF('OBJECTIFS GENERAUX'!$B$58=\"x\",Feuil3!F12,\"\")","v":""},{"$f":"IF('OBJECTIFS GENERAUX'!$B$58=\"x\",Feuil3!F13,\"\")","v":""},null,null,null,null,null,null,{"$f":"IF('OBJECTIFS GENERAUX'!$B$58=\"x\",\"x\",\"\")","v":""},211]
[null,null,{"$f":"IF('OBJECTIFS GENERAUX'!$B$58=\"x\",Feuil3!F14,\"\")","v":""},null,null,null,null,null,null,{"$f":"IF('OBJECTIFS GENERAUX'!$B$58=\"x\",\"x\",\"\")","v":""},212]
[null,null,{"$f":"IF('OBJECTIFS GENERAUX'!$B$58=\"x\",Feuil3!F15,\"\")","v":""},null,null,null,null,null,null,{"$f":"IF('OBJECTIFS GENERAUX'!$B$58=\"x\",\"x\",\"\")","v":""},213]
[null,null,{"$f":"IF('OBJECTIFS GENERAUX'!$B$58=\"x\",Feuil3!F16,\"\")","v":""},null,null,null,null,null,null,{"$f":"IF('OBJECTIFS GENERAUX'!$B$58=\"x\",\"x\",\"\")","v":""},214]
[null,null,{"$f":"IF('OBJECTIFS GENERAUX'!$B$58=\"x\",Feuil3!F17,\"\")","v":""},null,null,null,null,null,null,{"$f":"IF('OBJECTIFS GENERAUX'!$B$58=\"x\",\"x\",\"\")","v":""},215]
[null,null,{"$f":"IF('OBJECTIFS GENERAUX'!$B$58=\"x\",'Actions Ligue-district'!B47,\"\")","v":""},null,null,null,null,null,null,{"$f":"IF('OBJECTIFS GENERAUX'!$B$58=\"x\",\"x\",\"\")","v":""},216]
[{"$f":"IF('OBJECTIFS GENERAUX'!$B$59=\"x\",Feuil3!E11,\"\")","v":""},{"$f":"IF('OBJECTIFS GENERAUX'!$B$59=\"x\",Feuil3!F18,\"\")","v":""},{"$f":"IF('OBJECTIFS GENERAUX'!$B$59=\"x\",Feuil3!F19,\"\")","v":""},null,null,null,null,null,null,{"$f":"IF('OBJECTIFS GENERAUX'!$B$59=\"x\",\"x\",\"\")","v":""},221]
[null,null,{"$f":"IF('OBJECTIFS GENERAUX'!$B$59=\"x\",Feuil3!F20,\"\")","v":""},null,null,null,null,null,null,{"$f":"IF('OBJECTIFS GENERAUX'!$B$59=\"x\",\"x\",\"\")","v":""},222]
[null,null,{"$f":"IF('OBJECTIFS GENERAUX'!$B$59=\"x\",Feuil3!F21,\"\")","v":""},null,null,null,null,null,null,{"$f":"IF('OBJECTIFS GENERAUX'!$B$59=\"x\",\"x\",\"\")","v":""},223]
[null,null,{"$f":"IF('OBJECTIFS GENERAUX'!$B$59=\"x\",Feuil3!F22,\"\")","v":""},null,null,null,null,null,null,{"$f":"IF('OBJECTIFS GENERAUX'!$B$59=\"x\",\"x\",\"\")","v":""},224]
[null,null,{"$f":"IF('OBJECTIFS GENERAUX'!$B$59=\"x\",Feuil3!F23,\"\")","v":""},null,null,null,null,null,null,{"$f":"IF('OBJECTIFS GENERAUX'!$B$59=\"x\",\"x\",\"\")","v":""},225]
[null,null,{"$f":"IF('OBJECTIFS GENERAUX'!$B$59=\"x\",'Actions Ligue-district'!B48,\"\")","v":""},null,null,null,null,null,null,{"$f":"IF('OBJECTIFS GENERAUX'!$B$59=\"x\",\"x\",\"\")","v":""},226]
[{"$f":"IF('OBJECTIFS GENERAUX'!$G$55=\"x\",Feuil3!E24,\"\")","v":""},{"$f":"IF('OBJECTIFS GENERAUX'!$G$55=\"x\",Feuil3!F25,\"\")","v":""},{"$f":"IF('OBJECTIFS GENERAUX'!$G$55=\"x\",Feuil3!F26,\"\")","v":""},null,null,null,null,null,null,{"$f":"IF('OBJECTIFS GENERAUX'!$G$55=\"x\",\"x\",\"\")","v":""},311]
[null,null,{"$f":"IF('OBJECTIFS GENERAUX'!$G$55=\"x\",Feuil3!F27,\"\")","v":""},null,null,null,null,null,null,{"$f":"IF('OBJECTIFS GENERAUX'!$G$55=\"x\",\"x\",\"\")","v":""},312]
[null,null,{"$f":"IF('OBJECTIFS GENERAUX'!$G$55=\"x\",Feuil3!F28,\"\")","v":""},null,null,null,null,null,null,{"$f":"IF('OBJECTIFS GENERAUX'!$G$55=\"x\",\"x\",\"\")","v":""},313]
[null,null,{"$f":"IF('OBJECTIFS GENERAUX'!$G$55=\"x\",Feuil3!F29,\"\")","v":""},null,null,null,null,null,null,{"$f":"IF('OBJECTIFS GENERAUX'!$G$55=\"x\",\"x\",\"\")","v":""},314]
[null,null,{"$f":"IF('OBJECTIFS GENERAUX'!$G$55=\"x\",Feuil3!F30,\"\")","v":""},null,null,null,null,null,null,{"$f":"IF('OBJECTIFS GENERAUX'!$G$55=\"x\",\"x\",\"\")","v":""},315]
[null,null,{"$f":"IF('OBJECTIFS GENERAUX'!$G$55=\"x\",'Actions Ligue-district'!B50,\"\")","v":""},null,null,null,null,null,null,{"$f":"IF('OBJECTIFS GENERAUX'!$G$55=\"x\",\"x\",\"\")","v":""},315]
[]
[]
["Plan d’actions volet Encadrement et Formation"]
[]
[null,null,null,"Saison N"]
["Objectif général","Axe d'amélioration","Intitulé des actions et résultats envisagés","1er trimestre","2ème trimestre","3ème trimestre","Nom du responsable","Objectifs envisagés","Actions réalisées"]
[{"$f":"IF('OBJECTIFS GENERAUX'!$B$70=\"x\",Feuil3!$G$1,\"\")","v":""},{"$f":"IF('OBJECTIFS GENERAUX'!$B$70=\"x\",Feuil3!H2,\"\")","v":""},{"$f":"IF('OBJECTIFS GENERAUX'!$B$70=\"x\",Feuil3!H3,\"\")","v":""},null,null,null,null,null,null,{"$f":"IF('OBJECTIFS GENERAUX'!$B$70=\"x\",\"x\",\"\")","v":""},111]
[null,null,{"$f":"IF('OBJECTIFS GENERAUX'!$B$70=\"x\",Feuil3!H4,\"\")","v":""},null,null,null,null,null,null,{"$f":"IF('OBJECTIFS GENERAUX'!$B$70=\"x\",\"x\",\"\")","v":""},112]
[null,null,{"$f":"IF('OBJECTIFS GENERAUX'!$B$70=\"x\",Feuil3!H5,\"\")","v":""},null,null,null,null,null,null,{"$f":"IF('OBJECTIFS GENERAUX'!$B$70=\"x\",\"x\",\"\")","v":""},113]
[{"$f":"IF('OBJECTIFS GENERAUX'!$B$70=\"x\",Feuil3!$G$1,\"\")","v":""},{"$f":"IF('OBJECTIFS GENERAUX'!$B$70=\"x\",Feuil3!H6,\"\")","v":""},{"$f":"IF('OBJECTIFS GENERAUX'!$B$70=\"x\",Feuil3!H6,\"\")","v":""},null,null,null,null,null,null,{"$f":"IF('OBJECTIFS GENERAUX'!$B$70=\"x\",\"x\",\"\")","v":""},114]
[null,null,{"$f":"IF('OBJECTIFS GENERAUX'!$B$70=\"x\",Feuil3!H7,\"\")","v":""},null,null,null,null,null,null,{"$f":"IF('OBJECTIFS GENERAUX'!$B$70=\"x\",\"x\",\"\")","v":""},115]
[null,null,{"$f":"IF('OBJECTIFS GENERAUX'!$B$70=\"x\",Feuil3!H8,\"\")","v":""},null,null,null,null,null,null,{"$f":"IF('OBJECTIFS GENERAUX'!$B$70=\"x\",\"x\",\"\")","v":""},116]
[null,null,{"$f":"IF('OBJECTIFS GENERAUX'!$B$70=\"x\",'Actions Ligue-district'!B53,\"\")","v":""},null,null,null,null,null,null,{"$f":"IF('OBJECTIFS GENERAUX'!$B$70=\"x\",\"x\",\"\")","v":""},117]
[{"$f":"IF('OBJECTIFS GENERAUX'!$B$71=\"x\",Feuil3!$G$1,\"\")","v":""},{"$f":"IF('OBJECTIFS GENERAUX'!$B$71=\"x\",Feuil3!H10,\"\")","v":""},{"$f":"IF('OBJECTIFS GENERAUX'!$B$71=\"x\",Feuil3!H11,\"\")","v":""},null,null,null,null,null,null,{"$f":"IF('OBJECTIFS GENERAUX'!$B$71=\"x\",\"x\",\"\")","v":""},121]
[null,null,{"$f":"IF('OBJECTIFS GENERAUX'!$B$71=\"x\",Feuil3!H12,\"\")","v":""},null,null,null,null,null,null,{"$f":"IF('OBJECTIFS GENERAUX'!$B$71=\"x\",\"x\",\"\")","v":""},122]
[null,null,{"$f":"IF('OBJECTIFS GENERAUX'!$B$71=\"x\",Feuil3!H13,\"\")","v":""},null,null,null,null,null,null,{"$f":"IF('OBJECTIFS GENERAUX'!$B$71=\"x\",\"x\",\"\")","v":""},123]
[null,null,{"$f":"IF('OBJECTIFS GENERAUX'!$B$71=\"x\",'Actions Ligue-district'!B54,\"\")","v":""},null,null,null,null,null,null,{"$f":"IF('OBJECTIFS GENERAUX'!$B$71=\"x\",\"x\",\"\")","v":""},124]
[{"$f":"IF('OBJECTIFS GENERAUX'!$B$72=\"x\",Feuil3!$G$1,\"\")","v":""},{"$f":"IF('OBJECTIFS GENERAUX'!$B$72=\"x\",Feuil3!H14,\"\")","v":""},{"$f":"IF('OBJECTIFS GENERAUX'!$B$72=\"x\",Feuil3!H15,\"\")","v":""},null,null,null,null,null,null,{"$f":"IF('OBJECTIFS GENERAUX'!$B$72=\"x\",\"x\",\"\")","v":""},131]
[null,null,{"$f":"IF('OBJECTIFS GENERAUX'!$B$72=\"x\",'Actions Ligue-district'!B55,\"\")","v":""},null,null,null,null,null,null,{"$f":"IF('OBJECTIFS GENERAUX'!$B$72=\"x\",\"x\",\"\")","v":""},132]
[{"$f":"IF('OBJECTIFS GENERAUX'!$B$73=\"x\",Feuil3!$G$1,\"\")","v":""},{"$f":"IF('OBJECTIFS GENERAUX'!$B$73=\"x\",Feuil3!H16,\"\")","v":""},{"$f":"IF('OBJECTIFS GENERAUX'!$B$73=\"x\",Feuil3!H17,\"\")","v":""},null,null,null,null,null,null,{"$f":"IF('OBJECTIFS GENERAUX'!$B$73=\"x\",\"x\",\"\")","v":""},141]
[null,null,{"$f":"IF('OBJECTIFS GENERAUX'!$B$73=\"x\",Feuil3!H18,\"\")","v":""},null,null,null,null,null,null,{"$f":"IF('OBJECTIFS GENERAUX'!$B$73=\"x\",\"x\",\"\")","v":""},142]
[null,null,{"$f":"IF('OBJECTIFS GENERAUX'!$B$73=\"x\",Feuil3!H19,\"\")","v":""},null,null,null,null,null,null,{"$f":"IF('OBJECTIFS GENERAUX'!$B$73=\"x\",\"x\",\"\")","v":""},143]
[null,null,{"$f":"IF('OBJECTIFS GENERAUX'!$B$73=\"x\",Feuil3!H20,\"\")","v":""},null,null,null,null,null,null,{"$f":"IF('OBJECTIFS GENERAUX'!$B$73=\"x\",\"x\",\"\")","v":""},144]
[null,null,{"$f":"IF('OBJECTIFS GENERAUX'!$B$73=\"x\",Feuil3!H21,\"\")","v":""},null,null,null,null,null,null,{"$f":"IF('OBJECTIFS GENERAUX'!$B$73=\"x\",\"x\",\"\")","v":""},145]
[null,null,{"$f":"IF('OBJECTIFS GENERAUX'!$B$73=\"x\",'Actions Ligue-district'!B56,\"\")","v":""},null,null,null,null,null,null,{"$f":"IF('OBJECTIFS GENERAUX'!$B$73=\"x\",\"x\",\"\")","v":""},146]
[{"$f":"IF('OBJECTIFS GENERAUX'!$B$74=\"x\",Feuil3!$G$1,\"\")","v":""},{"$f":"IF('OBJECTIFS GENERAUX'!$B$74=\"x\",Feuil3!H22,\"\")","v":""},{"$f":"IF('OBJECTIFS GENERAUX'!$B$74=\"x\",Feuil3!H23,\"\")","v":""},null,null,null,null,null,null,{"$f":"IF('OBJECTIFS GENERAUX'!$B$74=\"x\",\"x\",\"\")","v":""},151]
[null,null,{"$f":"IF('OBJECTIFS GENERAUX'!$B$74=\"x\",Feuil3!H24,\"\")","v":""},null,null,null,null,null,null,{"$f":"IF('OBJECTIFS GENERAUX'!$B$74=\"x\",\"x\",\"\")","v":""},152]
[null,null,{"$f":"IF('OBJECTIFS GENERAUX'!$B$74=\"x\",Feuil3!H25,\"\")","v":""},null,null,null,null,null,null,{"$f":"IF('OBJECTIFS GENERAUX'!$B$74=\"x\",\"x\",\"\")","v":""},153]
[null,null,{"$f":"IF('OBJECTIFS GENERAUX'!$B$74=\"x\",'Actions Ligue-district'!B57,\"\")","v":""},null,null,null,null,null,null,{"$f":"IF('OBJECTIFS GENERAUX'!$B$74=\"x\",\"x\",\"\")","v":""},154]
[{"$f":"IF('OBJECTIFS GENERAUX'!$G$70=\"x\",Feuil3!G26,\"\")","v":""},{"$f":"IF('OBJECTIFS GENERAUX'!$G$70=\"x\",Feuil3!H27,\"\")","v":""},{"$f":"IF('OBJECTIFS GENERAUX'!$G$70=\"x\",Feuil3!H28,\"\")","v":""},null,null,null,null,null,null,{"$f":"IF('OBJECTIFS GENERAUX'!$G$70=\"x\",\"x\",\"\")","v":""},211]
[null,null,{"$f":"IF('OBJECTIFS GENERAUX'!$G$70=\"x\",Feuil3!H29,\"\")","v":""},null,null,null,null,null,null,{"$f":"IF('OBJECTIFS GENERAUX'!$G$70=\"x\",\"x\",\"\")","v":""},212]
[null,null,{"$f":"IF('OBJECTIFS GENERAUX'!$G$70=\"x\",Feuil3!H30,\"\")","v":""},null,null,null,null,null,null,{"$f":"IF('OBJECTIFS GENERAUX'!$G$70=\"x\",\"x\",\"\")","v":""},213]
[null,null,{"$f":"IF('OBJECTIFS GENERAUX'!$G$70=\"x\",Feuil3!H31,\"\")","v":""},null,null,null,null,null,null,{"$f":"IF('OBJECTIFS GENERAUX'!$G$70=\"x\",\"x\",\"\")","v":""},214]
[null,null,{"$f":"IF('OBJECTIFS GENERAUX'!$G$70=\"x\",'Actions Ligue-district'!B59,\"\")","v":""},null,null,null,null,null,null,{"$f":"IF('OBJECTIFS GENERAUX'!$G$70=\"x\",\"x\",\"\")","v":""},215]
[{"$f":"IF('OBJECTIFS GENERAUX'!$G$71=\"x\",Feuil3!G26,\"\")","v":""},{"$f":"IF('OBJECTIFS GENERAUX'!$G$71=\"x\",Feuil3!H32,\"\")","v":""},{"$f":"IF('OBJECTIFS GENERAUX'!$G$71=\"x\",Feuil3!H33,\"\")","v":""},null,null,null,null,null,null,{"$f":"IF('OBJECTIFS GENERAUX'!$G$71=\"x\",\"x\",\"\")","v":""},221]
[null,null,{"$f":"IF('OBJECTIFS GENERAUX'!$G$71=\"x\",Feuil3!H34,\"\")","v":""},null,null,null,null,null,null,{"$f":"IF('OBJECTIFS GENERAUX'!$G$71=\"x\",\"x\",\"\")","v":""},222]
[null,null,{"$f":"IF('OBJECTIFS GENERAUX'!$G$71=\"x\",Feuil3!H35,\"\")","v":""},null,null,null,null,null,null,{"$f":"IF('OBJECTIFS GENERAUX'!$G$71=\"x\",\"x\",\"\")","v":""},223]
[null,null,{"$f":"IF('OBJECTIFS GENERAUX'!$G$71=\"x\",Feuil3!H36,\"\")","v":""},null,null,null,null,null,null,{"$f":"IF('OBJECTIFS GENERAUX'!$G$71=\"x\",\"x\",\"\")","v":""},224]
[null,null,{"$f":"IF('OBJECTIFS GENERAUX'!$G$71=\"x\",'Actions Ligue-district'!B60,\"\")","v":""},null,null,null,null,null,null,{"$f":"IF('OBJECTIFS GENERAUX'!$G$71=\"x\",\"x\",\"\")","v":""},225]

{"sheet":"Feuil3","index":4,"n_rows":122,"n_cols":8,"rows_kept":122,"cut":false,"hidden":true,"merged":[[1,6,8,6],[21,6,24,6],[26,6,30,6],[31,6,35,6],[9,6,12,6],[13,6,14,6],[15,6,20,6],[97,0,100,0],[88,0,93,0],[94,0,96,0],[14,2,17,2],[19,2,23,2],[24,2,26,2],[1,3,2,3],[67,0,69,0],[70,0,77,0],[79,0,83,0],[84,0,87,0],[37,0,41,0],[29,0,36,0],[42,0,48,0],[49,0,60,0],[62,0,66,0],[1,0,7,0],[8,0,15,0],[17,0,27,0],[4,2,8,2],[9,2,13,2],[1,4,5,4],[6,4,9,4],[11,4,16,4],[17,4,22,4],[24,4,29,4]]}
["Augmenter l'effectif jeunes",null,"Développer le nombre d'équipes engagées",null,"Améliorer la structuration du PEF","N","Améliorer l'encadrement"]
["Des joueurs","Développer la pratique jeune ","Développer le nombre d'équipes garçons","volet asso dév pratique jeune et féminine","Améliorer et ou créer la structuration du PEF","Améliorer ou créer la structuration du PEF","Structuration du club","Améliorer la structuration technique du club "]
[null,"Animer un cycle foot dans les écoles primaires","Développer le nombre d'équipes filles",null,null,"Mettre en place un référent PEF avec un bon profil",null,"Mettre en place un organigramme technique du club en fonction des disidératas et des compétences"]
[null,"Intervenir dans le temps periscolaire","Créer et ou optimiser une équipe techinque",null,null,"Aller vers la formation CFF4",null,"Tendre vers une équipe = 1 éducateur avec le bon niveau de diplôme ou de formation"]
[null,"Animer des séances dans les C.L.V.","Programmations et ou des contenus d'entrainements","Harmoniser la formation des jeunes ",null,"Créer une commission avec un représentant de tous ",null,"Mettre en place des commissions en fonction du club"]
[null,"Organiser des portes ouvertes",null,"Créer une programmation pour le cursus de formation (U6 - U19 garçons et filles)",null,"les acteurs du club (dirigeants, éducateurs, joueur, parent, arbitres…)",null,"Améliorer la structuration fonctionnelle du club "]
[null,"Organiser des stages vacances",null,"Mise en place d'un classeur technique contenant des procédés techniques \"types\" …","Concevoir une programmation","Concevoir une programmation",null,"Mettre en place un organigramme fonctionnel du club en fonction des disidératas et des compétences"]
[null,"Tendre vers une catégorie d'age = une équipe",null,"Suivre les joueurs/ses détectés par les instances fédérales",null,"Connaitre ses besoins",null,"Tendre vers une fonction = 1 dirigeant avec le bon niveau de diplôme ou de formation"]
["Des joueuses","Développer la pratique féminine ",null,"Créer des documents pas catégories sur la programmation avec des cylces",null,"Se servir des stages vacances",null,"Inscrire des personnes aux formations du parcours de formation du dirigeant bénévole"]
[null,"Identifier/recruter/former un ou une éducatrice","Mettre en place des réunions d'éducateurs","Optimiser les compétences ",null,"Balayer toutes les catégories","La sécurité des adhérents","Améliorer la sécurité des adhérents "]
[null,"Ouvrir une EFF",null,"Mettre en place des réunions avec des thèmes techniques","Améliorer le déploiement du PEF","N",null,"Mettre en place une formation PSC1 en interne"]
[null,"Créer ou se servir des outils de communication",null,"1 réunion par vacance scolaire","Optimiser le travail de la Commission","Optimiser le travail de la commission",null,"Etablir une fiche de renseignement"]
[null,"Organiser des journées portes ouvertes",null,"Intervention de \"spécialistes\" (du club ou de personnes extérieur",null,"Mettre en place des actions sur l'ensemble des catégories des thèmes",null,"1 équipe = 1 personne formée au geste qui sauvent"]
[null,"Mettre en place la fiche d'information",null,"Séance terrain entre éducateurs du cluv (par pôle ou sur l'ensemble des pôles)",null,"Mettre à disposition les outils","Féminiser l'encadrement","Féminiser l'encardement "]
[null,"Accueillir des licenciées féminines qui jouent avec les garçons","Améliorer les méthodes pédagogiques utilisées","Optimiser et améliorer les compétences",null,"Parler du PEF dans les différentes commissions",null,"Proposer aux femmes (aux mamans) le module U7"]
[null,"Créer une équipe féminine",null,"Envoyer les encadrants aux modules ou CFF correspondant à la catégorie encadrée",null,"Priviligier le ludique","Former les encadrants","Former les encadrants"]
["Fidéliser l'effectif jeunes",null,null,"Suivre les \"recyclages\" organisés par les instances",null,"Rendre acteur les enfants",null,"Proposer à tous les encadrants (parents qui donnent un coup de main, éducateurs…) de se former"]
["Des joueurs / des joueuses","Améliorer la qualité de l'accueil ",null,"Faire des \"recyclage\" en interne","Implication des éducateurs","Impliquer tous les éducateurs et autres :",null,"Proposer des formation correspondantes à la catégorie concernée"]
[null,"Déterminer un référent accueil","Améliorer les participations et normes d'entrainements",null,null,"Mettre en place des ateliers au cours des plateaux",null,"Tendre vers 1 équipe = le diplôme correspondant"]
[null,"Animation du club house avant les entrainements","Participer aux journées et plateaux garçons et filles","Tendre vers une équipe par catégorie d'âge (G et F)",null,"Mettre en place des opérations \"coup de poing\"",null,"Former les spécialistes"]
[null,"Tenues identiques",null,"Participer aux journées de rentrées, plateaux de noël, critérium, journée nationale…",null,"Profiter du mauvais temps pour faire du PEF",null,"Proposer le CFF4 à tous les dirrigeants"]
[null,"Journal interne",null,"Participer à toutes les réunions avec les bonnes personnes ",null,"Impliquer les parents","Trouver des jeunes arbitres","Trouver de jeunes arbitres"]
[null,"Anniversaires",null,"Faire des points d'infos au cours des réunions du club",null,"Impliquer des acteurs extérieurs (centre de tri, kiné, diététique...)",null,"Se rapprocher du CTRA"]
[null,"Améliorer le pouvoir de fidélisation ",null,"Se proposer pour acceuillir des journées promo de la FFF (journées d'accueils...)","Améliorer  la communication du PEF","N",null,"Propser des jeux en lien avec les lois du jeu PEF"]
[null,"Former une personne au module associatif et ou dirigeant","Développer le perfectionnement gardien de but","Améliorer la formation des GB ","Valoriser le PEF","Valoriser la mise en place du PEF :",null,"Informer"]
[null,"Création d'une commission animation",null,"Former un spécialiste GB (CFF GB)",null,"Utiliser les \"lettres types\" à destination des parents, collectivités et partenaires","Fidéliser l'encadrement"]
[null,"Mise en place d'initiatives envers les jeunes",null,"Mettre en place des spécifiques par catégories",null,"Valoriser les actions sur tous les supports de communication","Valoriser les encadrants","Valoriser les encadrants"]
[null,"Création d'une commission des parents","Créer une section sportive","Améliorer ou créer des relations avec l'EN",null,"Faire des demandes CNDS",null,"Proposer des formations"]
["Augmenter l'effectif dirigeants",null,null,"Prendre contact avec les collèges et Lycées",null,"Participer au trophée Philippe SEGUIN",null,"Mettre a disposition du matériel péda de qualité"]
["Avec des parents","Intégrer les parents à la vie du club ",null,"Recenser, identifier les forces du club ",null,"Inviter les médias",null,"Accompagner et tutorer"]
[null,"Etablir une fiche de renseignements à faire compléter aux parents ",null,"Ouvrir des classes à horaires aménagés",null,null,null,"Organiser des soirées pour récompenser"]
[null,"Organisation du turn over du lavage des maillots, des goûters, co-voiturage…",null,"Orienter les meilleurs joueurs vers la section la plus proche",null,null,"Renforcer l'identité club","Renforcer l'identité du club "]
[null,"Communiquer auprès des parents, newsletter…","Proposer des pratiques nouvelles",null,null,null,null,"Proposer des équipements aux couleurs du club"]
[null,"Créer un challenge des dirigeants","Futsal","Diversifier la pratique ",null,null,null,"Mettre en place des entretiens individuels"]
[null,"Prix de la licence différent","Beach soccer","Participer aux actions ligue et district",null,null,null,"Proposer la défiscalisation"]
[null,"Création d'une commission des parents","Loisir pour les jeunes","Utilisation du GIFE",null,null,null,"Proposer d'animer des commissions"]
[null,"Mise en place d'activité autres (cuisine...)",null,"Proposer des entrainements spécifiques"]
["Avec des femmes","Recruter des femmes ",null,"Mise en place de journées découvertes"]
[null,"Voir les actions d'intégrations des parents",null,"Formation d'éducateur au CFF Futsal ou module Beach"]
[null,"Recrutement des mamans sur de actions ponctuelles",null,"Développer l'offre loisir"]
[null,"Leur faire passer le module d'Animatrice Fédérale de Football",null,"Faire la promotion de l'ouverture d'une \"section\" loisir et ou futsal pour les jeunes"]
[null,"Pensez aux institutrices"]
["Améliorer la sécurité opérationnelle","Améliorer la sécurité des pratiquants ",null,"Participation aux modules spécifiques"]
[null,"Se rapprocher des collectivités territoriales",null,"Faire de la promotion de l'ouverture de créneau ou de section"]
[null,"Acheter du matériel",null,"Proposer des créneaux futsal aux instances"]
[null,"Mettre en place une commission sécurité avec représentant de la commune"]
[null,"Mettre en place une formation interne pour tous (PSC1…)"]
[null,"Utiliser les ressources internes (infirmières, médecins...)"]
[null,"Utiliser le PEF"]
["Améliorer la qualité des installations","Améliorer les relations avec les collectivités territoriales"]
[null,"Programmer des entrevues pour l'utilisation des installations (terrains, gymnase…)"]
[null,"Inviter les élus à participer aux évènements sportifs et festifs du club"]
[null,"Se servir des résultats du label pour faire évoluer les choses"]
[null,"Préserver la qualité et propreté des vestiaires "]
[null,"Ranger le matériel"]
[null,"Mettre a disposition des poubelles, balais, raclettes"]
[null,"Mettre en place un turn over de nettoyage des vestiaires après les entrainements..."]
[null,"Programme éducatif fédéral (thème \"environnement\")"]
[null,"Préserver la qualité des terrains "]
[null,"Programmer les entrainements pour ne pas les surcharger (afficher le programme)"]
[null,"Mettre en place le travail spécifique en dehors du terrain (coordination...)"]
["Mettre en place des actions de promo et de recrutement"]
["Actions à l'école élémentaire","Améliorer les relations avec l'EN "]
[null,"Prendre contact avec le district pour la mise en place d'une action"]
[null,"Présentation du projet national Foot à l'école"]
[null,"Animer un cycle Foot dans les écoles primaires"]
[null,"Intervenir dans le temps periscolaire"]
["Journées portes ouvertes","Développer la pratique jeune "]
[null,"Animer des séances dans les C.L.V."]
[null,"Organiser des portes ouvertes"]
["Outils de communication","Améliorer la communication interne externe "]
[null,"Créer et faire vivre site internet/réseaux sociaux"]
[null,"Communiquer en interne sur les actions du club (journal, newsletter, affichage…)"]
[null,"Créer et diffuser le trombinoscope du club"]
[null,"Présenter l'équipe dirigeante aux nouveaux parents/licenciés"]
[null,"Diffuser le plus tôt possible le calendrier des manifestations du club"]
[null,"Diffuser des photos de la manifestation"]
[null,"Créer une journée de fin de saison avec les acteurs internes et externes des clubs"]
["Améliorer l'animation du club"]
["Le club house","Améliorer la qualité et l'utilisation du club house "]
[null,"Mettre en place une permanence, pendant les entrainements, stages, vacances…"]
[null,"Organiser des goûters, des anniversaires, des soirées…"]
[null,"Afficher les résultats, le calendrier, les rdv…"]
[null,"Décorer aux couleurs du club, valeurs..."]
["Actions d'intégrations des parents","Intégrer les parents à la vie du club "]
[null,"Etablir une fiche de renseignements à faire compléter aux parents (voir PJ)"]
[null,"Organisation du turn over du lavage des maillots, des goûters, co-voiturage…"]
[null,"Communiquer auprès des parents, newsletter…"]
["Initiatives en faveur des jeunes","Développer les initiatives en faveur des jeunes "]
[null,"Créer un conseil des jeunes"]
[null,"Organiser des voyages"]
[null,"Mettre en place un accompagnement scolaire"]
[null,"Organiser des stages vacances"]
[null,"Rendre les jeunes acteurs de leur club (organisation de tournoi de console…)"]
["Actions en direction du publics handicapés","Ouvrir les portes de son club aux différents publics "]
[null,"Se rapprocher de l'IME (ou autre) le plus proche…"]
[null,"Se rapprocher du District et ou de la direction départementale"]
["Représentation aux réunions des instances","Développer et entretenir les relations la \"FFF\""]
[null,"Participer à toutes les réunions avec les bonnes personnes "]
[null,"Faire des points d'infos au cours des réunions du club"]
[null,"Se proposer pour acceuillir des journées promo de la FFF (journées d'accueils...)"]
[]
[]
[]
[]
[]
[]
[]
[]
[]
[]
[]
[]
["2017/2018"]
["2018/2019","X"]
["2019/2020"]
["2020/2021"]
["2021/2022"]
["2022/2023"]
["2023/2024"]
["2024/2025"]
["2025/2026"]

{"sheet":"Visite évaluation","index":5,"n_rows":22,"n_cols":6,"rows_kept":22,"cut":false,"hidden":false,"merged":[[0,6,0,7],[4,5,4,7],[3,5,3,7],[2,5,2,7],[8,5,8,7],[7,5,7,7],[6,5,6,7],[5,5,5,7],[10,1,10,4],[10,5,10,8],[11,1,11,4],[11,5,11,8],[12,1,12,4],[12,5,12,8],[18,5,18,8],[13,1,13,4],[13,5,13,8],[14,1,14,4],[14,5,14,8],[15,1,15,4],[15,5,15,8],[22,0,24,7],[0,3,0,4],[5,3,5,4],[6,3,6,4],[7,3,7,4],[8,3,8,4],[19,1,19,4],[19,5,19,8],[2,3,2,4],[3,3,3,4],[4,3,4,4],[16,1,16,4],[16,5,16,8],[17,1,17,4],[17,5,17,8],[18,1,18,4]]}
["Visite d'évaluation :",null,null,{"$f":"'Page 1'!$A$7","v":"NOM DU CLUB"},null,"LE :"]
[]
["Représentants FFF :"]
[]
[]
["Représentants clubs :"]
[]
[]
[]
[]
[null,"Points Faibles",null,null,null,"Points Forts"]
[]
[]
[]
[]
[]
[]
[]
[]
[]
[]
["Commentaires :"]

{"sheet":"Visite N + 1","index":6,"n_rows":22,"n_cols":6,"rows_kept":22,"cut":false,"hidden":false,"merged":[[22,0,24,7],[17,1,17,4],[17,5,17,8],[18,1,18,4],[18,5,18,8],[19,1,19,4],[19,5,19,8],[14,1,14,4],[14,5,14,8],[15,1,15,4],[15,5,15,8],[16,1,16,4],[16,5,16,8],[11,1,11,4],[11,5,11,8],[12,1,12,4],[12,5,12,8],[13,1,13,4],[13,5,13,8],[7,3,7,4],[7,5,7,7],[8,3,8,4],[8,5,8,7],[10,1,10,4],[10,5,10,8],[4,3,4,4],[4,5,4,7],[5,3,5,4],[5,5,5,7],[6,3,6,4],[6,5,6,7],[0,3,0,4],[0,6,0,7],[2,3,2,4],[2,5,2,7],[3,3,3,4],[3,5,3,7]]}
["Visite N + 1 :",null,null,{"$f":"'Page 1'!$A$7","v":"NOM DU CLUB"},null,"LE :"]
[]
["Représentants FFF :"]
[]
[]
["Représentants clubs :"]
[]
[]
[]
[]
[null,"Points Faibles",null,null,null,"Points Forts"]
[]
[]
[]
[]
[]
[]
[]
[]
[]
[]
["Commentaires :"]

{"sheet":"Plan d'action N + 1","index":7,"n_rows":236,"n_cols":13,"rows_kept":236,"cut":false,"hidden":false,"merged":[[0,3,0,8],[3,3,3,8],[106,3,106,8],[167,3,167,8],[201,3,201,8]]}
["PLAN D'ACTIONS ",null,{"$f":"'Page 1'!$A$7","v":"NOM DU CLUB"},"2018/2019"]
[]
["Plan d’actions volet associatif"]
[null,null,null,"Saison N + 1"]
["Objectif général","Axe d'amélioration","Intitulé des actions et résultats envisagés","1er trimestre","2ème trimestre","3ème trimestre","Nom du responsable","Objectifs envisagés","Actions réalisées",null,null,null,"X"]
[{"$f":"IF('OBJECTIFS GENERAUX'!$C$9=\"x\",Feuil3!$A$1,\"\")","v":""},{"$f":"IF('OBJECTIFS GENERAUX'!$C$9=\"x\",Feuil3!$B$2,\"\")","v":""},{"$f":"IF('OBJECTIFS GENERAUX'!$C$9=\"x\",Feuil3!B3,\"\")","v":""},null,null,null,null,null,null,{"$f":"IF('OBJECTIFS GENERAUX'!$C$9=\"x\",\"x\",\"\")","v":""},111]
[null,null,{"$f":"IF('OBJECTIFS GENERAUX'!$C$9=\"x\",Feuil3!B4,\"\")","v":""},null,null,null,null,null,null,{"$f":"IF('OBJECTIFS GENERAUX'!$C$9=\"x\",\"x\",\"\")","v":""},112]
[null,null,{"$f":"IF('OBJECTIFS GENERAUX'!$C$9=\"x\",Feuil3!B5,\"\")","v":""},null,null,null,null,null,null,{"$f":"IF('OBJECTIFS GENERAUX'!$C$9=\"x\",\"x\",\"\")","v":""},113]
[null,null,{"$f":"IF('OBJECTIFS GENERAUX'!$C$9=\"x\",Feuil3!B6,\"\")","v":""},null,null,null,null,null,null,{"$f":"IF('OBJECTIFS GENERAUX'!$C$9=\"x\",\"x\",\"\")","v":""},114]
[null,null,{"$f":"IF('OBJECTIFS GENERAUX'!$C$9=\"x\",Feuil3!B7,\"\")","v":""},null,null,null,null,null,null,{"$f":"IF('OBJECTIFS GENERAUX'!$C$9=\"x\",\"x\",\"\")","v":""},115]
[null,null,{"$f":"IF('OBJECTIFS GENERAUX'!$C$9=\"x\",Feuil3!B8,\"\")","v":""},null,null,null,null,null,null,{"$f":"IF('OBJECTIFS GENERAUX'!$C$9=\"x\",\"x\",\"\")","v":""},116]
[null,null,{"$f":"IF('OBJECTIFS GENERAUX'!$C$9=\"x\",'Actions Ligue-district'!B3,\"\")","v":""},null,null,null,null,null,null,{"$f":"IF('OBJECTIFS GENERAUX'!$C$9=\"x\",\"x\",\"\")","v":""},117]
[{"$f":"IF('OBJECTIFS GENERAUX'!$C$10=\"x\",Feuil3!$A$1,\"\")","v":""},{"$f":"IF('OBJECTIFS GENERAUX'!$C$10=\"x\",Feuil3!$B$9,\"\")","v":""},{"$f":"IF('OBJECTIFS GENERAUX'!$C$10=\"x\",Feuil3!B10,\"\")","v":""},null,null,null,null,null,null,{"$f":"IF('OBJECTIFS GENERAUX'!$C$10=\"x\",\"x\",\"\")","v":""},121]
[null,null,{"$f":"IF('OBJECTIFS GENERAUX'!$C$10=\"x\",Feuil3!B11,\"\")","v":""},null,null,null,null,null,null,{"$f":"IF('OBJECTIFS GENERAUX'!$C$10=\"x\",\"x\",\"\")","v":""},122]
[null,null,{"$f":"IF('OBJECTIFS GENERAUX'!$C$10=\"x\",Feuil3!B12,\"\")","v":""},null,null,null,null,null,null,{"$f":"IF('OBJECTIFS GENERAUX'!$C$10=\"x\",\"x\",\"\")","v":""},123]
[null,null,{"$f":"IF('OBJECTIFS GENERAUX'!$C$10=\"x\",Feuil3!B13,\"\")","v":""},null,null,null,null,null,null,{"$f":"IF('OBJECTIFS GENERAUX'!$C$10=\"x\",\"x\",\"\")","v":""},124]
[null,null,{"$f":"IF('OBJECTIFS GENERAUX'!$C$10=\"x\",Feuil3!B14,\"\")","v":""},null,null,null,null,null,null,{"$f":"IF('OBJECTIFS GENERAUX'!$C$10=\"x\",\"x\",\"\")","v":""},125]
[null,null,{"$f":"IF('OBJECTIFS GENERAUX'!$C$10=\"x\",Feuil3!B15,\"\")","v":""},null,null,null,null,null,null,{"$f":"IF('OBJECTIFS GENERAUX'!$C$10=\"x\",\"x\",\"\")","v":""},126]
[null,null,{"$f":"IF('OBJECTIFS GENERAUX'!$C$10=\"x\",Feuil3!B16,\"\")","v":""},null,null,null,null,null,null,{"$f":"IF('OBJECTIFS GENERAUX'!$C$10=\"x\",\"x\",\"\")","v":""},127]
[null,null,{"$f":"IF('OBJECTIFS GENERAUX'!$C$10=\"x\",'Actions Ligue-district'!B4,\"\")","v":""},null,null,null,null,null,null,{"$f":"IF('OBJECTIFS GENERAUX'!$C$10=\"x\",\"x\",\"\")","v":""},127]
[{"$f":"IF(OR('OBJECTIFS GENERAUX'!$C$12=\"x\",'OBJECTIFS GENERAUX'!$C$13=\"x\"),Feuil3!A17,\"\")","v":""},{"$f":"IF(OR('OBJECTIFS GENERAUX'!$C$12=\"x\",'OBJECTIFS GENERAUX'!$C$13=\"x\"),Feuil3!$B$18,\"\")","v":""},{"$f":"IF(OR('OBJECTIFS GENERAUX'!$C$12=\"x\",'OBJECTIFS GENERAUX'!$C$13=\"x\"),Feuil3!B19,\"\")","v":""},null,null,null,null,null,null,{"$f":"IF(OR('OBJECTIFS GENERAUX'!$C$12=\"x\",'OBJECTIFS GENERAUX'!$C$13=\"x\"),\"x\",\"\")","v":""},211]
[null,null,{"$f":"IF(OR('OBJECTIFS GENERAUX'!$C$12=\"x\",'OBJECTIFS GENERAUX'!$C$13=\"x\"),Feuil3!B20,\"\")","v":""},null,null,null,null,null,null,{"$f":"IF(OR('OBJECTIFS GENERAUX'!$C$12=\"x\",'OBJECTIFS GENERAUX'!$C$13=\"x\"),\"x\",\"\")","v":""},212]
[null,null,{"$f":"IF(OR('OBJECTIFS GENERAUX'!$C$12=\"x\",'OBJECTIFS GENERAUX'!$C$13=\"x\"),Feuil3!B21,\"\")","v":""},null,null,null,null,null,null,{"$f":"IF(OR('OBJECTIFS GENERAUX'!$C$12=\"x\",'OBJECTIFS GENERAUX'!$C$13=\"x\"),\"x\",\"\")","v":""},213]
[null,null,{"$f":"IF(OR('OBJECTIFS GENERAUX'!$C$12=\"x\",'OBJECTIFS GENERAUX'!$C$13=\"x\"),Feuil3!B22,\"\")","v":""},null,null,null,null,null,null,{"$f":"IF(OR('OBJECTIFS GENERAUX'!$C$12=\"x\",'OBJECTIFS GENERAUX'!$C$13=\"x\"),\"x\",\"\")","v":""},214]
[null,null,{"$f":"IF(OR('OBJECTIFS GENERAUX'!$C$12=\"x\",'OBJECTIFS GENERAUX'!$C$13=\"x\"),Feuil3!B23,\"\")","v":""},null,null,null,null,null,null,{"$f":"IF(OR('OBJECTIFS GENERAUX'!$C$12=\"x\",'OBJECTIFS GENERAUX'!$C$13=\"x\"),\"x\",\"\")","v":""},215]
[null,null,{"$f":"IF(OR('OBJECTIFS GENERAUX'!$C$12=\"x\",'OBJECTIFS GENERAUX'!$C$13=\"x\"),'Actions Ligue-district'!B6,\"\")","v":""},null,null,null,null,null,null,{"$f":"IF(OR('OBJECTIFS GENERAUX'!$C$12=\"x\",'OBJECTIFS GENERAUX'!$C$13=\"x\"),\"x\",\"\")","v":""},215]
[{"$f":"IF(OR('OBJECTIFS GENERAUX'!$C$12=\"x\",'OBJECTIFS GENERAUX'!$C$13=\"x\"),Feuil3!A17,\"\")","v":""},{"$f":"IF(OR('OBJECTIFS GENERAUX'!$C$12=\"x\",'OBJECTIFS GENERAUX'!$C$13=\"x\"),Feuil3!$B$24,\"\")","v":""},{"$f":"IF(OR('OBJECTIFS GENERAUX'!$C$12=\"x\",'OBJECTIFS GENERAUX'!$C$13=\"x\"),Feuil3!B25,\"\")","v":""},null,null,null,null,null,null,{"$f":"IF(OR('OBJECTIFS GENERAUX'!$C$12=\"x\",'OBJECTIFS GENERAUX'!$C$13=\"x\"),\"x\",\"\")","v":""},221]
[null,null,{"$f":"IF(OR('OBJECTIFS GENERAUX'!$C$12=\"x\",'OBJECTIFS GENERAUX'!$C$13=\"x\"),Feuil3!B26,\"\")","v":""},null,null,null,null,null,null,{"$f":"IF(OR('OBJECTIFS GENERAUX'!$C$12=\"x\",'OBJECTIFS GENERAUX'!$C$13=\"x\"),\"x\",\"\")","v":""},222]
[null,null,{"$f":"IF(OR('OBJECTIFS GENERAUX'!$C$12=\"x\",'OBJECTIFS GENERAUX'!$C$13=\"x\"),Feuil3!B27,\"\")","v":""},null,null,null,null,null,null,{"$f":"IF(OR('OBJECTIFS GENERAUX'!$C$12=\"x\",'OBJECTIFS GENERAUX'!$C$13=\"x\"),\"x\",\"\")","v":""},223]
[null,null,{"$f":"IF(OR('OBJECTIFS GENERAUX'!$C$12=\"x\",'OBJECTIFS GENERAUX'!$C$13=\"x\"),Feuil3!B28,\"\")","v":""},null,null,null,null,null,null,{"$f":"IF(OR('OBJECTIFS GENERAUX'!$C$12=\"x\",'OBJECTIFS GENERAUX'!$C$13=\"x\"),\"x\",\"\")","v":""},224]
[null,null,{"$f":"IF(OR('OBJECTIFS GENERAUX'!$C$12=\"x\",'OBJECTIFS GENERAUX'!$C$13=\"x\"),'Actions Ligue-district'!B7,\"\")","v":""},null,null,null,null,null,null,{"$f":"IF(OR('OBJECTIFS GENERAUX'!$C$12=\"x\",'OBJECTIFS GENERAUX'!$C$13=\"x\"),\"x\",\"\")","v":""},225]
[{"$f":"IF('OBJECTIFS GENERAUX'!$C$15=\"x\",Feuil3!$A$29,\"\")","v":""},{"$f":"IF('OBJECTIFS GENERAUX'!$C$15=\"x\",Feuil3!$B$30,\"\")","v":""},{"$f":"IF('OBJECTIFS GENERAUX'!$C$15=\"x\",Feuil3!B31,\"\")","v":""},null,null,null,null,null,null,{"$f":"IF('OBJECTIFS GENERAUX'!$C$15=\"x\",\"x\",\"\")","v":""},311]
[null,null,{"$f":"IF('OBJECTIFS GENERAUX'!$C$15=\"x\",Feuil3!B32,\"\")","v":""},null,null,null,null,null,null,{"$f":"IF('OBJECTIFS GENERAUX'!$C$15=\"x\",\"x\",\"\")","v":""},312]
[null,null,{"$f":"IF('OBJECTIFS GENERAUX'!$C$15=\"x\",Feuil3!B33,\"\")","v":""},null,null,null,null,null,null,{"$f":"IF('OBJECTIFS GENERAUX'!$C$15=\"x\",\"x\",\"\")","v":""},313]
[null,null,{"$f":"IF('OBJECTIFS GENERAUX'!$C$15=\"x\",Feuil3!B34,\"\")","v":""},null,null,null,null,null,null,{"$f":"IF('OBJECTIFS GENERAUX'!$C$15=\"x\",\"x\",\"\")","v":""},314]
[null,null,{"$f":"IF('OBJECTIFS GENERAUX'!$C$15=\"x\",Feuil3!B35,\"\")","v":""},null,null,null,null,null,null,{"$f":"IF('OBJECTIFS GENERAUX'!$C$15=\"x\",\"x\",\"\")","v":""},315]
[null,null,{"$f":"IF('OBJECTIFS GENERAUX'!$C$15=\"x\",Feuil3!B36,\"\")","v":""},null,null,null,null,null,null,{"$f":"IF('OBJECTIFS GENERAUX'!$C$15=\"x\",\"x\",\"\")","v":""},316]
[null,null,{"$f":"IF('OBJECTIFS GENERAUX'!$C$15=\"x\",Feuil3!B37,\"\")","v":""},null,null,null,null,null,null,{"$f":"IF('OBJECTIFS GENERAUX'!$C$15=\"x\",\"x\",\"\")","v":""},317]
[null,null,{"$f":"IF('OBJECTIFS GENERAUX'!$C$15=\"x\",'Actions Ligue-district'!B9,\"\")","v":""},null,null,null,null,null,null,{"$f":"IF('OBJECTIFS GENERAUX'!$C$15=\"x\",\"x\",\"\")","v":""},318]
[{"$f":"IF('OBJECTIFS GENERAUX'!$C$16=\"x\",Feuil3!$A$29,\"\")","v":""},{"$f":"IF('OBJECTIFS GENERAUX'!$C$16=\"x\",Feuil3!B38,\"\")","v":""},{"$f":"IF('OBJECTIFS GENERAUX'!$C$16=\"x\",Feuil3!B39,\"\")","v":""},null,null,null,null,null,null,{"$f":"IF('OBJECTIFS GENERAUX'!$C$16=\"x\",\"x\",\"\")","v":""},321]
[null,null,{"$f":"IF('OBJECTIFS GENERAUX'!$C$16=\"x\",Feuil3!B40,\"\")","v":""},null,null,null,null,null,null,{"$f":"IF('OBJECTIFS GENERAUX'!$C$16=\"x\",\"x\",\"\")","v":""},322]
[null,null,{"$f":"IF('OBJECTIFS GENERAUX'!$C$16=\"x\",Feuil3!B42,\"\")","v":""},null,null,null,null,null,null,{"$f":"IF('OBJECTIFS GENERAUX'!$C$16=\"x\",\"x\",\"\")","v":""},323]
[null,null,{"$f":"IF('OBJECTIFS GENERAUX'!$C$16=\"x\",Feuil3!B41,\"\")","v":""},null,null,null,null,null,null,{"$f":"IF('OBJECTIFS GENERAUX'!$C$16=\"x\",\"x\",\"\")","v":""},324]
[null,null,{"$f":"IF('OBJECTIFS GENERAUX'!$C$16=\"x\",'Actions Ligue-district'!B10,\"\")","v":""},null,null,null,null,null,null,{"$f":"IF('OBJECTIFS GENERAUX'!$C$16=\"x\",\"x\",\"\")","v":""},325]
[{"$f":"IF('OBJECTIFS GENERAUX'!$C$17=\"x\",Feuil3!$A$43,\"\")","v":""},{"$f":"IF('OBJECTIFS GENERAUX'!$C$17=\"x\",Feuil3!$B$43,\"\")","v":""},{"$f":"IF('OBJECTIFS GENERAUX'!$C$17=\"x\",Feuil3!B44,\"\")","v":""},null,null,null,null,null,null,{"$f":"IF('OBJECTIFS GENERAUX'!$C$17=\"x\",\"x\",\"\")","v":""},411]
[null,null,{"$f":"IF('OBJECTIFS GENERAUX'!$C$17=\"x\",Feuil3!B45,\"\")","v":""},null,null,null,null,null,null,{"$f":"IF('OBJECTIFS GENERAUX'!$C$17=\"x\",\"x\",\"\")","v":""},412]
[null,null,{"$f":"IF('OBJECTIFS GENERAUX'!$C$17=\"x\",Feuil3!B46,\"\")","v":""},null,null,null,null,null,null,{"$f":"IF('OBJECTIFS GENERAUX'!$C$17=\"x\",\"x\",\"\")","v":""},413]
[null,null,{"$f":"IF('OBJECTIFS GENERAUX'!$C$17=\"x\",Feuil3!B47,\"\")","v":""},null,null,null,null,null,null,{"$f":"IF('OBJECTIFS GENERAUX'!$C$17=\"x\",\"x\",\"\")","v":""},414]
[null,null,{"$f":"IF('OBJECTIFS GENERAUX'!$C$17=\"x\",Feuil3!B48,\"\")","v":""},null,null,null,null,null,null,{"$f":"IF('OBJECTIFS GENERAUX'!$C$17=\"x\",\"x\",\"\")","v":""},415]
[null,null,{"$f":"IF('OBJECTIFS GENERAUX'!$C$17=\"x\",Feuil3!B49,\"\")","v":""},null,null,null,null,null,null,{"$f":"IF('OBJECTIFS GENERAUX'!$C$17=\"x\",\"x\",\"\")","v":""},416]
[null,null,{"$f":"IF('OBJECTIFS GENERAUX'!$C$17=\"x\",'Actions Ligue-district'!B11,\"\")","v":""},null,null,null,null,null,null,{"$f":"IF('OBJECTIFS GENERAUX'!$C$17=\"x\",\"x\",\"\")","v":""},417]
[{"$f":"IF('OBJECTIFS GENERAUX'!$C$18=\"x\",Feuil3!$A$50,\"\")","v":""},{"$f":"IF('OBJECTIFS GENERAUX'!$C$18=\"x\",Feuil3!$B$50,\"\")","v":""},{"$f":"IF('OBJECTIFS GENERAUX'!$C$18=\"x\",Feuil3!B51,\"\")","v":""},null,null,null,null,null,null,{"$f":"IF('OBJECTIFS GENERAUX'!$C$18=\"x\",\"x\",\"\")","v":""},511]
[null,null,{"$f":"IF('OBJECTIFS GENERAUX'!$C$18=\"x\",Feuil3!B52,\"\")","v":""},null,null,null,null,null,null,{"$f":"IF('OBJECTIFS GENERAUX'!$C$18=\"x\",\"x\",\"\")","v":""},512]
[null,null,{"$f":"IF('OBJECTIFS GENERAUX'!$C$18=\"x\",Feuil3!B53,\"\")","v":""},null,null,null,null,null,null,{"$f":"IF('OBJECTIFS GENERAUX'!$C$18=\"x\",\"x\",\"\")","v":""},513]
[null,null,{"$f":"IF('OBJECTIFS GENERAUX'!$C$18=\"x\",'Actions Ligue-district'!B13,\"\")","v":""},null,null,null,null,null,null,{"$f":"IF('OBJECTIFS GENERAUX'!$C$18=\"x\",\"x\",\"\")","v":""},514]
[{"$f":"IF('OBJECTIFS GENERAUX'!$C$18=\"x\",Feuil3!$A$50,\"\")","v":""},{"$f":"IF('OBJECTIFS GENERAUX'!$C$18=\"x\",Feuil3!$B$54,\"\")","v":""},{"$f":"IF('OBJECTIFS GENERAUX'!$C$18=\"x\",Feuil3!B55,\"\")","v":""},null,null,null,null,null,null,{"$f":"IF('OBJECTIFS GENERAUX'!$C$18=\"x\",\"x\",\"\")","v":""},521]
[null,null,{"$f":"IF('OBJECTIFS GENERAUX'!$C$18=\"x\",Feuil3!B56,\"\")","v":""},null,null,null,null,null,null,{"$f":"IF('OBJECTIFS GENERAUX'!$C$18=\"x\",\"x\",\"\")","v":""},522]
[null,null,{"$f":"IF('OBJECTIFS GENERAUX'!$C$18=\"x\",Feuil3!B57,\"\")","v":""},null,null,null,null,null,null,{"$f":"IF('OBJECTIFS GENERAUX'!$C$18=\"x\",\"x\",\"\")","v":""},523]
[null,null,{"$f":"IF('OBJECTIFS GENERAUX'!$C$18=\"x\",Feuil3!B58,\"\")","v":""},null,null,null,null,null,null,{"$f":"IF('OBJECTIFS GENERAUX'!$C$18=\"x\",\"x\",\"\")","v":""},524]
[null,null,{"$f":"IF('OBJECTIFS GENERAUX'!$C$18=\"x\",'Actions Ligue-district'!B14,\"\")","v":""},null,null,null,null,null,null,{"$f":"IF('OBJECTIFS GENERAUX'!$C$18=\"x\",\"x\",\"\")","v":""},525]
[{"$f":"IF('OBJECTIFS GENERAUX'!$C$18=\"x\",Feuil3!$A$50,\"\")","v":""},{"$f":"IF('OBJECTIFS GENERAUX'!$C$18=\"x\",Feuil3!$B$59,\"\")","v":""},{"$f":"IF('OBJECTIFS GENERAUX'!$C$18=\"x\",Feuil3!B60,\"\")","v":""},null,null,null,null,null,null,{"$f":"IF('OBJECTIFS GENERAUX'!$C$18=\"x\",\"x\",\"\")","v":""},531]
[null,null,{"$f":"IF('OBJECTIFS GENERAUX'!$C$18=\"x\",Feuil3!B61,\"\")","v":""},null,null,null,null,null,null,{"$f":"IF('OBJECTIFS GENERAUX'!$C$18=\"x\",\"x\",\"\")","v":""},532]
[null,null,{"$f":"IF('OBJECTIFS GENERAUX'!$C$18=\"x\",'Actions Ligue-district'!B15,\"\")","v":""},null,null,null,null,null,null,{"$f":"IF('OBJECTIFS GENERAUX'!$C$18=\"x\",\"x\",\"\")","v":""},533]
[{"$f":"IF('OBJECTIFS GENERAUX'!$H$9=\"x\",Feuil3!$A$62,\"\")","v":""},{"$f":"IF('OBJECTIFS GENERAUX'!$H$9=\"x\",Feuil3!$B$63,\"\")","v":""},{"$f":"IF('OBJECTIFS GENERAUX'!$H$9=\"x\",Feuil3!B64,\"\")","v":""},null,null,null,null,null,null,{"$f":"IF('OBJECTIFS GENERAUX'!$H$9=\"x\",\"x\",\"\")","v":""},611]
[null,null,{"$f":"IF('OBJECTIFS GENERAUX'!$H$9=\"x\",Feuil3!B65,\"\")","v":""},null,null,null,null,null,null,{"$f":"IF('OBJECTIFS GENERAUX'!$H$9=\"x\",\"x\",\"\")","v":""},612]
[null,null,{"$f":"IF('OBJECTIFS GENERAUX'!$H$9=\"x\",Feuil3!B66,\"\")","v":""},null,null,null,null,null,null,{"$f":"IF('OBJECTIFS GENERAUX'!$H$9=\"x\",\"x\",\"\")","v":""},613]
[null,null,{"$f":"IF('OBJECTIFS GENERAUX'!$H$9=\"x\",Feuil3!B67,\"\")","v":""},null,null,null,null,null,null,{"$f":"IF('OBJECTIFS GENERAUX'!$H$9=\"x\",\"x\",\"\")","v":""},614]
[null,null,{"$f":"IF('OBJECTIFS GENERAUX'!$H$9=\"x\",'Actions Ligue-district'!B17,\"\")","v":""},null,null,null,null,null,null,{"$f":"IF('OBJECTIFS GENERAUX'!$H$9=\"x\",\"x\",\"\")","v":""},615]
[{"$f":"IF('OBJECTIFS GENERAUX'!$H$10=\"x\",Feuil3!$A$62,\"\")","v":""},{"$f":"IF('OBJECTIFS GENERAUX'!$H$10=\"x\",Feuil3!$B$68,\"\")","v":""},{"$f":"IF('OBJECTIFS GENERAUX'!$H$10=\"x\",Feuil3!B69,\"\")","v":""},null,null,null,null,null,null,{"$f":"IF('OBJECTIFS GENERAUX'!$H$10=\"x\",\"x\",\"\")","v":""},711]
[null,null,{"$f":"IF('OBJECTIFS GENERAUX'!$H$10=\"x\",Feuil3!B70,\"\")","v":""},null,null,null,null,null,null,{"$f":"IF('OBJECTIFS GENERAUX'!$H$10=\"x\",\"x\",\"\")","v":""},712]
[null,null,{"$f":"IF('OBJECTIFS GENERAUX'!$H$10=\"x\",'Actions Ligue-district'!B18,\"\")","v":""},null,null,null,null,null,null,{"$f":"IF('OBJECTIFS GENERAUX'!$H$10=\"x\",\"x\",\"\")","v":""},713]
[{"$f":"IF('OBJECTIFS GENERAUX'!$H$11=\"x\",Feuil3!$A$62,\"\")","v":""},{"$f":"IF('OBJECTIFS GENERAUX'!$H$11=\"x\",Feuil3!$B$71,\"\")","v":""},{"$f":"IF('OBJECTIFS GENERAUX'!$H$11=\"x\",Feuil3!B72,\"\")","v":""},null,null,null,null,null,null,{"$f":"IF('OBJECTIFS GENERAUX'!$H$11=\"x\",\"x\",\"\")","v":""},721]
[null,null,{"$f":"IF('OBJECTIFS GENERAUX'!$H$11=\"x\",Feuil3!B73,\"\")","v":""},null,null,null,null,null,null,{"$f":"IF('OBJECTIFS GENERAUX'!$H$11=\"x\",\"x\",\"\")","v":""},722]
[null,null,{"$f":"IF('OBJECTIFS GENERAUX'!$H$11=\"x\",Feuil3!B74,\"\")","v":""},null,null,null,null,null,null,{"$f":"IF('OBJECTIFS GENERAUX'!$H$11=\"x\",\"x\",\"\")","v":""},723]
[null,null,{"$f":"IF('OBJECTIFS GENERAUX'!$H$11=\"x\",Feuil3!B75,\"\")","v":""},null,null,null,null,null,null,{"$f":"IF('OBJECTIFS GENERAUX'!$H$11=\"x\",\"x\",\"\")","v":""},724]
[null,null,{"$f":"IF('OBJECTIFS GENERAUX'!$H$11=\"x\",Feuil3!B76,\"\")","v":""},null,null,null,null,null,null,{"$f":"IF('OBJECTIFS GENERAUX'!$H$11=\"x\",\"x\",\"\")","v":""},725]
[null,null,{"$f":"IF('OBJECTIFS GENERAUX'!$H$11=\"x\",Feuil3!B77,\"\")","v":""},null,null,null,null,null,null,{"$f":"IF('OBJECTIFS GENERAUX'!$H$11=\"x\",\"x\",\"\")","v":""},726]
[null,null,{"$f":"IF('OBJECTIFS GENERAUX'!$H$11=\"x\",Feuil3!B78,\"\")","v":""},null,null,null,null,null,null,{"$f":"IF('OBJECTIFS GENERAUX'!$H$11=\"x\",\"x\",\"\")","v":""},727]
[null,null,{"$f":"IF('OBJECTIFS GENERAUX'!$H$11=\"x\",'Actions Ligue-district'!B19,\"\")","v":""},null,null,null,null,null,null,{"$f":"IF('OBJECTIFS GENERAUX'!$H$11=\"x\",\"x\",\"\")","v":""},728]
[{"$f":"IF('OBJECTIFS GENERAUX'!$H$13=\"x\",Feuil3!$A$79,\"\")","v":""},{"$f":"IF('OBJECTIFS GENERAUX'!$H$13=\"x\",Feuil3!$B$80,\"\")","v":""},{"$f":"IF('OBJECTIFS GENERAUX'!$H$13=\"x\",Feuil3!B81,\"\")","v":""},null,null,null,null,null,null,{"$f":"IF('OBJECTIFS GENERAUX'!$H$13=\"x\",\"x\",\"\")","v":""},811]
[null,null,{"$f":"IF('OBJECTIFS GENERAUX'!$H$13=\"x\",Feuil3!B82,\"\")","v":""},null,null,null,null,null,null,{"$f":"IF('OBJECTIFS GENERAUX'!$H$13=\"x\",\"x\",\"\")","v":""},812]
[null,null,{"$f":"IF('OBJECTIFS GENERAUX'!$H$13=\"x\",Feuil3!B83,\"\")","v":""},null,null,null,null,null,null,{"$f":"IF('OBJECTIFS GENERAUX'!$H$13=\"x\",\"x\",\"\")","v":""},813]
[null,null,{"$f":"IF('OBJECTIFS GENERAUX'!$H$13=\"x\",Feuil3!B84,\"\")","v":""},null,null,null,null,null,null,{"$f":"IF('OBJECTIFS GENERAUX'!$H$13=\"x\",\"x\",\"\")","v":""},814]
[null,null,{"$f":"IF('OBJECTIFS GENERAUX'!$H$13=\"x\",'Actions Ligue-district'!B21,\"\")","v":""},null,null,null,null,null,null,{"$f":"IF('OBJECTIFS GENERAUX'!$H$13=\"x\",\"x\",\"\")","v":""},815]
[{"$f":"IF('OBJECTIFS GENERAUX'!$H$14=\"x\",Feuil3!$A$79,\"\")","v":""},{"$f":"IF('OBJECTIFS GENERAUX'!$H$14=\"x\",Feuil3!B85,\"\")","v":""},{"$f":"IF('OBJECTIFS GENERAUX'!$H$14=\"x\",Feuil3!B85,\"\")","v":""},null,null,null,null,null,null,{"$f":"IF('OBJECTIFS GENERAUX'!$H$14=\"x\",\"x\",\"\")","v":""},821]
[null,null,{"$f":"IF('OBJECTIFS GENERAUX'!$H$14=\"x\",Feuil3!B86,\"\")","v":""},null,null,null,null,null,null,{"$f":"IF('OBJECTIFS GENERAUX'!$H$14=\"x\",\"x\",\"\")","v":""},822]
[null,null,{"$f":"IF('OBJECTIFS GENERAUX'!$H$14=\"x\",Feuil3!B87,\"\")","v":""},null,null,null,null,null,null,{"$f":"IF('OBJECTIFS GENERAUX'!$H$14=\"x\",\"x\",\"\")","v":""},823]
[null,null,{"$f":"IF('OBJECTIFS GENERAUX'!$H$14=\"x\",'Actions Ligue-district'!B22,\"\")","v":""},null,null,null,null,null,null,{"$f":"IF('OBJECTIFS GENERAUX'!$H$14=\"x\",\"x\",\"\")","v":""},824]
[{"$f":"IF('OBJECTIFS GENERAUX'!$H$16=\"x\",Feuil3!$A$79,\"\")","v":""},{"$f":"IF('OBJECTIFS GENERAUX'!$H$16=\"x\",Feuil3!$B$95,\"\")","v":""},{"$f":"IF('OBJECTIFS GENERAUX'!$H$16=\"x\",Feuil3!B96,\"\")","v":""},null,null,null,null,null,null,{"$f":"IF('OBJECTIFS GENERAUX'!$H$16=\"x\",\"x\",\"\")","v":""},831]
[null,null,{"$f":"IF('OBJECTIFS GENERAUX'!$H$16=\"x\",Feuil3!B97,\"\")","v":""},null,null,null,null,null,null,{"$f":"IF('OBJECTIFS GENERAUX'!$H$16=\"x\",\"x\",\"\")","v":""},832]
[null,null,{"$f":"IF('OBJECTIFS GENERAUX'!$H$16=\"x\",'Actions Ligue-district'!B24,\"\")","v":""},null,null,null,null,null,null,{"$f":"IF('OBJECTIFS GENERAUX'!$H$16=\"x\",\"x\",\"\")","v":""},833]
[{"$f":"IF('OBJECTIFS GENERAUX'!$H$17=\"x\",Feuil3!$A$79,\"\")","v":""},{"$f":"IF('OBJECTIFS GENERAUX'!$H$17=\"x\",Feuil3!$B$98,\"\")","v":""},{"$f":"IF('OBJECTIFS GENERAUX'!$H$17=\"x\",Feuil3!B99,\"\")","v":""},null,null,null,null,null,null,{"$f":"IF('OBJECTIFS GENERAUX'!$H$17=\"x\",\"x\",\"\")","v":""},834]
[null,null,{"$f":"IF('OBJECTIFS GENERAUX'!$H$17=\"x\",Feuil3!B100,\"\")","v":""},null,null,null,null,null,null,{"$f":"IF('OBJECTIFS GENERAUX'!$H$17=\"x\",\"x\",\"\")","v":""},835]
[{"$f":"IF('OBJECTIFS GENERAUX'!$H$15=\"x\",Feuil3!$A$79,\"\")","v":""},{"$f":"IF('OBJECTIFS GENERAUX'!$H$15=\"x\",Feuil3!B89,\"\")","v":""},{"$f":"IF('OBJECTIFS GENERAUX'!$H$15=\"x\",Feuil3!B88,\"\")","v":""},null,null,null,null,null,null,{"$f":"IF('OBJECTIFS GENERAUX'!$H$15=\"x\",\"x\",\"\")","v":""},836]
[null,null,{"$f":"IF('OBJECTIFS GENERAUX'!$H$15=\"x\",Feuil3!B89,\"\")","v":""},null,null,null,null,null,null,{"$f":"IF('OBJECTIFS GENERAUX'!$H$15=\"x\",\"x\",\"\")","v":""},837]
[null,null,{"$f":"IF('OBJECTIFS GENERAUX'!$H$15=\"x\",Feuil3!B90,\"\")","v":""},null,null,null,null,null,null,{"$f":"IF('OBJECTIFS GENERAUX'!$H$15=\"x\",\"x\",\"\")","v":""},838]
[null,null,{"$f":"IF('OBJECTIFS GENERAUX'!$H$15=\"x\",Feuil3!B91,\"\")","v":""},null,null,null,null,null,null,{"$f":"IF('OBJECTIFS GENERAUX'!$H$15=\"x\",\"x\",\"\")","v":""},841]
[null,null,{"$f":"IF('OBJECTIFS GENERAUX'!$H$15=\"x\",Feuil3!B92,\"\")","v":""},null,null,null,null,null,null,{"$f":"IF('OBJECTIFS GENERAUX'!$H$15=\"x\",\"x\",\"\")","v":""},842]
[null,null,{"$f":"IF('OBJECTIFS GENERAUX'!$H$15=\"x\",Feuil3!B93,\"\")","v":""},null,null,null,null,null,null,{"$f":"IF('OBJECTIFS GENERAUX'!$H$15=\"x\",\"x\",\"\")","v":""},843]
[null,null,{"$f":"IF('OBJECTIFS GENERAUX'!$H$15=\"x\",Feuil3!B94,\"\")","v":""},null,null,null,null,null,null,{"$f":"IF('OBJECTIFS GENERAUX'!$H$15=\"x\",\"x\",\"\")","v":""},851]
[null,null,{"$f":"IF('OBJECTIFS GENERAUX'!$H$15=\"x\",'Actions Ligue-district'!B23,\"\")","v":""},null,null,null,null,null,null,{"$f":"IF('OBJECTIFS GENERAUX'!$H$15=\"x\",\"x\",\"\")","v":""},852]
[null,null,{"$f":"IF('OBJECTIFS GENERAUX'!$H$17=\"x\",Feuil3!B101,\"\")","v":""},null,null,null,null,null,null,{"$f":"IF('OBJECTIFS GENERAUX'!$H$17=\"x\",\"x\",\"\")","v":""},853]
[null,null,{"$f":"IF('OBJECTIFS GENERAUX'!$H$17=\"x\",'Actions Ligue-district'!B25,\"\")","v":""},null,null,null,null,null,null,{"$f":"IF('OBJECTIFS GENERAUX'!$H$17=\"x\",\"x\",\"\")","v":""},854]
[]
[]
["Plan d’actions volet sportif"]
[null,null,null,"Saison N + 1"]
["Objectif général","Axe d'amélioration","Intitulé des actions et résultats envisagés","1er trimestre","2ème trimestre","3ème trimestre","Nom du responsable","Objectifs envisagés","Actions réalisées"]
[{"$f":"IF('OBJECTIFS GENERAUX'!$C$32=\"x\",Feuil3!C4,\"\")","v":""},{"$f":"IF('OBJECTIFS GENERAUX'!$C$32=\"x\",Feuil3!D10,\"\")","v":""},{"$f":"IF('OBJECTIFS GENERAUX'!$C$32=\"x\",Feuil3!D11,\"\")","v":""},null,null,null,null,null,null,{"$f":"IF('OBJECTIFS GENERAUX'!$C$32=\"x\",\"x\",\"\")","v":""},221]
[null,null,{"$f":"IF('OBJECTIFS GENERAUX'!$C$32=\"x\",Feuil3!D12,\"\")","v":""},null,null,null,null,null,null,{"$f":"IF('OBJECTIFS GENERAUX'!$C$32=\"x\",\"x\",\"\")","v":""},222]
[null,null,{"$f":"IF('OBJECTIFS GENERAUX'!$C$32=\"x\",Feuil3!D13,\"\")","v":""},null,null,null,null,null,null,{"$f":"IF('OBJECTIFS GENERAUX'!$C$32=\"x\",\"x\",\"\")","v":""},223]
[null,null,{"$f":"IF('OBJECTIFS GENERAUX'!$C$32=\"x\",Feuil3!D14,\"\")","v":""},null,null,null,null,null,null,{"$f":"IF('OBJECTIFS GENERAUX'!$C$32=\"x\",\"x\",\"\")","v":""},224]
[null,null,{"$f":"IF('OBJECTIFS GENERAUX'!$C$32=\"x\",'Actions Ligue-district'!B32,\"\")","v":""},null,null,null,null,null,null,{"$f":"IF('OBJECTIFS GENERAUX'!$C$32=\"x\",\"x\",\"\")","v":""},225]
[{"$f":"IF('OBJECTIFS GENERAUX'!$C$28=\"x\",Feuil3!$C$1,\"\")","v":""},{"$f":"IF('OBJECTIFS GENERAUX'!$C$28=\"x\",Feuil3!$C$1,\"\")","v":""},{"$f":"IF('OBJECTIFS GENERAUX'!$C$28=\"x\",Feuil3!B3,\"\")","v":""},null,null,null,null,null,null,{"$f":"IF('OBJECTIFS GENERAUX'!$C$28=\"x\",\"x\",\"\")","v":""},111]
[null,null,{"$f":"IF('OBJECTIFS GENERAUX'!$C$28=\"x\",Feuil3!B4,\"\")","v":""},null,null,null,null,null,null,{"$f":"IF('OBJECTIFS GENERAUX'!$C$28=\"x\",\"x\",\"\")","v":""},112]
[null,null,{"$f":"IF('OBJECTIFS GENERAUX'!$C$28=\"x\",Feuil3!B5,\"\")","v":""},null,null,null,null,null,null,{"$f":"IF('OBJECTIFS GENERAUX'!$C$28=\"x\",\"x\",\"\")","v":""},113]
[null,null,{"$f":"IF('OBJECTIFS GENERAUX'!$C$28=\"x\",Feuil3!B6,\"\")","v":""},null,null,null,null,null,null,{"$f":"IF('OBJECTIFS GENERAUX'!$C$28=\"x\",\"x\",\"\")","v":""},114]
[null,null,{"$f":"IF('OBJECTIFS GENERAUX'!$C$28=\"x\",Feuil3!B7,\"\")","v":""},null,null,null,null,null,null,{"$f":"IF('OBJECTIFS GENERAUX'!$C$28=\"x\",\"x\",\"\")","v":""},115]
[null,null,{"$f":"IF('OBJECTIFS GENERAUX'!$C$28=\"x\",Feuil3!B8,\"\")","v":""},null,null,null,null,null,null,{"$f":"IF('OBJECTIFS GENERAUX'!$C$28=\"x\",\"x\",\"\")","v":""},116]
[null,null,{"$f":"IF('OBJECTIFS GENERAUX'!$C$28=\"x\",'Actions Ligue-district'!B28,\"\")","v":""},null,null,null,null,null,null,{"$f":"IF('OBJECTIFS GENERAUX'!$C$28=\"x\",\"x\",\"\")","v":""},117]
[{"$f":"IF('OBJECTIFS GENERAUX'!$C$29=\"x\",Feuil3!C1,\"\")","v":""},{"$f":"IF('OBJECTIFS GENERAUX'!$C$29=\"x\",Feuil3!B9,\"\")","v":""},{"$f":"IF('OBJECTIFS GENERAUX'!$C$29=\"x\",Feuil3!B10,\"\")","v":""},null,null,null,null,null,null,{"$f":"IF('OBJECTIFS GENERAUX'!$C$29=\"x\",\"x\",\"\")","v":""},121]
[null,null,{"$f":"IF('OBJECTIFS GENERAUX'!$C$29=\"x\",Feuil3!B11,\"\")","v":""},null,null,null,null,null,null,{"$f":"IF('OBJECTIFS GENERAUX'!$C$29=\"x\",\"x\",\"\")","v":""},122]
[null,null,{"$f":"IF('OBJECTIFS GENERAUX'!$C$29=\"x\",Feuil3!B12,\"\")","v":""},null,null,null,null,null,null,{"$f":"IF('OBJECTIFS GENERAUX'!$C$29=\"x\",\"x\",\"\")","v":""},123]
[null,null,{"$f":"IF('OBJECTIFS GENERAUX'!$C$29=\"x\",Feuil3!B13,\"\")","v":""},null,null,null,null,null,null,{"$f":"IF('OBJECTIFS GENERAUX'!$C$29=\"x\",\"x\",\"\")","v":""},124]
[null,null,{"$f":"IF('OBJECTIFS GENERAUX'!$C$29=\"x\",Feuil3!B14,\"\")","v":""},null,null,null,null,null,null,{"$f":"IF('OBJECTIFS GENERAUX'!$C$29=\"x\",\"x\",\"\")","v":""},125]
[null,null,{"$f":"IF('OBJECTIFS GENERAUX'!$C$29=\"x\",Feuil3!B15,\"\")","v":""},null,null,null,null,null,null,{"$f":"IF('OBJECTIFS GENERAUX'!$C$29=\"x\",\"x\",\"\")","v":""},126]
[null,null,{"$f":"IF('OBJECTIFS GENERAUX'!$C$29=\"x\",Feuil3!B16,\"\")","v":""},null,null,null,null,null,null,{"$f":"IF('OBJECTIFS GENERAUX'!$C$29=\"x\",\"x\",\"\")","v":""},127]
[null,null,{"$f":"IF('OBJECTIFS GENERAUX'!$C$29=\"x\",'Actions Ligue-district'!B29,\"\")","v":""},null,null,null,null,null,null,{"$f":"IF('OBJECTIFS GENERAUX'!$C$29=\"x\",\"x\",\"\")","v":""},128]
[{"$f":"IF('OBJECTIFS GENERAUX'!$C$31=\"x\",Feuil3!C4,\"\")","v":""},{"$f":"IF('OBJECTIFS GENERAUX'!$C$31=\"x\",Feuil3!D5,\"\")","v":""},{"$f":"IF('OBJECTIFS GENERAUX'!$C$31=\"x\",Feuil3!D6,\"\")","v":""},null,null,null,null,null,null,{"$f":"IF('OBJECTIFS GENERAUX'!$C$31=\"x\",\"x\",\"\")","v":""},211]
[null,null,{"$f":"IF('OBJECTIFS GENERAUX'!$C$31=\"x\",Feuil3!D7,\"\")","v":""},null,null,null,null,null,null,{"$f":"IF('OBJECTIFS GENERAUX'!$C$31=\"x\",\"x\",\"\")","v":""},212]
[null,null,{"$f":"IF('OBJECTIFS GENERAUX'!$C$31=\"x\",Feuil3!D8,\"\")","v":""},null,null,null,null,null,null,{"$f":"IF('OBJECTIFS GENERAUX'!$C$31=\"x\",\"x\",\"\")","v":""},213]
[null,null,{"$f":"IF('OBJECTIFS GENERAUX'!$C$31=\"x\",Feuil3!D9,\"\")","v":""},null,null,null,null,null,null,{"$f":"IF('OBJECTIFS GENERAUX'!$C$31=\"x\",\"x\",\"\")","v":""},214]
[null,null,{"$f":"IF('OBJECTIFS GENERAUX'!$C$31=\"x\",'Actions Ligue-district'!B31,\"\")","v":""},null,null,null,null,null,null,{"$f":"IF('OBJECTIFS GENERAUX'!$C$31=\"x\",\"x\",\"\")","v":""},215]
[{"$f":"IF('OBJECTIFS GENERAUX'!$C$33=\"x\",Feuil3!C15,\"\")","v":""},{"$f":"IF('OBJECTIFS GENERAUX'!$C$33=\"x\",Feuil3!D15,\"\")","v":""},{"$f":"IF('OBJECTIFS GENERAUX'!$C$33=\"x\",Feuil3!D16,\"\")","v":""},null,null,null,null,null,null,{"$f":"IF('OBJECTIFS GENERAUX'!$C$33=\"x\",\"x\",\"\")","v":""},311]
[null,null,{"$f":"IF('OBJECTIFS GENERAUX'!$C$33=\"x\",Feuil3!D17,\"\")","v":""},null,null,null,null,null,null,{"$f":"IF('OBJECTIFS GENERAUX'!$C$33=\"x\",\"x\",\"\")","v":""},312]
[null,null,{"$f":"IF('OBJECTIFS GENERAUX'!$C$33=\"x\",Feuil3!D18,\"\")","v":""},null,null,null,null,null,null,{"$f":"IF('OBJECTIFS GENERAUX'!$C$33=\"x\",\"x\",\"\")","v":""},313]
[null,null,{"$f":"IF('OBJECTIFS GENERAUX'!$C$33=\"x\",'Actions Ligue-district'!B33,\"\")","v":""},null,null,null,null,null,null,{"$f":"IF('OBJECTIFS GENERAUX'!$C$33=\"x\",\"x\",\"\")","v":""},314]
[{"$f":"IF('OBJECTIFS GENERAUX'!$H$28=\"x\",Feuil3!C19,\"\")","v":""},{"$f":"IF('OBJECTIFS GENERAUX'!$H$28=\"x\",Feuil3!D20,\"\")","v":""},{"$f":"IF('OBJECTIFS GENERAUX'!$H$28=\"x\",Feuil3!D21,\"\")","v":""},null,null,null,null,null,null,{"$f":"IF('OBJECTIFS GENERAUX'!$H$28=\"x\",\"x\",\"\")","v":""},411]
[null,null,{"$f":"IF('OBJECTIFS GENERAUX'!$H$28=\"x\",Feuil3!D22,\"\")","v":""},null,null,null,null,null,null,{"$f":"IF('OBJECTIFS GENERAUX'!$H$28=\"x\",\"x\",\"\")","v":""},412]
[null,null,{"$f":"IF('OBJECTIFS GENERAUX'!$H$28=\"x\",Feuil3!D23,\"\")","v":""},null,null,null,null,null,null,{"$f":"IF('OBJECTIFS GENERAUX'!$H$28=\"x\",\"x\",\"\")","v":""},413]
[null,null,{"$f":"IF('OBJECTIFS GENERAUX'!$H$28=\"x\",Feuil3!D24,\"\")","v":""},null,null,null,null,null,null,{"$f":"IF('OBJECTIFS GENERAUX'!$H$28=\"x\",\"x\",\"\")","v":""},414]
[null,null,{"$f":"IF('OBJECTIFS GENERAUX'!$H$28=\"x\",'Actions Ligue-district'!B35,\"\")","v":""},null,null,null,null,null,null,{"$f":"IF('OBJECTIFS GENERAUX'!$H$28=\"x\",\"x\",\"\")","v":""},415]
[{"$f":"IF('OBJECTIFS GENERAUX'!$H$29=\"x\",Feuil3!C19,\"\")","v":""},{"$f":"IF('OBJECTIFS GENERAUX'!$H$29=\"x\",Feuil3!D25,\"\")","v":""},{"$f":"IF('OBJECTIFS GENERAUX'!$H$29=\"x\",Feuil3!D26,\"\")","v":""},null,null,null,null,null,null,{"$f":"IF('OBJECTIFS GENERAUX'!$H$29=\"x\",\"x\",\"\")","v":""},421]
[null,null,{"$f":"IF('OBJECTIFS GENERAUX'!$H$29=\"x\",Feuil3!D27,\"\")","v":""},null,null,null,null,null,null,{"$f":"IF('OBJECTIFS GENERAUX'!$H$29=\"x\",\"x\",\"\")","v":""},422]
[null,null,{"$f":"IF('OBJECTIFS GENERAUX'!$H$29=\"x\",'Actions Ligue-district'!B36,\"\")","v":""},null,null,null,null,null,null,{"$f":"IF('OBJECTIFS GENERAUX'!$H$29=\"x\",\"x\",\"\")","v":""},423]
[{"$f":"IF('OBJECTIFS GENERAUX'!$H$30=\"x\",Feuil3!C19,\"\")","v":""},{"$f":"IF('OBJECTIFS GENERAUX'!$H$30=\"x\",Feuil3!D28,\"\")","v":""},{"$f":"IF('OBJECTIFS GENERAUX'!$H$30=\"x\",Feuil3!D29,\"\")","v":""},null,null,null,null,null,null,{"$f":"IF('OBJECTIFS GENERAUX'!$H$30=\"x\",\"x\",\"\")","v":""},431]
[null,null,{"$f":"IF('OBJECTIFS GENERAUX'!$H$30=\"x\",Feuil3!D30,\"\")","v":""},null,null,null,null,null,null,{"$f":"IF('OBJECTIFS GENERAUX'!$H$30=\"x\",\"x\",\"\")","v":""},432]
[null,null,{"$f":"IF('OBJECTIFS GENERAUX'!$H$30=\"x\",Feuil3!D31,\"\")","v":""},null,null,null,null,null,null,{"$f":"IF('OBJECTIFS GENERAUX'!$H$30=\"x\",\"x\",\"\")","v":""},433]
[null,null,{"$f":"IF('OBJECTIFS GENERAUX'!$H$30=\"x\",Feuil3!D32,\"\")","v":""},null,null,null,null,null,null,{"$f":"IF('OBJECTIFS GENERAUX'!$H$30=\"x\",\"x\",\"\")","v":""},434]
[null,null,{"$f":"IF('OBJECTIFS GENERAUX'!$H$30=\"x\",'Actions Ligue-district'!B37,\"\")","v":""},null,null,null,null,null,null,{"$f":"IF('OBJECTIFS GENERAUX'!$H$30=\"x\",\"x\",\"\")","v":""},435]
[null,null,{"$f":"IF('OBJECTIFS GENERAUX'!$H$32=\"x\",'Actions Ligue-district'!B39,\"\")","v":""},null,null,null,null,null,null,{"$f":"IF('OBJECTIFS GENERAUX'!$H$32=\"x\",\"x\",\"\")","v":""},511]
[{"$f":"IF(OR('OBJECTIFS GENERAUX'!$H$32=\"x\",'OBJECTIFS GENERAUX'!$H$33=\"x\",'OBJECTIFS GENERAUX'!$H$34=\"x\"),Feuil3!C33,\"\")","v":""},{"$f":"IF(OR('OBJECTIFS GENERAUX'!$H$32=\"x\",'OBJECTIFS GENERAUX'!$H$33=\"x\",'OBJECTIFS GENERAUX'!$H$34=\"x\"),Feuil3!D34,\"\")","v":""},{"$f":"IF(OR('OBJECTIFS GENERAUX'!$H$32=\"x\",'OBJECTIFS GENERAUX'!$H$33=\"x\",'OBJECTIFS GENERAUX'!$H$34=\"x\"),Feuil3!D35,\"\")","v":""},null,null,null,null,null,null,{"$f":"IF(OR('OBJECTIFS GENERAUX'!$H$32=\"x\",'OBJECTIFS GENERAUX'!$H$33=\"x\",'OBJECTIFS GENERAUX'!$H$34=\"x\"),\"x\",\"\")","v":""},512]
[null,null,{"$f":"IF(OR('OBJECTIFS GENERAUX'!$H$32=\"x\",'OBJECTIFS GENERAUX'!$H$33=\"x\",'OBJECTIFS GENERAUX'!$H$34=\"x\"),Feuil3!D36,\"\")","v":""},null,null,null,null,null,null,{"$f":"IF(OR('OBJECTIFS GENERAUX'!$H$32=\"x\",'OBJECTIFS GENERAUX'!$H$33=\"x\",'OBJECTIFS GENERAUX'!$H$34=\"x\"),\"x\",\"\")","v":""},513]
[null,null,{"$f":"IF(OR('OBJECTIFS GENERAUX'!$H$32=\"x\",'OBJECTIFS GENERAUX'!$H$33=\"x\",'OBJECTIFS GENERAUX'!$H$34=\"x\"),Feuil3!D37,\"\")","v":""},null,null,null,null,null,null,{"$f":"IF(OR('OBJECTIFS GENERAUX'!$H$32=\"x\",'OBJECTIFS GENERAUX'!$H$33=\"x\",'OBJECTIFS GENERAUX'!$H$34=\"x\"),\"x\",\"\")","v":""},514]
[null,null,{"$f":"IF(OR('OBJECTIFS GENERAUX'!$H$32=\"x\",'OBJECTIFS GENERAUX'!$H$33=\"x\",'OBJECTIFS GENERAUX'!$H$34=\"x\"),Feuil3!D38,\"\")","v":""},null,null,null,null,null,null,{"$f":"IF(OR('OBJECTIFS GENERAUX'!$H$32=\"x\",'OBJECTIFS GENERAUX'!$H$33=\"x\",'OBJECTIFS GENERAUX'!$H$34=\"x\"),\"x\",\"\")","v":""},515]
[null,null,{"$f":"IF(OR('OBJECTIFS GENERAUX'!$H$32=\"x\",'OBJECTIFS GENERAUX'!$H$33=\"x\",'OBJECTIFS GENERAUX'!$H$34=\"x\"),Feuil3!D39,\"\")","v":""},null,null,null,null,null,null,{"$f":"IF(OR('OBJECTIFS GENERAUX'!$H$32=\"x\",'OBJECTIFS GENERAUX'!$H$33=\"x\",'OBJECTIFS GENERAUX'!$H$34=\"x\"),\"x\",\"\")","v":""},516]
[null,null,{"$f":"IF(OR('OBJECTIFS GENERAUX'!$H$32=\"x\",'OBJECTIFS GENERAUX'!$H$33=\"x\",'OBJECTIFS GENERAUX'!$H$34=\"x\"),Feuil3!D40,\"\")","v":""},null,null,null,null,null,null,{"$f":"IF(OR('OBJECTIFS GENERAUX'!$H$32=\"x\",'OBJECTIFS GENERAUX'!$H$33=\"x\",'OBJECTIFS GENERAUX'!$H$34=\"x\"),\"x\",\"\")","v":""},517]
[null,null,{"$f":"IF(OR('OBJECTIFS GENERAUX'!$H$32=\"x\",'OBJECTIFS GENERAUX'!$H$33=\"x\",'OBJECTIFS GENERAUX'!$H$34=\"x\"),Feuil3!D41,\"\")","v":""},null,null,null,null,null,null,{"$f":"IF(OR('OBJECTIFS GENERAUX'!$H$32=\"x\",'OBJECTIFS GENERAUX'!$H$33=\"x\",'OBJECTIFS GENERAUX'!$H$34=\"x\"),\"x\",\"\")","v":""},518]
[null,null,{"$f":"IF(OR('OBJECTIFS GENERAUX'!$H$32=\"x\",'OBJECTIFS GENERAUX'!$H$33=\"x\",'OBJECTIFS GENERAUX'!$H$34=\"x\"),Feuil3!D43,\"\")","v":""},null,null,null,null,null,null,{"$f":"IF(OR('OBJECTIFS GENERAUX'!$H$32=\"x\",'OBJECTIFS GENERAUX'!$H$33=\"x\",'OBJECTIFS GENERAUX'!$H$34=\"x\"),\"x\",\"\")","v":""},519]
[null,null,{"$f":"IF(OR('OBJECTIFS GENERAUX'!$H$32=\"x\",'OBJECTIFS GENERAUX'!$H$33=\"x\",'OBJECTIFS GENERAUX'!$H$34=\"x\"),Feuil3!D44,\"\")","v":""},null,null,null,null,null,null,{"$f":"IF(OR('OBJECTIFS GENERAUX'!$H$32=\"x\",'OBJECTIFS GENERAUX'!$H$33=\"x\",'OBJECTIFS GENERAUX'!$H$34=\"x\"),\"x\",\"\")","v":""},520]
[null,null,{"$f":"IF(OR('OBJECTIFS GENERAUX'!$H$32=\"x\",'OBJECTIFS GENERAUX'!$H$33=\"x\",'OBJECTIFS GENERAUX'!$H$34=\"x\"),Feuil3!D45,\"\")","v":""},null,null,null,null,null,null,{"$f":"IF(OR('OBJECTIFS GENERAUX'!$H$32=\"x\",'OBJECTIFS GENERAUX'!$H$33=\"x\",'OBJECTIFS GENERAUX'!$H$34=\"x\"),\"x\",\"\")","v":""},521]
[null,null,{"$f":"IF('OBJECTIFS GENERAUX'!$H$33=\"x\",'Actions Ligue-district'!B40,\"\")","v":""},null,null,null,null,null,null,{"$f":"IF('OBJECTIFS GENERAUX'!$H$33=\"x\",\"x\",\"\")","v":""},522]
[null,null,{"$f":"IF('OBJECTIFS GENERAUX'!$H$34=\"x\",'Actions Ligue-district'!B41,\"\")","v":""},null,null,null,null,null,null,{"$f":"IF('OBJECTIFS GENERAUX'!$H$34=\"x\",\"x\",\"\")","v":""},523]
[]
[]
["Plan d’actions volet éducatif"]
[]
[null,null,null,"Saison N + 1"]
["Objectif général","Axe d'amélioration","Intitulé des actions et résultats envisagés","1er trimestre","2ème trimestre","3ème trimestre","Nom du responsable","Objectifs envisagés","Actions réalisées"]
[{"$f":"IF('OBJECTIFS GENERAUX'!$C$55=\"x\",Feuil3!$E$1,\"\")","v":""},{"$f":"IF('OBJECTIFS GENERAUX'!$C$55=\"x\",Feuil3!F2,\"\")","v":""},{"$f":"IF('OBJECTIFS GENERAUX'!$C$55=\"x\",Feuil3!F3,\"\")","v":""},null,null,null,null,null,null,{"$f":"IF('OBJECTIFS GENERAUX'!$C$55=\"x\",\"x\",\"\")","v":""},111]
[null,null,{"$f":"IF('OBJECTIFS GENERAUX'!$C$55=\"x\",Feuil3!F4,\"\")","v":""},null,null,null,null,null,null,{"$f":"IF('OBJECTIFS GENERAUX'!$C$55=\"x\",\"x\",\"\")","v":""},112]
[null,null,{"$f":"IF('OBJECTIFS GENERAUX'!$C$55=\"x\",Feuil3!F5,\"\")","v":""},null,null,null,null,null,null,{"$f":"IF('OBJECTIFS GENERAUX'!$C$55=\"x\",\"x\",\"\")","v":""},113]
[null,null,{"$f":"IF('OBJECTIFS GENERAUX'!$C$55=\"x\",Feuil3!F6,\"\")","v":""},null,null,null,null,null,null,{"$f":"IF('OBJECTIFS GENERAUX'!$C$55=\"x\",\"x\",\"\")","v":""},114]
[null,null,{"$f":"IF('OBJECTIFS GENERAUX'!$C$55=\"x\",Feuil3!F7,\"\")","v":""},null,null,null,null,null,null,{"$f":"IF('OBJECTIFS GENERAUX'!$C$55=\"x\",\"x\",\"\")","v":""},115]
[null,null,{"$f":"IF('OBJECTIFS GENERAUX'!$C$55=\"x\",'Actions Ligue-district'!B44,\"\")","v":""},null,null,null,null,null,null,{"$f":"IF('OBJECTIFS GENERAUX'!$C$55=\"x\",\"x\",\"\")","v":""},116]
[{"$f":"IF('OBJECTIFS GENERAUX'!$C$56=\"x\",Feuil3!$E$1,\"\")","v":""},{"$f":"IF('OBJECTIFS GENERAUX'!$C$56=\"x\",Feuil3!F7,\"\")","v":""},{"$f":"IF('OBJECTIFS GENERAUX'!$C$56=\"x\",Feuil3!F8,\"\")","v":""},null,null,null,null,null,null,{"$f":"IF('OBJECTIFS GENERAUX'!$C$56=\"x\",\"x\",\"\")","v":""},121]
[null,null,{"$f":"IF('OBJECTIFS GENERAUX'!$C$56=\"x\",Feuil3!F9,\"\")","v":""},null,null,null,null,null,null,{"$f":"IF('OBJECTIFS GENERAUX'!$C$56=\"x\",\"x\",\"\")","v":""},122]
[null,null,{"$f":"IF('OBJECTIFS GENERAUX'!$C$56=\"x\",Feuil3!F10,\"\")","v":""},null,null,null,null,null,null,{"$f":"IF('OBJECTIFS GENERAUX'!$C$56=\"x\",\"x\",\"\")","v":""},123]
[null,null,{"$f":"IF('OBJECTIFS GENERAUX'!$C$56=\"x\",'Actions Ligue-district'!B45,\"\")","v":""},null,null,null,null,null,null,{"$f":"IF('OBJECTIFS GENERAUX'!$C$56=\"x\",\"x\",\"\")","v":""},124]
[{"$f":"IF('OBJECTIFS GENERAUX'!$C$58=\"x\",Feuil3!E11,\"\")","v":""},{"$f":"IF('OBJECTIFS GENERAUX'!$C$58=\"x\",Feuil3!F12,\"\")","v":""},{"$f":"IF('OBJECTIFS GENERAUX'!$C$58=\"x\",Feuil3!F13,\"\")","v":""},null,null,null,null,null,null,{"$f":"IF('OBJECTIFS GENERAUX'!$C$58=\"x\",\"x\",\"\")","v":""},211]
[null,null,{"$f":"IF('OBJECTIFS GENERAUX'!$C$58=\"x\",Feuil3!F14,\"\")","v":""},null,null,null,null,null,null,{"$f":"IF('OBJECTIFS GENERAUX'!$C$58=\"x\",\"x\",\"\")","v":""},212]
[null,null,{"$f":"IF('OBJECTIFS GENERAUX'!$C$58=\"x\",Feuil3!F15,\"\")","v":""},null,null,null,null,null,null,{"$f":"IF('OBJECTIFS GENERAUX'!$C$58=\"x\",\"x\",\"\")","v":""},213]
[null,null,{"$f":"IF('OBJECTIFS GENERAUX'!$C$58=\"x\",Feuil3!F16,\"\")","v":""},null,null,null,null,null,null,{"$f":"IF('OBJECTIFS GENERAUX'!$C$58=\"x\",\"x\",\"\")","v":""},214]
[null,null,{"$f":"IF('OBJECTIFS GENERAUX'!$C$58=\"x\",Feuil3!F17,\"\")","v":""},null,null,null,null,null,null,{"$f":"IF('OBJECTIFS GENERAUX'!$C$58=\"x\",\"x\",\"\")","v":""},215]
[null,null,{"$f":"IF('OBJECTIFS GENERAUX'!$C$58=\"x\",'Actions Ligue-district'!B47,\"\")","v":""},null,null,null,null,null,null,{"$f":"IF('OBJECTIFS GENERAUX'!$C$58=\"x\",\"x\",\"\")","v":""},216]
[{"$f":"IF('OBJECTIFS GENERAUX'!$C$59=\"x\",Feuil3!E11,\"\")","v":""},{"$f":"IF('OBJECTIFS GENERAUX'!$C$59=\"x\",Feuil3!F18,\"\")","v":""},{"$f":"IF('OBJECTIFS GENERAUX'!$C$59=\"x\",Feuil3!F19,\"\")","v":""},null,null,null,null,null,null,{"$f":"IF('OBJECTIFS GENERAUX'!$C$59=\"x\",\"x\",\"\")","v":""},221]
[null,null,{"$f":"IF('OBJECTIFS GENERAUX'!$C$59=\"x\",Feuil3!F20,\"\")","v":""},null,null,null,null,null,null,{"$f":"IF('OBJECTIFS GENERAUX'!$C$59=\"x\",\"x\",\"\")","v":""},222]
[null,null,{"$f":"IF('OBJECTIFS GENERAUX'!$C$59=\"x\",Feuil3!F21,\"\")","v":""},null,null,null,null,null,null,{"$f":"IF('OBJECTIFS GENERAUX'!$C$59=\"x\",\"x\",\"\")","v":""},223]
[null,null,{"$f":"IF('OBJECTIFS GENERAUX'!$C$59=\"x\",Feuil3!F22,\"\")","v":""},null,null,null,null,null,null,{"$f":"IF('OBJECTIFS GENERAUX'!$C$59=\"x\",\"x\",\"\")","v":""},224]
[null,null,{"$f":"IF('OBJECTIFS GENERAUX'!$C$59=\"x\",Feuil3!F23,\"\")","v":""},null,null,null,null,null,null,{"$f":"IF('OBJECTIFS GENERAUX'!$C$59=\"x\",\"x\",\"\")","v":""},225]
[null,null,{"$f":"IF('OBJECTIFS GENERAUX'!$C$59=\"x\",'Actions Ligue-district'!B48,\"\")","v":""},null,null,null,null,null,null,{"$f":"IF('OBJECTIFS GENERAUX'!$C$59=\"x\",\"x\",\"\")","v":""},226]
[{"$f":"IF('OBJECTIFS GENERAUX'!$H$55=\"x\",Feuil3!E24,\"\")","v":""},{"$f":"IF('OBJECTIFS GENERAUX'!$H$55=\"x\",Feuil3!F25,\"\")","v":""},{"$f":"IF('OBJECTIFS GENERAUX'!$H$55=\"x\",Feuil3!F26,\"\")","v":""},null,null,null,null,null,null,{"$f":"IF('OBJECTIFS GENERAUX'!$H$55=\"x\",\"x\",\"\")","v":""},311]
[null,null,{"$f":"IF('OBJECTIFS GENERAUX'!$H$55=\"x\",Feuil3!F27,\"\")","v":""},null,null,null,null,null,null,{"$f":"IF('OBJECTIFS GENERAUX'!$H$55=\"x\",\"x\",\"\")","v":""},312]
[null,null,{"$f":"IF('OBJECTIFS GENERAUX'!$H$55=\"x\",Feuil3!F28,\"\")","v":""},null,null,null,null,null,null,{"$f":"IF('OBJECTIFS GENERAUX'!$H$55=\"x\",\"x\",\"\")","v":""},313]
[null,null,{"$f":"IF('OBJECTIFS GENERAUX'!$H$55=\"x\",Feuil3!F29,\"\")","v":""},null,null,null,null,null,null,{"$f":"IF('OBJECTIFS GENERAUX'!$H$55=\"x\",\"x\",\"\")","v":""},314]
[null,null,{"$f":"IF('OBJECTIFS GENERAUX'!$H$55=\"x\",Feuil3!F30,\"\")","v":""},null,null,null,null,null,null,{"$f":"IF('OBJECTIFS GENERAUX'!$H$55=\"x\",\"x\",\"\")","v":""},315]
[null,null,{"$f":"IF('OBJECTIFS GENERAUX'!$H$55=\"x\",'Actions Ligue-district'!B50,\"\")","v":""},null,null,null,null,null,null,{"$f":"IF('OBJECTIFS GENERAUX'!$H$55=\"x\",\"x\",\"\")","v":""},315]
[]
[]
["Plan d’actions volet Encadrement et Formation"]
[]
[null,null,null,"Saison N + 1"]
["Objectif général","Axe d'amélioration","Intitulé des actions et résultats envisagés","1er trimestre","2ème trimestre","3ème trimestre","Nom du responsable","Objectifs envisagés","Actions réalisées"]
[{"$f":"IF('OBJECTIFS GENERAUX'!$C$70=\"x\",Feuil3!$G$1,\"\")","v":""},{"$f":"IF('OBJECTIFS GENERAUX'!$C$70=\"x\",Feuil3!H2,\"\")","v":""},{"$f":"IF('OBJECTIFS GENERAUX'!$C$70=\"x\",Feuil3!H3,\"\")","v":""},null,null,null,null,null,null,{"$f":"IF('OBJECTIFS GENERAUX'!$C$70=\"x\",\"x\",\"\")","v":""},111]
[null,null,{"$f":"IF('OBJECTIFS GENERAUX'!$C$70=\"x\",Feuil3!H4,\"\")","v":""},null,null,null,null,null,null,{"$f":"IF('OBJECTIFS GENERAUX'!$C$70=\"x\",\"x\",\"\")","v":""},112]
[null,null,{"$f":"IF('OBJECTIFS GENERAUX'!$C$70=\"x\",Feuil3!H5,\"\")","v":""},null,null,null,null,null,null,{"$f":"IF('OBJECTIFS GENERAUX'!$C$70=\"x\",\"x\",\"\")","v":""},113]
[{"$f":"IF('OBJECTIFS GENERAUX'!$C$70=\"x\",Feuil3!$G$1,\"\")","v":""},{"$f":"IF('OBJECTIFS GENERAUX'!$C$70=\"x\",Feuil3!H6,\"\")","v":""},{"$f":"IF('OBJECTIFS GENERAUX'!$C$70=\"x\",Feuil3!H6,\"\")","v":""},null,null,null,null,null,null,{"$f":"IF('OBJECTIFS GENERAUX'!$C$70=\"x\",\"x\",\"\")","v":""},114]
[null,null,{"$f":"IF('OBJECTIFS GENERAUX'!$C$70=\"x\",Feuil3!H7,\"\")","v":""},null,null,null,null,null,null,{"$f":"IF('OBJECTIFS GENERAUX'!$C$70=\"x\",\"x\",\"\")","v":""},115]
[null,null,{"$f":"IF('OBJECTIFS GENERAUX'!$C$70=\"x\",Feuil3!H8,\"\")","v":""},null,null,null,null,null,null,{"$f":"IF('OBJECTIFS GENERAUX'!$C$70=\"x\",\"x\",\"\")","v":""},116]
[null,null,{"$f":"IF('OBJECTIFS GENERAUX'!$C$70=\"x\",'Actions Ligue-district'!B53,\"\")","v":""},null,null,null,null,null,null,{"$f":"IF('OBJECTIFS GENERAUX'!$C$70=\"x\",\"x\",\"\")","v":""},117]
[{"$f":"IF('OBJECTIFS GENERAUX'!$C$71=\"x\",Feuil3!$G$1,\"\")","v":""},{"$f":"IF('OBJECTIFS GENERAUX'!$C$71=\"x\",Feuil3!H10,\"\")","v":""},{"$f":"IF('OBJECTIFS GENERAUX'!$C$71=\"x\",Feuil3!H11,\"\")","v":""},null,null,null,null,null,null,{"$f":"IF('OBJECTIFS GENERAUX'!$C$71=\"x\",\"x\",\"\")","v":""},121]
[null,null,{"$f":"IF('OBJECTIFS GENERAUX'!$C$71=\"x\",Feuil3!H12,\"\")","v":""},null,null,null,null,null,null,{"$f":"IF('OBJECTIFS GENERAUX'!$C$71=\"x\",\"x\",\"\")","v":""},122]
[null,null,{"$f":"IF('OBJECTIFS GENERAUX'!$C$71=\"x\",Feuil3!H13,\"\")","v":""},null,null,null,null,null,null,{"$f":"IF('OBJECTIFS GENERAUX'!$C$71=\"x\",\"x\",\"\")","v":""},123]
[null,null,{"$f":"IF('OBJECTIFS GENERAUX'!$C$71=\"x\",'Actions Ligue-district'!B54,\"\")","v":""},null,null,null,null,null,null,{"$f":"IF('OBJECTIFS GENERAUX'!$C$71=\"x\",\"x\",\"\")","v":""},124]
[{"$f":"IF('OBJECTIFS GENERAUX'!$C$72=\"x\",Feuil3!$G$1,\"\")","v":""},{"$f":"IF('OBJECTIFS GENERAUX'!$C$72=\"x\",Feuil3!H14,\"\")","v":""},{"$f":"IF('OBJECTIFS GENERAUX'!$C$72=\"x\",Feuil3!H15,\"\")","v":""},null,null,null,null,null,null,{"$f":"IF('OBJECTIFS GENERAUX'!$C$72=\"x\",\"x\",\"\")","v":""},131]
[null,null,{"$f":"IF('OBJECTIFS GENERAUX'!$C$72=\"x\",'Actions Ligue-district'!B55,\"\")","v":""},null,null,null,null,null,null,{"$f":"IF('OBJECTIFS GENERAUX'!$C$72=\"x\",\"x\",\"\")","v":""},132]
[{"$f":"IF('OBJECTIFS GENERAUX'!$C$73=\"x\",Feuil3!$G$1,\"\")","v":""},{"$f":"IF('OBJECTIFS GENERAUX'!$C$73=\"x\",Feuil3!H16,\"\")","v":""},{"$f":"IF('OBJECTIFS GENERAUX'!$C$73=\"x\",Feuil3!H17,\"\")","v":""},null,null,null,null,null,null,{"$f":"IF('OBJECTIFS GENERAUX'!$C$73=\"x\",\"x\",\"\")","v":""},141]
[null,null,{"$f":"IF('OBJECTIFS GENERAUX'!$C$73=\"x\",Feuil3!H18,\"\")","v":""},null,null,null,null,null,null,{"$f":"IF('OBJECTIFS GENERAUX'!$C$73=\"x\",\"x\",\"\")","v":""},142]
[null,null,{"$f":"IF('OBJECTIFS GENERAUX'!$C$73=\"x\",Feuil3!H19,\"\")","v":""},null,null,null,null,null,null,{"$f":"IF('OBJECTIFS GENERAUX'!$C$73=\"x\",\"x\",\"\")","v":""},143]
[null,null,{"$f":"IF('OBJECTIFS GENERAUX'!$C$73=\"x\",Feuil3!H20,\"\")","v":""},null,null,null,null,null,null,{"$f":"IF('OBJECTIFS GENERAUX'!$C$73=\"x\",\"x\",\"\")","v":""},144]
[null,null,{"$f":"IF('OBJECTIFS GENERAUX'!$C$73=\"x\",Feuil3!H21,\"\")","v":""},null,null,null,null,null,null,{"$f":"IF('OBJECTIFS GENERAUX'!$C$73=\"x\",\"x\",\"\")","v":""},145]
[null,null,{"$f":"IF('OBJECTIFS GENERAUX'!$C$73=\"x\",'Actions Ligue-district'!B56,\"\")","v":""},null,null,null,null,null,null,{"$f":"IF('OBJECTIFS GENERAUX'!$C$73=\"x\",\"x\",\"\")","v":""},146]
[{"$f":"IF('OBJECTIFS GENERAUX'!$C$74=\"x\",Feuil3!$G$1,\"\")","v":""},{"$f":"IF('OBJECTIFS GENERAUX'!$C$74=\"x\",Feuil3!H22,\"\")","v":""},{"$f":"IF('OBJECTIFS GENERAUX'!$C$74=\"x\",Feuil3!H23,\"\")","v":""},null,null,null,null,null,null,{"$f":"IF('OBJECTIFS GENERAUX'!$C$74=\"x\",\"x\",\"\")","v":""},151]
[null,null,{"$f":"IF('OBJECTIFS GENERAUX'!$C$74=\"x\",Feuil3!H24,\"\")","v":""},null,null,null,null,null,null,{"$f":"IF('OBJECTIFS GENERAUX'!$C$74=\"x\",\"x\",\"\")","v":""},152]
[null,null,{"$f":"IF('OBJECTIFS GENERAUX'!$C$74=\"x\",Feuil3!H25,\"\")","v":""},null,null,null,null,null,null,{"$f":"IF('OBJECTIFS GENERAUX'!$C$74=\"x\",\"x\",\"\")","v":""},153]
[null,null,{"$f":"IF('OBJECTIFS GENERAUX'!$C$74=\"x\",'Actions Ligue-district'!B57,\"\")","v":""},null,null,null,null,null,null,{"$f":"IF('OBJECTIFS GENERAUX'!$C$74=\"x\",\"x\",\"\")","v":""},154]
[{"$f":"IF('OBJECTIFS GENERAUX'!$H$70=\"x\",Feuil3!G26,\"\")","v":""},{"$f":"IF('OBJECTIFS GENERAUX'!$H$70=\"x\",Feuil3!H27,\"\")","v":""},{"$f":"IF('OBJECTIFS GENERAUX'!$H$70=\"x\",Feuil3!H28,\"\")","v":""},null,null,null,null,null,null,{"$f":"IF('OBJECTIFS GENERAUX'!$H$70=\"x\",\"x\",\"\")","v":""},211]
[null,null,{"$f":"IF('OBJECTIFS GENERAUX'!$H$70=\"x\",Feuil3!H29,\"\")","v":""},null,null,null,null,null,null,{"$f":"IF('OBJECTIFS GENERAUX'!$H$70=\"x\",\"x\",\"\")","v":""},212]
[null,null,{"$f":"IF('OBJECTIFS GENERAUX'!$H$70=\"x\",Feuil3!H30,\"\")","v":""},null,null,null,null,null,null,{"$f":"IF('OBJECTIFS GENERAUX'!$H$70=\"x\",\"x\",\"\")","v":""},213]
[null,null,{"$f":"IF('OBJECTIFS GENERAUX'!$H$70=\"x\",Feuil3!H31,\"\")","v":""},null,null,null,null,null,null,{"$f":"IF('OBJECTIFS GENERAUX'!$H$70=\"x\",\"x\",\"\")","v":""},214]
[null,null,{"$f":"IF('OBJECTIFS GENERAUX'!$H$70=\"x\",'Actions Ligue-district'!B59,\"\")","v":""},null,null,null,null,null,null,{"$f":"IF('OBJECTIFS GENERAUX'!$H$70=\"x\",\"x\",\"\")","v":""},215]
[{"$f":"IF('OBJECTIFS GENERAUX'!$H$71=\"x\",Feuil3!G26,\"\")","v":""},{"$f":"IF('OBJECTIFS GENERAUX'!$H$71=\"x\",Feuil3!H32,\"\")","v":""},{"$f":"IF('OBJECTIFS GENERAUX'!$H$71=\"x\",Feuil3!H33,\"\")","v":""},null,null,null,null,null,null,{"$f":"IF('OBJECTIFS GENERAUX'!$H$71=\"x\",\"x\",\"\")","v":""},221]
[null,null,{"$f":"IF('OBJECTIFS GENERAUX'!$H$71=\"x\",Feuil3!H34,\"\")","v":""},null,null,null,null,null,null,{"$f":"IF('OBJECTIFS GENERAUX'!$H$71=\"x\",\"x\",\"\")","v":""},222]
[null,null,{"$f":"IF('OBJECTIFS GENERAUX'!$H$71=\"x\",Feuil3!H35,\"\")","v":""},null,null,null,null,null,null,{"$f":"IF('OBJECTIFS GENERAUX'!$H$71=\"x\",\"x\",\"\")","v":""},223]
[null,null,{"$f":"IF('OBJECTIFS GENERAUX'!$H$71=\"x\",Feuil3!H36,\"\")","v":""},null,null,null,null,null,null,{"$f":"IF('OBJECTIFS GENERAUX'!$H$71=\"x\",\"x\",\"\")","v":""},224]
[null,null,{"$f":"IF('OBJECTIFS GENERAUX'!$H$71=\"x\",'Actions Ligue-district'!B60,\"\")","v":""},null,null,null,null,null,null,{"$f":"IF('OBJECTIFS GENERAUX'!$H$71=\"x\",\"x\",\"\")","v":""},225]

{"sheet":"Visite N + 2","index":8,"n_rows":22,"n_cols":6,"rows_kept":22,"cut":false,"hidden":false,"merged":[[22,0,24,7],[17,1,17,4],[17,5,17,8],[18,1,18,4],[18,5,18,8],[19,1,19,4],[19,5,19,8],[14,1,14,4],[14,5,14,8],[15,1,15,4],[15,5,15,8],[16,1,16,4],[16,5,16,8],[11,1,11,4],[11,5,11,8],[12,1,12,4],[12,5,12,8],[13,1,13,4],[13,5,13,8],[7,3,7,4],[7,5,7,7],[8,3,8,4],[8,5,8,7],[10,1,10,4],[10,5,10,8],[4,3,4,4],[4,5,4,7],[5,3,5,4],[5,5,5,7],[6,3,6,4],[6,5,6,7],[0,3,0,4],[0,6,0,7],[2,3,2,4],[2,5,2,7],[3,3,3,4],[3,5,3,7]]}
["Visite N + 2 :",null,null,{"$f":"'Page 1'!$A$7","v":"NOM DU CLUB"},null,"LE :"]
[]
["Représentants FFF :"]
[]
[]
["Représentants clubs :"]
[]
[]
[]
[]
[null,"Points Faibles",null,null,null,"Points Forts"]
[]
[]
[]
[]
[]
[]
[]
[]
[]
[]
["Commentaires :"]

{"sheet":"Plan d'action N + 2","index":9,"n_rows":236,"n_cols":13,"rows_kept":236,"cut":false,"hidden":false,"merged":[[0,3,0,8],[3,3,3,8],[106,3,106,8],[167,3,167,8],[201,3,201,8]]}
["PLAN D'ACTIONS ",null,{"$f":"'Page 1'!$A$7","v":"NOM DU CLUB"},"2021/2022"]
[]
["Plan d’actions volet associatif"]
[null,null,null,"Saison N + 2"]
["Objectif général","Axe d'amélioration","Intitulé des actions et résultats envisagés","1er trimestre","2ème trimestre","3ème trimestre","Nom du responsable","Objectifs envisagés","Actions réalisées"]
[{"$f":"IF('OBJECTIFS GENERAUX'!$D$9=\"x\",Feuil3!$A$1,\"\")","v":""},{"$f":"IF('OBJECTIFS GENERAUX'!$D$9=\"x\",Feuil3!$B$2,\"\")","v":""},{"$f":"IF('OBJECTIFS GENERAUX'!$D$9=\"x\",Feuil3!B3,\"\")","v":""},null,null,null,null,null,null,{"$f":"IF('OBJECTIFS GENERAUX'!$D$9=\"x\",\"x\",\"\")","v":""},111,null,"X"]
[null,null,{"$f":"IF('OBJECTIFS GENERAUX'!$D$9=\"x\",Feuil3!B4,\"\")","v":""},null,null,null,null,null,null,{"$f":"IF('OBJECTIFS GENERAUX'!$D$9=\"x\",\"x\",\"\")","v":""},112]
[null,null,{"$f":"IF('OBJECTIFS GENERAUX'!$D$9=\"x\",Feuil3!B5,\"\")","v":""},null,null,null,null,null,null,{"$f":"IF('OBJECTIFS GENERAUX'!$D$9=\"x\",\"x\",\"\")","v":""},113]
[null,null,{"$f":"IF('OBJECTIFS GENERAUX'!$D$9=\"x\",Feuil3!B6,\"\")","v":""},null,null,null,null,null,null,{"$f":"IF('OBJECTIFS GENERAUX'!$D$9=\"x\",\"x\",\"\")","v":""},114]
[null,null,{"$f":"IF('OBJECTIFS GENERAUX'!$D$9=\"x\",Feuil3!B7,\"\")","v":""},null,null,null,null,null,null,{"$f":"IF('OBJECTIFS GENERAUX'!$D$9=\"x\",\"x\",\"\")","v":""},115]
[null,null,{"$f":"IF('OBJECTIFS GENERAUX'!$D$9=\"x\",Feuil3!B8,\"\")","v":""},null,null,null,null,null,null,{"$f":"IF('OBJECTIFS GENERAUX'!$D$9=\"x\",\"x\",\"\")","v":""},116]
[null,null,{"$f":"IF('OBJECTIFS GENERAUX'!$D$9=\"x\",'Actions Ligue-district'!B3,\"\")","v":""},null,null,null,null,null,null,{"$f":"IF('OBJECTIFS GENERAUX'!$D$9=\"x\",\"x\",\"\")","v":""},117]
[{"$f":"IF('OBJECTIFS GENERAUX'!$D$10=\"x\",Feuil3!$A$1,\"\")","v":""},{"$f":"IF('OBJECTIFS GENERAUX'!$D$10=\"x\",Feuil3!$B$9,\"\")","v":""},{"$f":"IF('OBJECTIFS GENERAUX'!$D$10=\"x\",Feuil3!B10,\"\")","v":""},null,null,null,null,null,null,{"$f":"IF('OBJECTIFS GENERAUX'!$D$10=\"x\",\"x\",\"\")","v":""},121]
[null,null,{"$f":"IF('OBJECTIFS GENERAUX'!$D$10=\"x\",Feuil3!B11,\"\")","v":""},null,null,null,null,null,null,{"$f":"IF('OBJECTIFS GENERAUX'!$D$10=\"x\",\"x\",\"\")","v":""},122]
[null,null,{"$f":"IF('OBJECTIFS GENERAUX'!$D$10=\"x\",Feuil3!B12,\"\")","v":""},null,null,null,null,null,null,{"$f":"IF('OBJECTIFS GENERAUX'!$D$10=\"x\",\"x\",\"\")","v":""},123]
[null,null,{"$f":"IF('OBJECTIFS GENERAUX'!$D$10=\"x\",Feuil3!B13,\"\")","v":""},null,null,null,null,null,null,{"$f":"IF('OBJECTIFS GENERAUX'!$D$10=\"x\",\"x\",\"\")","v":""},124]
[null,null,{"$f":"IF('OBJECTIFS GENERAUX'!$D$10=\"x\",Feuil3!B14,\"\")","v":""},null,null,null,null,null,null,{"$f":"IF('OBJECTIFS GENERAUX'!$D$10=\"x\",\"x\",\"\")","v":""},125]
[null,null,{"$f":"IF('OBJECTIFS GENERAUX'!$D$10=\"x\",Feuil3!B15,\"\")","v":""},null,null,null,null,null,null,{"$f":"IF('OBJECTIFS GENERAUX'!$D$10=\"x\",\"x\",\"\")","v":""},126]
[null,null,{"$f":"IF('OBJECTIFS GENERAUX'!$D$10=\"x\",Feuil3!B16,\"\")","v":""},null,null,null,null,null,null,{"$f":"IF('OBJECTIFS GENERAUX'!$D$10=\"x\",\"x\",\"\")","v":""},127]
[null,null,{"$f":"IF('OBJECTIFS GENERAUX'!$D$10=\"x\",'Actions Ligue-district'!B4,\"\")","v":""},null,null,null,null,null,null,{"$f":"IF('OBJECTIFS GENERAUX'!$D$10=\"x\",\"x\",\"\")","v":""},127]
[{"$f":"IF(OR('OBJECTIFS GENERAUX'!$D$12=\"x\",'OBJECTIFS GENERAUX'!$D$13=\"x\"),Feuil3!A17,\"\")","v":""},{"$f":"IF(OR('OBJECTIFS GENERAUX'!$D$12=\"x\",'OBJECTIFS GENERAUX'!$D$13=\"x\"),Feuil3!$B$18,\"\")","v":""},{"$f":"IF(OR('OBJECTIFS GENERAUX'!$D$12=\"x\",'OBJECTIFS GENERAUX'!$D$13=\"x\"),Feuil3!B19,\"\")","v":""},null,null,null,null,null,null,{"$f":"IF(OR('OBJECTIFS GENERAUX'!$D$12=\"x\",'OBJECTIFS GENERAUX'!$D$13=\"x\"),\"x\",\"\")","v":""},211]
[null,null,{"$f":"IF(OR('OBJECTIFS GENERAUX'!$D$12=\"x\",'OBJECTIFS GENERAUX'!$D$13=\"x\"),Feuil3!B20,\"\")","v":""},null,null,null,null,null,null,{"$f":"IF(OR('OBJECTIFS GENERAUX'!$D$12=\"x\",'OBJECTIFS GENERAUX'!$D$13=\"x\"),\"x\",\"\")","v":""},212]
[null,null,{"$f":"IF(OR('OBJECTIFS GENERAUX'!$D$12=\"x\",'OBJECTIFS GENERAUX'!$D$13=\"x\"),Feuil3!B21,\"\")","v":""},null,null,null,null,null,null,{"$f":"IF(OR('OBJECTIFS GENERAUX'!$D$12=\"x\",'OBJECTIFS GENERAUX'!$D$13=\"x\"),\"x\",\"\")","v":""},213]
[null,null,{"$f":"IF(OR('OBJECTIFS GENERAUX'!$D$12=\"x\",'OBJECTIFS GENERAUX'!$D$13=\"x\"),Feuil3!B22,\"\")","v":""},null,null,null,null,null,null,{"$f":"IF(OR('OBJECTIFS GENERAUX'!$D$12=\"x\",'OBJECTIFS GENERAUX'!$D$13=\"x\"),\"x\",\"\")","v":""},214]
[null,null,{"$f":"IF(OR('OBJECTIFS GENERAUX'!$D$12=\"x\",'OBJECTIFS GENERAUX'!$D$13=\"x\"),Feuil3!B23,\"\")","v":""},null,null,null,null,null,null,{"$f":"IF(OR('OBJECTIFS GENERAUX'!$D$12=\"x\",'OBJECTIFS GENERAUX'!$D$13=\"x\"),\"x\",\"\")","v":""},215]
[null,null,{"$f":"IF(OR('OBJECTIFS GENERAUX'!$D$12=\"x\",'OBJECTIFS GENERAUX'!$D$13=\"x\"),'Actions Ligue-district'!B6,\"\")","v":""},null,null,null,null,null,null,{"$f":"IF(OR('OBJECTIFS GENERAUX'!$D$12=\"x\",'OBJECTIFS GENERAUX'!$D$13=\"x\"),\"x\",\"\")","v":""},215]
[{"$f":"IF(OR('OBJECTIFS GENERAUX'!$D$12=\"x\",'OBJECTIFS GENERAUX'!$D$13=\"x\"),Feuil3!A17,\"\")","v":""},{"$f":"IF(OR('OBJECTIFS GENERAUX'!$D$12=\"x\",'OBJECTIFS GENERAUX'!$D$13=\"x\"),Feuil3!$B$24,\"\")","v":""},{"$f":"IF(OR('OBJECTIFS GENERAUX'!$D$12=\"x\",'OBJECTIFS GENERAUX'!$D$13=\"x\"),Feuil3!B25,\"\")","v":""},null,null,null,null,null,null,{"$f":"IF(OR('OBJECTIFS GENERAUX'!$D$12=\"x\",'OBJECTIFS GENERAUX'!$D$13=\"x\"),\"x\",\"\")","v":""},221]
[null,null,{"$f":"IF(OR('OBJECTIFS GENERAUX'!$D$12=\"x\",'OBJECTIFS GENERAUX'!$D$13=\"x\"),Feuil3!B26,\"\")","v":""},null,null,null,null,null,null,{"$f":"IF(OR('OBJECTIFS GENERAUX'!$D$12=\"x\",'OBJECTIFS GENERAUX'!$D$13=\"x\"),\"x\",\"\")","v":""},222]
[null,null,{"$f":"IF(OR('OBJECTIFS GENERAUX'!$D$12=\"x\",'OBJECTIFS GENERAUX'!$D$13=\"x\"),Feuil3!B27,\"\")","v":""},null,null,null,null,null,null,{"$f":"IF(OR('OBJECTIFS GENERAUX'!$D$12=\"x\",'OBJECTIFS GENERAUX'!$D$13=\"x\"),\"x\",\"\")","v":""},223]
[null,null,{"$f":"IF(OR('OBJECTIFS GENERAUX'!$D$12=\"x\",'OBJECTIFS GENERAUX'!$D$13=\"x\"),Feuil3!B28,\"\")","v":""},null,null,null,null,null,null,{"$f":"IF(OR('OBJECTIFS GENERAUX'!$D$12=\"x\",'OBJECTIFS GENERAUX'!$D$13=\"x\"),\"x\",\"\")","v":""},224]
[null,null,{"$f":"IF(OR('OBJECTIFS GENERAUX'!$D$12=\"x\",'OBJECTIFS GENERAUX'!$D$13=\"x\"),'Actions Ligue-district'!B7,\"\")","v":""},null,null,null,null,null,null,{"$f":"IF(OR('OBJECTIFS GENERAUX'!$D$12=\"x\",'OBJECTIFS GENERAUX'!$D$13=\"x\"),\"x\",\"\")","v":""},225]
[{"$f":"IF('OBJECTIFS GENERAUX'!$D$15=\"x\",Feuil3!$A$29,\"\")","v":""},{"$f":"IF('OBJECTIFS GENERAUX'!$D$15=\"x\",Feuil3!$B$30,\"\")","v":""},{"$f":"IF('OBJECTIFS GENERAUX'!$D$15=\"x\",Feuil3!B31,\"\")","v":""},null,null,null,null,null,null,{"$f":"IF('OBJECTIFS GENERAUX'!$D$15=\"x\",\"x\",\"\")","v":""},311]
[null,null,{"$f":"IF('OBJECTIFS GENERAUX'!$D$15=\"x\",Feuil3!B32,\"\")","v":""},null,null,null,null,null,null,{"$f":"IF('OBJECTIFS GENERAUX'!$D$15=\"x\",\"x\",\"\")","v":""},312]
[null,null,{"$f":"IF('OBJECTIFS GENERAUX'!$D$15=\"x\",Feuil3!B33,\"\")","v":""},null,null,null,null,null,null,{"$f":"IF('OBJECTIFS GENERAUX'!$D$15=\"x\",\"x\",\"\")","v":""},313]
[null,null,{"$f":"IF('OBJECTIFS GENERAUX'!$D$15=\"x\",Feuil3!B34,\"\")","v":""},null,null,null,null,null,null,{"$f":"IF('OBJECTIFS GENERAUX'!$D$15=\"x\",\"x\",\"\")","v":""},314]
[null,null,{"$f":"IF('OBJECTIFS GENERAUX'!$D$15=\"x\",Feuil3!B35,\"\")","v":""},null,null,null,null,null,null,{"$f":"IF('OBJECTIFS GENERAUX'!$D$15=\"x\",\"x\",\"\")","v":""},315]
[null,null,{"$f":"IF('OBJECTIFS GENERAUX'!$D$15=\"x\",Feuil3!B36,\"\")","v":""},null,null,null,null,null,null,{"$f":"IF('OBJECTIFS GENERAUX'!$D$15=\"x\",\"x\",\"\")","v":""},316]
[null,null,{"$f":"IF('OBJECTIFS GENERAUX'!$D$15=\"x\",Feuil3!B37,\"\")","v":""},null,null,null,null,null,null,{"$f":"IF('OBJECTIFS GENERAUX'!$D$15=\"x\",\"x\",\"\")","v":""},317]
[null,null,{"$f":"IF('OBJECTIFS GENERAUX'!$D$15=\"x\",'Actions Ligue-district'!B9,\"\")","v":""},null,null,null,null,null,null,{"$f":"IF('OBJECTIFS GENERAUX'!$D$15=\"x\",\"x\",\"\")","v":""},318]
[{"$f":"IF('OBJECTIFS GENERAUX'!$D$16=\"x\",Feuil3!$A$29,\"\")","v":""},{"$f":"IF('OBJECTIFS GENERAUX'!$D$16=\"x\",Feuil3!B38,\"\")","v":""},{"$f":"IF('OBJECTIFS GENERAUX'!$D$16=\"x\",Feuil3!B39,\"\")","v":""},null,null,null,null,null,null,{"$f":"IF('OBJECTIFS GENERAUX'!$D$16=\"x\",\"x\",\"\")","v":""},321]
[null,null,{"$f":"IF('OBJECTIFS GENERAUX'!$D$16=\"x\",Feuil3!B40,\"\")","v":""},null,null,null,null,null,null,{"$f":"IF('OBJECTIFS GENERAUX'!$D$16=\"x\",\"x\",\"\")","v":""},322]
[null,null,{"$f":"IF('OBJECTIFS GENERAUX'!$D$16=\"x\",Feuil3!B42,\"\")","v":""},null,null,null,null,null,null,{"$f":"IF('OBJECTIFS GENERAUX'!$D$16=\"x\",\"x\",\"\")","v":""},323]
[null,null,{"$f":"IF('OBJECTIFS GENERAUX'!$D$16=\"x\",Feuil3!B41,\"\")","v":""},null,null,null,null,null,null,{"$f":"IF('OBJECTIFS GENERAUX'!$D$16=\"x\",\"x\",\"\")","v":""},324]
[null,null,{"$f":"IF('OBJECTIFS GENERAUX'!$D$16=\"x\",'Actions Ligue-district'!B10,\"\")","v":""},null,null,null,null,null,null,{"$f":"IF('OBJECTIFS GENERAUX'!$D$16=\"x\",\"x\",\"\")","v":""},325]
[{"$f":"IF('OBJECTIFS GENERAUX'!$D$17=\"x\",Feuil3!$A$43,\"\")","v":""},{"$f":"IF('OBJECTIFS GENERAUX'!$D$17=\"x\",Feuil3!$B$43,\"\")","v":""},{"$f":"IF('OBJECTIFS GENERAUX'!$D$17=\"x\",Feuil3!B44,\"\")","v":""},null,null,null,null,null,null,{"$f":"IF('OBJECTIFS GENERAUX'!$D$17=\"x\",\"x\",\"\")","v":""},411]
[null,null,{"$f":"IF('OBJECTIFS GENERAUX'!$D$17=\"x\",Feuil3!B45,\"\")","v":""},null,null,null,null,null,null,{"$f":"IF('OBJECTIFS GENERAUX'!$D$17=\"x\",\"x\",\"\")","v":""},412]
[null,null,{"$f":"IF('OBJECTIFS GENERAUX'!$D$17=\"x\",Feuil3!B46,\"\")","v":""},null,null,null,null,null,null,{"$f":"IF('OBJECTIFS GENERAUX'!$D$17=\"x\",\"x\",\"\")","v":""},413]
[null,null,{"$f":"IF('OBJECTIFS GENERAUX'!$D$17=\"x\",Feuil3!B47,\"\")","v":""},null,null,null,null,null,null,{"$f":"IF('OBJECTIFS GENERAUX'!$D$17=\"x\",\"x\",\"\")","v":""},414]
[null,null,{"$f":"IF('OBJECTIFS GENERAUX'!$D$17=\"x\",Feuil3!B48,\"\")","v":""},null,null,null,null,null,null,{"$f":"IF('OBJECTIFS GENERAUX'!$D$17=\"x\",\"x\",\"\")","v":""},415]
[null,null,{"$f":"IF('OBJECTIFS GENERAUX'!$D$17=\"x\",Feuil3!B49,\"\")","v":""},null,null,null,null,null,null,{"$f":"IF('OBJECTIFS GENERAUX'!$D$17=\"x\",\"x\",\"\")","v":""},416]
[null,null,{"$f":"IF('OBJECTIFS GENERAUX'!$D$17=\"x\",'Actions Ligue-district'!B11,\"\")","v":""},null,null,null,null,null,null,{"$f":"IF('OBJECTIFS GENERAUX'!$D$17=\"x\",\"x\",\"\")","v":""},417]
[{"$f":"IF('OBJECTIFS GENERAUX'!$D$18=\"x\",Feuil3!$A$50,\"\")","v":""},{"$f":"IF('OBJECTIFS GENERAUX'!$D$18=\"x\",Feuil3!$B$50,\"\")","v":""},{"$f":"IF('OBJECTIFS GENERAUX'!$D$18=\"x\",Feuil3!B51,\"\")","v":""},null,null,null,null,null,null,{"$f":"IF('OBJECTIFS GENERAUX'!$D$18=\"x\",\"x\",\"\")","v":""},511]
[null,null,{"$f":"IF('OBJECTIFS GENERAUX'!$D$18=\"x\",Feuil3!B52,\"\")","v":""},null,null,null,null,null,null,{"$f":"IF('OBJECTIFS GENERAUX'!$D$18=\"x\",\"x\",\"\")","v":""},512]
[null,null,{"$f":"IF('OBJECTIFS GENERAUX'!$D$18=\"x\",Feuil3!B53,\"\")","v":""},null,null,null,null,null,null,{"$f":"IF('OBJECTIFS GENERAUX'!$D$18=\"x\",\"x\",\"\")","v":""},513]
[null,null,{"$f":"IF('OBJECTIFS GENERAUX'!$D$18=\"x\",'Actions Ligue-district'!B13,\"\")","v":""},null,null,null,null,null,null,{"$f":"IF('OBJECTIFS GENERAUX'!$D$18=\"x\",\"x\",\"\")","v":""},514]
[{"$f":"IF('OBJECTIFS GENERAUX'!$D$18=\"x\",Feuil3!$A$50,\"\")","v":""},{"$f":"IF('OBJECTIFS GENERAUX'!$D$18=\"x\",Feuil3!$B$54,\"\")","v":""},{"$f":"IF('OBJECTIFS GENERAUX'!$D$18=\"x\",Feuil3!B55,\"\")","v":""},null,null,null,null,null,null,{"$f":"IF('OBJECTIFS GENERAUX'!$D$18=\"x\",\"x\",\"\")","v":""},521]
[null,null,{"$f":"IF('OBJECTIFS GENERAUX'!$D$18=\"x\",Feuil3!B56,\"\")","v":""},null,null,null,null,null,null,{"$f":"IF('OBJECTIFS GENERAUX'!$D$18=\"x\",\"x\",\"\")","v":""},522]
[null,null,{"$f":"IF('OBJECTIFS GENERAUX'!$D$18=\"x\",Feuil3!B57,\"\")","v":""},null,null,null,null,null,null,{"$f":"IF('OBJECTIFS GENERAUX'!$D$18=\"x\",\"x\",\"\")","v":""},523]
[null,null,{"$f":"IF('OBJECTIFS GENERAUX'!$D$18=\"x\",Feuil3!B58,\"\")","v":""},null,null,null,null,null,null,{"$f":"IF('OBJECTIFS GENERAUX'!$D$18=\"x\",\"x\",\"\")","v":""},524]
[null,null,{"$f":"IF('OBJECTIFS GENERAUX'!$D$18=\"x\",'Actions Ligue-district'!B14,\"\")","v":""},null,null,null,null,null,null,{"$f":"IF('OBJECTIFS GENERAUX'!$D$18=\"x\",\"x\",\"\")","v":""},525]
[{"$f":"IF('OBJECTIFS GENERAUX'!$D$18=\"x\",Feuil3!$A$50,\"\")","v":""},{"$f":"IF('OBJECTIFS GENERAUX'!$D$18=\"x\",Feuil3!$B$59,\"\")","v":""},{"$f":"IF('OBJECTIFS GENERAUX'!$D$18=\"x\",Feuil3!B60,\"\")","v":""},null,null,null,null,null,null,{"$f":"IF('OBJECTIFS GENERAUX'!$D$18=\"x\",\"x\",\"\")","v":""},531]
[null,null,{"$f":"IF('OBJECTIFS GENERAUX'!$D$18=\"x\",Feuil3!B61,\"\")","v":""},null,null,null,null,null,null,{"$f":"IF('OBJECTIFS GENERAUX'!$D$18=\"x\",\"x\",\"\")","v":""},532]
[null,null,{"$f":"IF('OBJECTIFS GENERAUX'!$D$18=\"x\",'Actions Ligue-district'!B15,\"\")","v":""},null,null,null,null,null,null,{"$f":"IF('OBJECTIFS GENERAUX'!$D$18=\"x\",\"x\",\"\")","v":""},533]
[{"$f":"IF('OBJECTIFS GENERAUX'!$I$9=\"x\",Feuil3!$A$62,\"\")","v":""},{"$f":"IF('OBJECTIFS GENERAUX'!$I$9=\"x\",Feuil3!$B$63,\"\")","v":""},{"$f":"IF('OBJECTIFS GENERAUX'!$I$9=\"x\",Feuil3!B64,\"\")","v":""},null,null,null,null,null,null,{"$f":"IF('OBJECTIFS GENERAUX'!$I$9=\"x\",\"x\",\"\")","v":""},611]
[null,null,{"$f":"IF('OBJECTIFS GENERAUX'!$I$9=\"x\",Feuil3!B65,\"\")","v":""},null,null,null,null,null,null,{"$f":"IF('OBJECTIFS GENERAUX'!$I$9=\"x\",\"x\",\"\")","v":""},612]
[null,null,{"$f":"IF('OBJECTIFS GENERAUX'!$I$9=\"x\",Feuil3!B66,\"\")","v":""},null,null,null,null,null,null,{"$f":"IF('OBJECTIFS GENERAUX'!$I$9=\"x\",\"x\",\"\")","v":""},613]
[null,null,{"$f":"IF('OBJECTIFS GENERAUX'!$I$9=\"x\",Feuil3!B67,\"\")","v":""},null,null,null,null,null,null,{"$f":"IF('OBJECTIFS GENERAUX'!$I$9=\"x\",\"x\",\"\")","v":""},614]
[null,null,{"$f":"IF('OBJECTIFS GENERAUX'!$I$9=\"x\",'Actions Ligue-district'!B17,\"\")","v":""},null,null,null,null,null,null,{"$f":"IF('OBJECTIFS GENERAUX'!$I$9=\"x\",\"x\",\"\")","v":""},615]
[{"$f":"IF('OBJECTIFS GENERAUX'!$I$10=\"x\",Feuil3!$A$62,\"\")","v":""},{"$f":"IF('OBJECTIFS GENERAUX'!$I$10=\"x\",Feuil3!$B$68,\"\")","v":""},{"$f":"IF('OBJECTIFS GENERAUX'!$I$10=\"x\",Feuil3!B69,\"\")","v":""},null,null,null,null,null,null,{"$f":"IF('OBJECTIFS GENERAUX'!$I$10=\"x\",\"x\",\"\")","v":""},711]
[null,null,{"$f":"IF('OBJECTIFS GENERAUX'!$I$10=\"x\",Feuil3!B70,\"\")","v":""},null,null,null,null,null,null,{"$f":"IF('OBJECTIFS GENERAUX'!$I$10=\"x\",\"x\",\"\")","v":""},712]
[null,null,{"$f":"IF('OBJECTIFS GENERAUX'!$I$10=\"x\",'Actions Ligue-district'!B18,\"\")","v":""},null,null,null,null,null,null,{"$f":"IF('OBJECTIFS GENERAUX'!$I$10=\"x\",\"x\",\"\")","v":""},713]
[{"$f":"IF('OBJECTIFS GENERAUX'!$I$11=\"x\",Feuil3!$A$62,\"\")","v":""},{"$f":"IF('OBJECTIFS GENERAUX'!$I$11=\"x\",Feuil3!$B$71,\"\")","v":""},{"$f":"IF('OBJECTIFS GENERAUX'!$I$11=\"x\",Feuil3!B72,\"\")","v":""},null,null,null,null,null,null,{"$f":"IF('OBJECTIFS GENERAUX'!$I$11=\"x\",\"x\",\"\")","v":""},721]
[null,null,{"$f":"IF('OBJECTIFS GENERAUX'!$I$11=\"x\",Feuil3!B73,\"\")","v":""},null,null,null,null,null,null,{"$f":"IF('OBJECTIFS GENERAUX'!$I$11=\"x\",\"x\",\"\")","v":""},722]
[null,null,{"$f":"IF('OBJECTIFS GENERAUX'!$I$11=\"x\",Feuil3!B74,\"\")","v":""},null,null,null,null,null,null,{"$f":"IF('OBJECTIFS GENERAUX'!$I$11=\"x\",\"x\",\"\")","v":""},723]
[null,null,{"$f":"IF('OBJECTIFS GENERAUX'!$I$11=\"x\",Feuil3!B75,\"\")","v":""},null,null,null,null,null,null,{"$f":"IF('OBJECTIFS GENERAUX'!$I$11=\"x\",\"x\",\"\")","v":""},724]
[null,null,{"$f":"IF('OBJECTIFS GENERAUX'!$I$11=\"x\",Feuil3!B76,\"\")","v":""},null,null,null,null,null,null,{"$f":"IF('OBJECTIFS GENERAUX'!$I$11=\"x\",\"x\",\"\")","v":""},725]
[null,null,{"$f":"IF('OBJECTIFS GENERAUX'!$I$11=\"x\",Feuil3!B77,\"\")","v":""},null,null,null,null,null,null,{"$f":"IF('OBJECTIFS GENERAUX'!$I$11=\"x\",\"x\",\"\")","v":""},726]
[null,null,{"$f":"IF('OBJECTIFS GENERAUX'!$I$11=\"x\",Feuil3!B78,\"\")","v":""},null,null,null,null,null,null,{"$f":"IF('OBJECTIFS GENERAUX'!$I$11=\"x\",\"x\",\"\")","v":""},727]
[null,null,{"$f":"IF('OBJECTIFS GENERAUX'!$I$11=\"x\",'Actions Ligue-district'!B19,\"\")","v":""},null,null,null,null,null,null,{"$f":"IF('OBJECTIFS GENERAUX'!$I$11=\"x\",\"x\",\"\")","v":""},728]
[{"$f":"IF('OBJECTIFS GENERAUX'!$I$13=\"x\",Feuil3!$A$79,\"\")","v":""},{"$f":"IF('OBJECTIFS GENERAUX'!$I$13=\"x\",Feuil3!$B$80,\"\")","v":""},{"$f":"IF('OBJECTIFS GENERAUX'!$I$13=\"x\",Feuil3!B81,\"\")","v":""},null,null,null,null,null,null,{"$f":"IF('OBJECTIFS GENERAUX'!$I$13=\"x\",\"x\",\"\")","v":""},811]
[null,null,{"$f":"IF('OBJECTIFS GENERAUX'!$I$13=\"x\",Feuil3!B82,\"\")","v":""},null,null,null,null,null,null,{"$f":"IF('OBJECTIFS GENERAUX'!$I$13=\"x\",\"x\",\"\")","v":""},812]
[null,null,{"$f":"IF('OBJECTIFS GENERAUX'!$I$13=\"x\",Feuil3!B83,\"\")","v":""},null,null,null,null,null,null,{"$f":"IF('OBJECTIFS GENERAUX'!$I$13=\"x\",\"x\",\"\")","v":""},813]
[null,null,{"$f":"IF('OBJECTIFS GENERAUX'!$I$13=\"x\",Feuil3!B84,\"\")","v":""},null,null,null,null,null,null,{"$f":"IF('OBJECTIFS GENERAUX'!$I$13=\"x\",\"x\",\"\")","v":""},814]
[null,null,{"$f":"IF('OBJECTIFS GENERAUX'!$I$13=\"x\",'Actions Ligue-district'!B21,\"\")","v":""},null,null,null,null,null,null,{"$f":"IF('OBJECTIFS GENERAUX'!$I$13=\"x\",\"x\",\"\")","v":""},815]
[{"$f":"IF('OBJECTIFS GENERAUX'!$I$14=\"x\",Feuil3!$A$79,\"\")","v":""},{"$f":"IF('OBJECTIFS GENERAUX'!$I$14=\"x\",Feuil3!B85,\"\")","v":""},{"$f":"IF('OBJECTIFS GENERAUX'!$I$14=\"x\",Feuil3!B85,\"\")","v":""},null,null,null,null,null,null,{"$f":"IF('OBJECTIFS GENERAUX'!$I$14=\"x\",\"x\",\"\")","v":""},821]
[null,null,{"$f":"IF('OBJECTIFS GENERAUX'!$I$14=\"x\",Feuil3!B86,\"\")","v":""},null,null,null,null,null,null,{"$f":"IF('OBJECTIFS GENERAUX'!$I$14=\"x\",\"x\",\"\")","v":""},822]
[null,null,{"$f":"IF('OBJECTIFS GENERAUX'!$I$14=\"x\",Feuil3!B87,\"\")","v":""},null,null,null,null,null,null,{"$f":"IF('OBJECTIFS GENERAUX'!$I$14=\"x\",\"x\",\"\")","v":""},823]
[null,null,{"$f":"IF('OBJECTIFS GENERAUX'!$I$14=\"x\",'Actions Ligue-district'!B22,\"\")","v":""},null,null,null,null,null,null,{"$f":"IF('OBJECTIFS GENERAUX'!$I$14=\"x\",\"x\",\"\")","v":""},824]
[{"$f":"IF('OBJECTIFS GENERAUX'!$I$15=\"x\",Feuil3!$A$79,\"\")","v":""},{"$f":"IF('OBJECTIFS GENERAUX'!$I$15=\"x\",Feuil3!B89,\"\")","v":""},{"$f":"IF('OBJECTIFS GENERAUX'!$I$15=\"x\",Feuil3!B88,\"\")","v":""},null,null,null,null,null,null,{"$f":"IF('OBJECTIFS GENERAUX'!$I$15=\"x\",\"x\",\"\")","v":""},831]
[null,null,{"$f":"IF('OBJECTIFS GENERAUX'!$I$15=\"x\",Feuil3!B89,\"\")","v":""},null,null,null,null,null,null,{"$f":"IF('OBJECTIFS GENERAUX'!$I$15=\"x\",\"x\",\"\")","v":""},832]
[null,null,{"$f":"IF('OBJECTIFS GENERAUX'!$I$15=\"x\",Feuil3!B90,\"\")","v":""},null,null,null,null,null,null,{"$f":"IF('OBJECTIFS GENERAUX'!$I$15=\"x\",\"x\",\"\")","v":""},833]
[null,null,{"$f":"IF('OBJECTIFS GENERAUX'!$I$15=\"x\",Feuil3!B91,\"\")","v":""},null,null,null,null,null,null,{"$f":"IF('OBJECTIFS GENERAUX'!$I$15=\"x\",\"x\",\"\")","v":""},834]
[null,null,{"$f":"IF('OBJECTIFS GENERAUX'!$I$15=\"x\",Feuil3!B92,\"\")","v":""},null,null,null,null,null,null,{"$f":"IF('OBJECTIFS GENERAUX'!$I$15=\"x\",\"x\",\"\")","v":""},835]
[null,null,{"$f":"IF('OBJECTIFS GENERAUX'!$I$15=\"x\",Feuil3!B93,\"\")","v":""},null,null,null,null,null,null,{"$f":"IF('OBJECTIFS GENERAUX'!$I$15=\"x\",\"x\",\"\")","v":""},836]
[null,null,{"$f":"IF('OBJECTIFS GENERAUX'!$I$15=\"x\",Feuil3!B94,\"\")","v":""},null,null,null,null,null,null,{"$f":"IF('OBJECTIFS GENERAUX'!$I$15=\"x\",\"x\",\"\")","v":""},837]
[null,null,{"$f":"IF('OBJECTIFS GENERAUX'!$I$15=\"x\",'Actions Ligue-district'!B23,\"\")","v":""},null,null,null,null,null,null,{"$f":"IF('OBJECTIFS GENERAUX'!$I$15=\"x\",\"x\",\"\")","v":""},838]
[{"$f":"IF('OBJECTIFS GENERAUX'!$I$16=\"x\",Feuil3!$A$79,\"\")","v":""},{"$f":"IF('OBJECTIFS GENERAUX'!$I$16=\"x\",Feuil3!$B$95,\"\")","v":""},{"$f":"IF('OBJECTIFS GENERAUX'!$I$16=\"x\",Feuil3!B96,\"\")","v":""},null,null,null,null,null,null,{"$f":"IF('OBJECTIFS GENERAUX'!$I$16=\"x\",\"x\",\"\")","v":""},841]
[null,null,{"$f":"IF('OBJECTIFS GENERAUX'!$I$16=\"x\",Feuil3!B97,\"\")","v":""},null,null,null,null,null,null,{"$f":"IF('OBJECTIFS GENERAUX'!$I$16=\"x\",\"x\",\"\")","v":""},842]
[null,null,{"$f":"IF('OBJECTIFS GENERAUX'!$I$16=\"x\",'Actions Ligue-district'!B24,\"\")","v":""},null,null,null,null,null,null,{"$f":"IF('OBJECTIFS GENERAUX'!$I$16=\"x\",\"x\",\"\")","v":""},843]
[{"$f":"IF('OBJECTIFS GENERAUX'!$I$17=\"x\",Feuil3!$A$79,\"\")","v":""},{"$f":"IF('OBJECTIFS GENERAUX'!$I$17=\"x\",Feuil3!$B$98,\"\")","v":""},{"$f":"IF('OBJECTIFS GENERAUX'!$I$17=\"x\",Feuil3!B99,\"\")","v":""},null,null,null,null,null,null,{"$f":"IF('OBJECTIFS GENERAUX'!$I$17=\"x\",\"x\",\"\")","v":""},851]
[null,null,{"$f":"IF('OBJECTIFS GENERAUX'!$I$17=\"x\",Feuil3!B100,\"\")","v":""},null,null,null,null,null,null,{"$f":"IF('OBJECTIFS GENERAUX'!$I$17=\"x\",\"x\",\"\")","v":""},852]
[null,null,{"$f":"IF('OBJECTIFS GENERAUX'!$I$17=\"x\",Feuil3!B101,\"\")","v":""},null,null,null,null,null,null,{"$f":"IF('OBJECTIFS GENERAUX'!$I$17=\"x\",\"x\",\"\")","v":""},853]
[null,null,{"$f":"IF('OBJECTIFS GENERAUX'!$I$17=\"x\",'Actions Ligue-district'!B25,\"\")","v":""},null,null,null,null,null,null,{"$f":"IF('OBJECTIFS GENERAUX'!$I$17=\"x\",\"x\",\"\")","v":""},854]
[]
[]
["Plan d’actions volet sportif"]
[null,null,null,"Saison N + 2"]
["Objectif général","Axe d'amélioration","Intitulé des actions et résultats envisagés","1er trimestre","2ème trimestre","3ème trimestre","Nom du responsable","Objectifs envisagés","Actions réalisées"]
[{"$f":"IF('OBJECTIFS GENERAUX'!$D$28=\"x\",Feuil3!$C$1,\"\")","v":""},{"$f":"IF('OBJECTIFS GENERAUX'!$D$28=\"x\",Feuil3!$C$1,\"\")","v":""},{"$f":"IF('OBJECTIFS GENERAUX'!$D$28=\"x\",Feuil3!B3,\"\")","v":""},null,null,null,null,null,null,{"$f":"IF('OBJECTIFS GENERAUX'!$D$28=\"x\",\"x\",\"\")","v":""},111]
[null,null,{"$f":"IF('OBJECTIFS GENERAUX'!$D$28=\"x\",Feuil3!B4,\"\")","v":""},null,null,null,null,null,null,{"$f":"IF('OBJECTIFS GENERAUX'!$D$28=\"x\",\"x\",\"\")","v":""},112]
[null,null,{"$f":"IF('OBJECTIFS GENERAUX'!$D$28=\"x\",Feuil3!B5,\"\")","v":""},null,null,null,null,null,null,{"$f":"IF('OBJECTIFS GENERAUX'!$D$28=\"x\",\"x\",\"\")","v":""},113]
[null,null,{"$f":"IF('OBJECTIFS GENERAUX'!$D$28=\"x\",Feuil3!B6,\"\")","v":""},null,null,null,null,null,null,{"$f":"IF('OBJECTIFS GENERAUX'!$D$28=\"x\",\"x\",\"\")","v":""},114]
[null,null,{"$f":"IF('OBJECTIFS GENERAUX'!$D$28=\"x\",Feuil3!B7,\"\")","v":""},null,null,null,null,null,null,{"$f":"IF('OBJECTIFS GENERAUX'!$D$28=\"x\",\"x\",\"\")","v":""},115]
[null,null,{"$f":"IF('OBJECTIFS GENERAUX'!$D$28=\"x\",Feuil3!B8,\"\")","v":""},null,null,null,null,null,null,{"$f":"IF('OBJECTIFS GENERAUX'!$D$28=\"x\",\"x\",\"\")","v":""},116]
[null,null,{"$f":"IF('OBJECTIFS GENERAUX'!$D$28=\"x\",'Actions Ligue-district'!B28,\"\")","v":""},null,null,null,null,null,null,{"$f":"IF('OBJECTIFS GENERAUX'!$D$28=\"x\",\"x\",\"\")","v":""},117]
[{"$f":"IF('OBJECTIFS GENERAUX'!$D$29=\"x\",Feuil3!C1,\"\")","v":""},{"$f":"IF('OBJECTIFS GENERAUX'!$D$29=\"x\",Feuil3!B9,\"\")","v":""},{"$f":"IF('OBJECTIFS GENERAUX'!$D$29=\"x\",Feuil3!B10,\"\")","v":""},null,null,null,null,null,null,{"$f":"IF('OBJECTIFS GENERAUX'!$D$29=\"x\",\"x\",\"\")","v":""},121]
[null,null,{"$f":"IF('OBJECTIFS GENERAUX'!$D$29=\"x\",Feuil3!B11,\"\")","v":""},null,null,null,null,null,null,{"$f":"IF('OBJECTIFS GENERAUX'!$D$29=\"x\",\"x\",\"\")","v":""},122]
[null,null,{"$f":"IF('OBJECTIFS GENERAUX'!$D$29=\"x\",Feuil3!B12,\"\")","v":""},null,null,null,null,null,null,{"$f":"IF('OBJECTIFS GENERAUX'!$D$29=\"x\",\"x\",\"\")","v":""},123]
[null,null,{"$f":"IF('OBJECTIFS GENERAUX'!$D$29=\"x\",Feuil3!B13,\"\")","v":""},null,null,null,null,null,null,{"$f":"IF('OBJECTIFS GENERAUX'!$D$29=\"x\",\"x\",\"\")","v":""},124]
[null,null,{"$f":"IF('OBJECTIFS GENERAUX'!$D$29=\"x\",Feuil3!B14,\"\")","v":""},null,null,null,null,null,null,{"$f":"IF('OBJECTIFS GENERAUX'!$D$29=\"x\",\"x\",\"\")","v":""},125]
[null,null,{"$f":"IF('OBJECTIFS GENERAUX'!$D$29=\"x\",Feuil3!B15,\"\")","v":""},null,null,null,null,null,null,{"$f":"IF('OBJECTIFS GENERAUX'!$D$29=\"x\",\"x\",\"\")","v":""},126]
[null,null,{"$f":"IF('OBJECTIFS GENERAUX'!$D$29=\"x\",Feuil3!B16,\"\")","v":""},null,null,null,null,null,null,{"$f":"IF('OBJECTIFS GENERAUX'!$D$29=\"x\",\"x\",\"\")","v":""},127]
[null,null,{"$f":"IF('OBJECTIFS GENERAUX'!$D$29=\"x\",'Actions Ligue-district'!B29,\"\")","v":""},null,null,null,null,null,null,{"$f":"IF('OBJECTIFS GENERAUX'!$D$29=\"x\",\"x\",\"\")","v":""},128]
[{"$f":"IF('OBJECTIFS GENERAUX'!$D$31=\"x\",Feuil3!C4,\"\")","v":""},{"$f":"IF('OBJECTIFS GENERAUX'!$D$31=\"x\",Feuil3!D5,\"\")","v":""},{"$f":"IF('OBJECTIFS GENERAUX'!$D$31=\"x\",Feuil3!D6,\"\")","v":""},null,null,null,null,null,null,{"$f":"IF('OBJECTIFS GENERAUX'!$D$31=\"x\",\"x\",\"\")","v":""},211]
[null,null,{"$f":"IF('OBJECTIFS GENERAUX'!$D$31=\"x\",Feuil3!D7,\"\")","v":""},null,null,null,null,null,null,{"$f":"IF('OBJECTIFS GENERAUX'!$D$31=\"x\",\"x\",\"\")","v":""},212]
[null,null,{"$f":"IF('OBJECTIFS GENERAUX'!$D$31=\"x\",Feuil3!D8,\"\")","v":""},null,null,null,null,null,null,{"$f":"IF('OBJECTIFS GENERAUX'!$D$31=\"x\",\"x\",\"\")","v":""},213]
[null,null,{"$f":"IF('OBJECTIFS GENERAUX'!$D$31=\"x\",Feuil3!D9,\"\")","v":""},null,null,null,null,null,null,{"$f":"IF('OBJECTIFS GENERAUX'!$D$31=\"x\",\"x\",\"\")","v":""},214]
[null,null,{"$f":"IF('OBJECTIFS GENERAUX'!$D$31=\"x\",'Actions Ligue-district'!B31,\"\")","v":""},null,null,null,null,null,null,{"$f":"IF('OBJECTIFS GENERAUX'!$D$31=\"x\",\"x\",\"\")","v":""},215]
[{"$f":"IF('OBJECTIFS GENERAUX'!$D$32=\"x\",Feuil3!C4,\"\")","v":""},{"$f":"IF('OBJECTIFS GENERAUX'!$D$32=\"x\",Feuil3!D10,\"\")","v":""},{"$f":"IF('OBJECTIFS GENERAUX'!$D$32=\"x\",Feuil3!D11,\"\")","v":""},null,null,null,null,null,null,{"$f":"IF('OBJECTIFS GENERAUX'!$D$32=\"x\",\"x\",\"\")","v":""},221]
[null,null,{"$f":"IF('OBJECTIFS GENERAUX'!$D$32=\"x\",Feuil3!D12,\"\")","v":""},null,null,null,null,null,null,{"$f":"IF('OBJECTIFS GENERAUX'!$D$32=\"x\",\"x\",\"\")","v":""},222]
[null,null,{"$f":"IF('OBJECTIFS GENERAUX'!$D$32=\"x\",Feuil3!D13,\"\")","v":""},null,null,null,null,null,null,{"$f":"IF('OBJECTIFS GENERAUX'!$D$32=\"x\",\"x\",\"\")","v":""},223]
[null,null,{"$f":"IF('OBJECTIFS GENERAUX'!$D$32=\"x\",Feuil3!D14,\"\")","v":""},null,null,null,null,null,null,{"$f":"IF('OBJECTIFS GENERAUX'!$D$32=\"x\",\"x\",\"\")","v":""},224]
[null,null,{"$f":"IF('OBJECTIFS GENERAUX'!$D$32=\"x\",'Actions Ligue-district'!B32,\"\")","v":""},null,null,null,null,null,null,{"$f":"IF('OBJECTIFS GENERAUX'!$D$32=\"x\",\"x\",\"\")","v":""},225]
[{"$f":"IF('OBJECTIFS GENERAUX'!$D$33=\"x\",Feuil3!C15,\"\")","v":""},{"$f":"IF('OBJECTIFS GENERAUX'!$D$33=\"x\",Feuil3!D15,\"\")","v":""},{"$f":"IF('OBJECTIFS GENERAUX'!$D$33=\"x\",Feuil3!D16,\"\")","v":""},null,null,null,null,null,null,{"$f":"IF('OBJECTIFS GENERAUX'!$D$33=\"x\",\"x\",\"\")","v":""},311]
[null,null,{"$f":"IF('OBJECTIFS GENERAUX'!$D$33=\"x\",Feuil3!D17,\"\")","v":""},null,null,null,null,null,null,{"$f":"IF('OBJECTIFS GENERAUX'!$D$33=\"x\",\"x\",\"\")","v":""},312]
[null,null,{"$f":"IF('OBJECTIFS GENERAUX'!$D$33=\"x\",Feuil3!D18,\"\")","v":""},null,null,null,null,null,null,{"$f":"IF('OBJECTIFS GENERAUX'!$D$33=\"x\",\"x\",\"\")","v":""},313]
[null,null,{"$f":"IF('OBJECTIFS GENERAUX'!$D$33=\"x\",'Actions Ligue-district'!B33,\"\")","v":""},null,null,null,null,null,null,{"$f":"IF('OBJECTIFS GENERAUX'!$D$33=\"x\",\"x\",\"\")","v":""},314]
[{"$f":"IF('OBJECTIFS GENERAUX'!$I$28=\"x\",Feuil3!C19,\"\")","v":""},{"$f":"IF('OBJECTIFS GENERAUX'!$I$28=\"x\",Feuil3!D20,\"\")","v":""},{"$f":"IF('OBJECTIFS GENERAUX'!$I$28=\"x\",Feuil3!D21,\"\")","v":""},null,null,null,null,null,null,{"$f":"IF('OBJECTIFS GENERAUX'!$I$28=\"x\",\"x\",\"\")","v":""},411]
[null,null,{"$f":"IF('OBJECTIFS GENERAUX'!$I$28=\"x\",Feuil3!D22,\"\")","v":""},null,null,null,null,null,null,{"$f":"IF('OBJECTIFS GENERAUX'!$I$28=\"x\",\"x\",\"\")","v":""},412]
[null,null,{"$f":"IF('OBJECTIFS GENERAUX'!$I$28=\"x\",Feuil3!D23,\"\")","v":""},null,null,null,null,null,null,{"$f":"IF('OBJECTIFS GENERAUX'!$I$28=\"x\",\"x\",\"\")","v":""},413]
[null,null,{"$f":"IF('OBJECTIFS GENERAUX'!$I$28=\"x\",Feuil3!D24,\"\")","v":""},null,null,null,null,null,null,{"$f":"IF('OBJECTIFS GENERAUX'!$I$28=\"x\",\"x\",\"\")","v":""},414]
[null,null,{"$f":"IF('OBJECTIFS GENERAUX'!$I$28=\"x\",'Actions Ligue-district'!B35,\"\")","v":""},null,null,null,null,null,null,{"$f":"IF('OBJECTIFS GENERAUX'!$I$28=\"x\",\"x\",\"\")","v":""},415]
[{"$f":"IF('OBJECTIFS GENERAUX'!$I$29=\"x\",Feuil3!C19,\"\")","v":""},{"$f":"IF('OBJECTIFS GENERAUX'!$I$29=\"x\",Feuil3!D25,\"\")","v":""},{"$f":"IF('OBJECTIFS GENERAUX'!$I$29=\"x\",Feuil3!D26,\"\")","v":""},null,null,null,null,null,null,{"$f":"IF('OBJECTIFS GENERAUX'!$I$29=\"x\",\"x\",\"\")","v":""},421]
[null,null,{"$f":"IF('OBJECTIFS GENERAUX'!$I$29=\"x\",Feuil3!D27,\"\")","v":""},null,null,null,null,null,null,{"$f":"IF('OBJECTIFS GENERAUX'!$I$29=\"x\",\"x\",\"\")","v":""},422]
[null,null,{"$f":"IF('OBJECTIFS GENERAUX'!$I$29=\"x\",'Actions Ligue-district'!B36,\"\")","v":""},null,null,null,null,null,null,{"$f":"IF('OBJECTIFS GENERAUX'!$I$29=\"x\",\"x\",\"\")","v":""},423]
[{"$f":"IF('OBJECTIFS GENERAUX'!$I$30=\"x\",Feuil3!C19,\"\")","v":""},{"$f":"IF('OBJECTIFS GENERAUX'!$I$30=\"x\",Feuil3!D28,\"\")","v":""},{"$f":"IF('OBJECTIFS GENERAUX'!$I$30=\"x\",Feuil3!D29,\"\")","v":""},null,null,null,null,null,null,{"$f":"IF('OBJECTIFS GENERAUX'!$I$30=\"x\",\"x\",\"\")","v":""},431]
[null,null,{"$f":"IF('OBJECTIFS GENERAUX'!$I$30=\"x\",Feuil3!D30,\"\")","v":""},null,null,null,null,null,null,{"$f":"IF('OBJECTIFS GENERAUX'!$I$30=\"x\",\"x\",\"\")","v":""},432]
[null,null,{"$f":"IF('OBJECTIFS GENERAUX'!$I$30=\"x\",Feuil3!D31,\"\")","v":""},null,null,null,null,null,null,{"$f":"IF('OBJECTIFS GENERAUX'!$I$30=\"x\",\"x\",\"\")","v":""},433]
[null,null,{"$f":"IF('OBJECTIFS GENERAUX'!$I$30=\"x\",Feuil3!D32,\"\")","v":""},null,null,null,null,null,null,{"$f":"IF('OBJECTIFS GENERAUX'!$I$30=\"x\",\"x\",\"\")","v":""},434]
[null,null,{"$f":"IF('OBJECTIFS GENERAUX'!$I$30=\"x\",'Actions Ligue-district'!B37,\"\")","v":""},null,null,null,null,null,null,{"$f":"IF('OBJECTIFS GENERAUX'!$I$30=\"x\",\"x\",\"\")","v":""},435]
[{"$f":"IF(OR('OBJECTIFS GENERAUX'!$I$32=\"x\",'OBJECTIFS GENERAUX'!$I$33=\"x\",'OBJECTIFS GENERAUX'!$I$34=\"x\"),Feuil3!C33,\"\")","v":""},{"$f":"IF(OR('OBJECTIFS GENERAUX'!$I$32=\"x\",'OBJECTIFS GENERAUX'!$I$33=\"x\",'OBJECTIFS GENERAUX'!$I$34=\"x\"),Feuil3!D34,\"\")","v":""},{"$f":"IF(OR('OBJECTIFS GENERAUX'!$I$32=\"x\",'OBJECTIFS GENERAUX'!$I$33=\"x\",'OBJECTIFS GENERAUX'!$I$34=\"x\"),Feuil3!D35,\"\")","v":""},null,null,null,null,null,null,{"$f":"IF(OR('OBJECTIFS GENERAUX'!$I$32=\"x\",'OBJECTIFS GENERAUX'!$I$33=\"x\",'OBJECTIFS GENERAUX'!$I$34=\"x\"),\"x\",\"\")","v":""},511]
[null,null,{"$f":"IF(OR('OBJECTIFS GENERAUX'!$I$32=\"x\",'OBJECTIFS GENERAUX'!$I$33=\"x\",'OBJECTIFS GENERAUX'!$I$34=\"x\"),Feuil3!D36,\"\")","v":""},null,null,null,null,null,null,{"$f":"IF(OR('OBJECTIFS GENERAUX'!$I$32=\"x\",'OBJECTIFS GENERAUX'!$I$33=\"x\",'OBJECTIFS GENERAUX'!$I$34=\"x\"),\"x\",\"\")","v":""},512]
[null,null,{"$f":"IF(OR('OBJECTIFS GENERAUX'!$I$32=\"x\",'OBJECTIFS GENERAUX'!$I$33=\"x\",'OBJECTIFS GENERAUX'!$I$34=\"x\"),Feuil3!D37,\"\")","v":""},null,null,null,null,null,null,{"$f":"IF(OR('OBJECTIFS GENERAUX'!$I$32=\"x\",'OBJECTIFS GENERAUX'!$I$33=\"x\",'OBJECTIFS GENERAUX'!$I$34=\"x\"),\"x\",\"\")","v":""},513]
[null,null,{"$f":"IF(OR('OBJECTIFS GENERAUX'!$I$32=\"x\",'OBJECTIFS GENERAUX'!$I$33=\"x\",'OBJECTIFS GENERAUX'!$I$34=\"x\"),Feuil3!D38,\"\")","v":""},null,null,null,null,null,null,{"$f":"IF(OR('OBJECTIFS GENERAUX'!$I$32=\"x\",'OBJECTIFS GENERAUX'!$I$33=\"x\",'OBJECTIFS GENERAUX'!$I$34=\"x\"),\"x\",\"\")","v":""},514]
[null,null,{"$f":"IF(OR('OBJECTIFS GENERAUX'!$I$32=\"x\",'OBJECTIFS GENERAUX'!$I$33=\"x\",'OBJECTIFS GENERAUX'!$I$34=\"x\"),Feuil3!D39,\"\")","v":""},null,null,null,null,null,null,{"$f":"IF(OR('OBJECTIFS GENERAUX'!$I$32=\"x\",'OBJECTIFS GENERAUX'!$I$33=\"x\",'OBJECTIFS GENERAUX'!$I$34=\"x\"),\"x\",\"\")","v":""},515]
[null,null,{"$f":"IF(OR('OBJECTIFS GENERAUX'!$I$32=\"x\",'OBJECTIFS GENERAUX'!$I$33=\"x\",'OBJECTIFS GENERAUX'!$I$34=\"x\"),Feuil3!D40,\"\")","v":""},null,null,null,null,null,null,{"$f":"IF(OR('OBJECTIFS GENERAUX'!$I$32=\"x\",'OBJECTIFS GENERAUX'!$I$33=\"x\",'OBJECTIFS GENERAUX'!$I$34=\"x\"),\"x\",\"\")","v":""},516]
[null,null,{"$f":"IF(OR('OBJECTIFS GENERAUX'!$I$32=\"x\",'OBJECTIFS GENERAUX'!$I$33=\"x\",'OBJECTIFS GENERAUX'!$I$34=\"x\"),Feuil3!D41,\"\")","v":""},null,null,null,null,null,null,{"$f":"IF(OR('OBJECTIFS GENERAUX'!$I$32=\"x\",'OBJECTIFS GENERAUX'!$I$33=\"x\",'OBJECTIFS GENERAUX'!$I$34=\"x\"),\"x\",\"\")","v":""},517]
[null,null,{"$f":"IF(OR('OBJECTIFS GENERAUX'!$I$32=\"x\",'OBJECTIFS GENERAUX'!$I$33=\"x\",'OBJECTIFS GENERAUX'!$I$34=\"x\"),Feuil3!D43,\"\")","v":""},null,null,null,null,null,null,{"$f":"IF(OR('OBJECTIFS GENERAUX'!$I$32=\"x\",'OBJECTIFS GENERAUX'!$I$33=\"x\",'OBJECTIFS GENERAUX'!$I$34=\"x\"),\"x\",\"\")","v":""},518]
[null,null,{"$f":"IF(OR('OBJECTIFS GENERAUX'!$I$32=\"x\",'OBJECTIFS GENERAUX'!$I$33=\"x\",'OBJECTIFS GENERAUX'!$I$34=\"x\"),Feuil3!D44,\"\")","v":""},null,null,null,null,null,null,{"$f":"IF(OR('OBJECTIFS GENERAUX'!$I$32=\"x\",'OBJECTIFS GENERAUX'!$I$33=\"x\",'OBJECTIFS GENERAUX'!$I$34=\"x\"),\"x\",\"\")","v":""},519]
[null,null,{"$f":"IF(OR('OBJECTIFS GENERAUX'!$I$32=\"x\",'OBJECTIFS GENERAUX'!$I$33=\"x\",'OBJECTIFS GENERAUX'!$I$34=\"x\"),Feuil3!D45,\"\")","v":""},null,null,null,null,null,null,{"$f":"IF(OR('OBJECTIFS GENERAUX'!$I$32=\"x\",'OBJECTIFS GENERAUX'!$I$33=\"x\",'OBJECTIFS GENERAUX'!$I$34=\"x\"),\"x\",\"\")","v":""},520]
[null,null,{"$f":"IF('OBJECTIFS GENERAUX'!$I$32=\"x\",'Actions Ligue-district'!B39,\"\")","v":""},null,null,null,null,null,null,{"$f":"IF('OBJECTIFS GENERAUX'!$I$32=\"x\",\"x\",\"\")","v":""},521]
[null,null,{"$f":"IF('OBJECTIFS GENERAUX'!$I$33=\"x\",'Actions Ligue-district'!B40,\"\")","v":""},null,null,null,null,null,null,{"$f":"IF('OBJECTIFS GENERAUX'!$I$33=\"x\",\"x\",\"\")","v":""},522]
[null,null,{"$f":"IF('OBJECTIFS GENERAUX'!$I$34=\"x\",'Actions Ligue-district'!B41,\"\")","v":""},null,null,null,null,null,null,{"$f":"IF('OBJECTIFS GENERAUX'!$I$34=\"x\",\"x\",\"\")","v":""},523]
[]
[]
["Plan d’actions volet éducatif"]
[]
[null,null,null,"Saison N + 2"]
["Objectif général","Axe d'amélioration","Intitulé des actions et résultats envisagés","1er trimestre","2ème trimestre","3ème trimestre","Nom du responsable","Objectifs envisagés","Actions réalisées"]
[{"$f":"IF('OBJECTIFS GENERAUX'!$D$55=\"x\",Feuil3!$E$1,\"\")","v":""},{"$f":"IF('OBJECTIFS GENERAUX'!$D$55=\"x\",Feuil3!F2,\"\")","v":""},{"$f":"IF('OBJECTIFS GENERAUX'!$D$55=\"x\",Feuil3!F3,\"\")","v":""},null,null,null,null,null,null,{"$f":"IF('OBJECTIFS GENERAUX'!$D$55=\"x\",\"x\",\"\")","v":""},111]
[null,null,{"$f":"IF('OBJECTIFS GENERAUX'!$D$55=\"x\",Feuil3!F4,\"\")","v":""},null,null,null,null,null,null,{"$f":"IF('OBJECTIFS GENERAUX'!$D$55=\"x\",\"x\",\"\")","v":""},112]
[null,null,{"$f":"IF('OBJECTIFS GENERAUX'!$D$55=\"x\",Feuil3!F5,\"\")","v":""},null,null,null,null,null,null,{"$f":"IF('OBJECTIFS GENERAUX'!$D$55=\"x\",\"x\",\"\")","v":""},113]
[null,null,{"$f":"IF('OBJECTIFS GENERAUX'!$D$55=\"x\",Feuil3!F6,\"\")","v":""},null,null,null,null,null,null,{"$f":"IF('OBJECTIFS GENERAUX'!$D$55=\"x\",\"x\",\"\")","v":""},114]
[null,null,{"$f":"IF('OBJECTIFS GENERAUX'!$D$55=\"x\",Feuil3!F7,\"\")","v":""},null,null,null,null,null,null,{"$f":"IF('OBJECTIFS GENERAUX'!$D$55=\"x\",\"x\",\"\")","v":""},115]
[null,null,{"$f":"IF('OBJECTIFS GENERAUX'!$D$55=\"x\",'Actions Ligue-district'!B44,\"\")","v":""},null,null,null,null,null,null,{"$f":"IF('OBJECTIFS GENERAUX'!$D$55=\"x\",\"x\",\"\")","v":""},116]
[{"$f":"IF('OBJECTIFS GENERAUX'!$D$56=\"x\",Feuil3!$E$1,\"\")","v":""},{"$f":"IF('OBJECTIFS GENERAUX'!$D$56=\"x\",Feuil3!F7,\"\")","v":""},{"$f":"IF('OBJECTIFS GENERAUX'!$D$56=\"x\",Feuil3!F8,\"\")","v":""},null,null,null,null,null,null,{"$f":"IF('OBJECTIFS GENERAUX'!$D$56=\"x\",\"x\",\"\")","v":""},121]
[null,null,{"$f":"IF('OBJECTIFS GENERAUX'!$D$56=\"x\",Feuil3!F9,\"\")","v":""},null,null,null,null,null,null,{"$f":"IF('OBJECTIFS GENERAUX'!$D$56=\"x\",\"x\",\"\")","v":""},122]
[null,null,{"$f":"IF('OBJECTIFS GENERAUX'!$D$56=\"x\",Feuil3!F10,\"\")","v":""},null,null,null,null,null,null,{"$f":"IF('OBJECTIFS GENERAUX'!$D$56=\"x\",\"x\",\"\")","v":""},123]
[null,null,{"$f":"IF('OBJECTIFS GENERAUX'!$D$56=\"x\",'Actions Ligue-district'!B45,\"\")","v":""},null,null,null,null,null,null,{"$f":"IF('OBJECTIFS GENERAUX'!$D$56=\"x\",\"x\",\"\")","v":""},124]
[{"$f":"IF('OBJECTIFS GENERAUX'!$D$58=\"x\",Feuil3!E11,\"\")","v":""},{"$f":"IF('OBJECTIFS GENERAUX'!$D$58=\"x\",Feuil3!F12,\"\")","v":""},{"$f":"IF('OBJECTIFS GENERAUX'!$D$58=\"x\",Feuil3!F13,\"\")","v":""},null,null,null,null,null,null,{"$f":"IF('OBJECTIFS GENERAUX'!$D$58=\"x\",\"x\",\"\")","v":""},211]
[null,null,{"$f":"IF('OBJECTIFS GENERAUX'!$D$58=\"x\",Feuil3!F14,\"\")","v":""},null,null,null,null,null,null,{"$f":"IF('OBJECTIFS GENERAUX'!$D$58=\"x\",\"x\",\"\")","v":""},212]
[null,null,{"$f":"IF('OBJECTIFS GENERAUX'!$D$58=\"x\",Feuil3!F15,\"\")","v":""},null,null,null,null,null,null,{"$f":"IF('OBJECTIFS GENERAUX'!$D$58=\"x\",\"x\",\"\")","v":""},213]
[null,null,{"$f":"IF('OBJECTIFS GENERAUX'!$D$58=\"x\",Feuil3!F16,\"\")","v":""},null,null,null,null,null,null,{"$f":"IF('OBJECTIFS GENERAUX'!$D$58=\"x\",\"x\",\"\")","v":""},214]
[null,null,{"$f":"IF('OBJECTIFS GENERAUX'!$D$58=\"x\",Feuil3!F17,\"\")","v":""},null,null,null,null,null,null,{"$f":"IF('OBJECTIFS GENERAUX'!$D$58=\"x\",\"x\",\"\")","v":""},215]
[null,null,{"$f":"IF('OBJECTIFS GENERAUX'!$D$58=\"x\",'Actions Ligue-district'!B47,\"\")","v":""},null,null,null,null,null,null,{"$f":"IF('OBJECTIFS GENERAUX'!$D$58=\"x\",\"x\",\"\")","v":""},216]
[{"$f":"IF('OBJECTIFS GENERAUX'!$D$59=\"x\",Feuil3!E11,\"\")","v":""},{"$f":"IF('OBJECTIFS GENERAUX'!$D$59=\"x\",Feuil3!F18,\"\")","v":""},{"$f":"IF('OBJECTIFS GENERAUX'!$D$59=\"x\",Feuil3!F19,\"\")","v":""},null,null,null,null,null,null,{"$f":"IF('OBJECTIFS GENERAUX'!$D$59=\"x\",\"x\",\"\")","v":""},221]
[null,null,{"$f":"IF('OBJECTIFS GENERAUX'!$D$59=\"x\",Feuil3!F20,\"\")","v":""},null,null,null,null,null,null,{"$f":"IF('OBJECTIFS GENERAUX'!$D$59=\"x\",\"x\",\"\")","v":""},222]
[null,null,{"$f":"IF('OBJECTIFS GENERAUX'!$D$59=\"x\",Feuil3!F21,\"\")","v":""},null,null,null,null,null,null,{"$f":"IF('OBJECTIFS GENERAUX'!$D$59=\"x\",\"x\",\"\")","v":""},223]
[null,null,{"$f":"IF('OBJECTIFS GENERAUX'!$D$59=\"x\",Feuil3!F22,\"\")","v":""},null,null,null,null,null,null,{"$f":"IF('OBJECTIFS GENERAUX'!$D$59=\"x\",\"x\",\"\")","v":""},224]
[null,null,{"$f":"IF('OBJECTIFS GENERAUX'!$D$59=\"x\",Feuil3!F23,\"\")","v":""},null,null,null,null,null,null,{"$f":"IF('OBJECTIFS GENERAUX'!$D$59=\"x\",\"x\",\"\")","v":""},225]
[null,null,{"$f":"IF('OBJECTIFS GENERAUX'!$D$59=\"x\",'Actions Ligue-district'!B48,\"\")","v":""},null,null,null,null,null,null,{"$f":"IF('OBJECTIFS GENERAUX'!$D$59=\"x\",\"x\",\"\")","v":""},226]
[{"$f":"IF('OBJECTIFS GENERAUX'!$I$55=\"x\",Feuil3!E24,\"\")","v":""},{"$f":"IF('OBJECTIFS GENERAUX'!$I$55=\"x\",Feuil3!F25,\"\")","v":""},{"$f":"IF('OBJECTIFS GENERAUX'!$I$55=\"x\",Feuil3!F26,\"\")","v":""},null,null,null,null,null,null,{"$f":"IF('OBJECTIFS GENERAUX'!$I$55=\"x\",\"x\",\"\")","v":""},311]
[null,null,{"$f":"IF('OBJECTIFS GENERAUX'!$I$55=\"x\",Feuil3!F27,\"\")","v":""},null,null,null,null,null,null,{"$f":"IF('OBJECTIFS GENERAUX'!$I$55=\"x\",\"x\",\"\")","v":""},312]
[null,null,{"$f":"IF('OBJECTIFS GENERAUX'!$I$55=\"x\",Feuil3!F28,\"\")","v":""},null,null,null,null,null,null,{"$f":"IF('OBJECTIFS GENERAUX'!$I$55=\"x\",\"x\",\"\")","v":""},313]
[null,null,{"$f":"IF('OBJECTIFS GENERAUX'!$I$55=\"x\",Feuil3!F29,\"\")","v":""},null,null,null,null,null,null,{"$f":"IF('OBJECTIFS GENERAUX'!$I$55=\"x\",\"x\",\"\")","v":""},314]
[null,null,{"$f":"IF('OBJECTIFS GENERAUX'!$I$55=\"x\",Feuil3!F30,\"\")","v":""},null,null,null,null,null,null,{"$f":"IF('OBJECTIFS GENERAUX'!$I$55=\"x\",\"x\",\"\")","v":""},315]
[null,null,{"$f":"IF('OBJECTIFS GENERAUX'!$I$55=\"x\",'Actions Ligue-district'!B50,\"\")","v":""},null,null,null,null,null,null,{"$f":"IF('OBJECTIFS GENERAUX'!$I$55=\"x\",\"x\",\"\")","v":""},315]
[]
[]
["Plan d’actions volet Encadrement et Formation"]
[]
[null,null,null,"Saison N + 2"]
["Objectif général","Axe d'amélioration","Intitulé des actions et résultats envisagés","1er trimestre","2ème trimestre","3ème trimestre","Nom du responsable","Objectifs envisagés","Actions réalisées"]
[{"$f":"IF('OBJECTIFS GENERAUX'!$D$70=\"x\",Feuil3!$G$1,\"\")","v":""},{"$f":"IF('OBJECTIFS GENERAUX'!$D$70=\"x\",Feuil3!H2,\"\")","v":""},{"$f":"IF('OBJECTIFS GENERAUX'!$D$70=\"x\",Feuil3!H3,\"\")","v":""},null,null,null,null,null,null,{"$f":"IF('OBJECTIFS GENERAUX'!$D$70=\"x\",\"x\",\"\")","v":""},111]
[null,null,{"$f":"IF('OBJECTIFS GENERAUX'!$D$70=\"x\",Feuil3!H4,\"\")","v":""},null,null,null,null,null,null,{"$f":"IF('OBJECTIFS GENERAUX'!$D$70=\"x\",\"x\",\"\")","v":""},112]
[null,null,{"$f":"IF('OBJECTIFS GENERAUX'!$D$70=\"x\",Feuil3!H5,\"\")","v":""},null,null,null,null,null,null,{"$f":"IF('OBJECTIFS GENERAUX'!$D$70=\"x\",\"x\",\"\")","v":""},113]
[{"$f":"IF('OBJECTIFS GENERAUX'!$D$70=\"x\",Feuil3!$G$1,\"\")","v":""},{"$f":"IF('OBJECTIFS GENERAUX'!$D$70=\"x\",Feuil3!H6,\"\")","v":""},{"$f":"IF('OBJECTIFS GENERAUX'!$D$70=\"x\",Feuil3!H6,\"\")","v":""},null,null,null,null,null,null,{"$f":"IF('OBJECTIFS GENERAUX'!$D$70=\"x\",\"x\",\"\")","v":""},114]
[null,null,{"$f":"IF('OBJECTIFS GENERAUX'!$D$70=\"x\",Feuil3!H7,\"\")","v":""},null,null,null,null,null,null,{"$f":"IF('OBJECTIFS GENERAUX'!$D$70=\"x\",\"x\",\"\")","v":""},115]
[null,null,{"$f":"IF('OBJECTIFS GENERAUX'!$D$70=\"x\",Feuil3!H8,\"\")","v":""},null,null,null,null,null,null,{"$f":"IF('OBJECTIFS GENERAUX'!$D$70=\"x\",\"x\",\"\")","v":""},116]
[null,null,{"$f":"IF('OBJECTIFS GENERAUX'!$D$70=\"x\",'Actions Ligue-district'!B53,\"\")","v":""},null,null,null,null,null,null,{"$f":"IF('OBJECTIFS GENERAUX'!$D$70=\"x\",\"x\",\"\")","v":""},117]
[{"$f":"IF('OBJECTIFS GENERAUX'!$D$71=\"x\",Feuil3!$G$1,\"\")","v":""},{"$f":"IF('OBJECTIFS GENERAUX'!$D$71=\"x\",Feuil3!H10,\"\")","v":""},{"$f":"IF('OBJECTIFS GENERAUX'!$D$71=\"x\",Feuil3!H11,\"\")","v":""},null,null,null,null,null,null,{"$f":"IF('OBJECTIFS GENERAUX'!$D$71=\"x\",\"x\",\"\")","v":""},121]
[null,null,{"$f":"IF('OBJECTIFS GENERAUX'!$D$71=\"x\",Feuil3!H12,\"\")","v":""},null,null,null,null,null,null,{"$f":"IF('OBJECTIFS GENERAUX'!$D$71=\"x\",\"x\",\"\")","v":""},122]
[null,null,{"$f":"IF('OBJECTIFS GENERAUX'!$D$71=\"x\",Feuil3!H13,\"\")","v":""},null,null,null,null,null,null,{"$f":"IF('OBJECTIFS GENERAUX'!$D$71=\"x\",\"x\",\"\")","v":""},123]
[null,null,{"$f":"IF('OBJECTIFS GENERAUX'!$D$71=\"x\",'Actions Ligue-district'!B54,\"\")","v":""},null,null,null,null,null,null,{"$f":"IF('OBJECTIFS GENERAUX'!$D$71=\"x\",\"x\",\"\")","v":""},124]
[{"$f":"IF('OBJECTIFS GENERAUX'!$D$72=\"x\",Feuil3!$G$1,\"\")","v":""},{"$f":"IF('OBJECTIFS GENERAUX'!$D$72=\"x\",Feuil3!H14,\"\")","v":""},{"$f":"IF('OBJECTIFS GENERAUX'!$D$72=\"x\",Feuil3!H15,\"\")","v":""},null,null,null,null,null,null,{"$f":"IF('OBJECTIFS GENERAUX'!$D$72=\"x\",\"x\",\"\")","v":""},131]
[null,null,{"$f":"IF('OBJECTIFS GENERAUX'!$D$72=\"x\",'Actions Ligue-district'!B55,\"\")","v":""},null,null,null,null,null,null,{"$f":"IF('OBJECTIFS GENERAUX'!$D$72=\"x\",\"x\",\"\")","v":""},132]
[{"$f":"IF('OBJECTIFS GENERAUX'!$D$73=\"x\",Feuil3!$G$1,\"\")","v":""},{"$f":"IF('OBJECTIFS GENERAUX'!$D$73=\"x\",Feuil3!H16,\"\")","v":""},{"$f":"IF('OBJECTIFS GENERAUX'!$D$73=\"x\",Feuil3!H17,\"\")","v":""},null,null,null,null,null,null,{"$f":"IF('OBJECTIFS GENERAUX'!$D$73=\"x\",\"x\",\"\")","v":""},141]
[null,null,{"$f":"IF('OBJECTIFS GENERAUX'!$D$73=\"x\",Feuil3!H18,\"\")","v":""},null,null,null,null,null,null,{"$f":"IF('OBJECTIFS GENERAUX'!$D$73=\"x\",\"x\",\"\")","v":""},142]
[null,null,{"$f":"IF('OBJECTIFS GENERAUX'!$D$73=\"x\",Feuil3!H19,\"\")","v":""},null,null,null,null,null,null,{"$f":"IF('OBJECTIFS GENERAUX'!$D$73=\"x\",\"x\",\"\")","v":""},143]
[null,null,{"$f":"IF('OBJECTIFS GENERAUX'!$D$73=\"x\",Feuil3!H20,\"\")","v":""},null,null,null,null,null,null,{"$f":"IF('OBJECTIFS GENERAUX'!$D$73=\"x\",\"x\",\"\")","v":""},144]
[null,null,{"$f":"IF('OBJECTIFS GENERAUX'!$D$73=\"x\",Feuil3!H21,\"\")","v":""},null,null,null,null,null,null,{"$f":"IF('OBJECTIFS GENERAUX'!$D$73=\"x\",\"x\",\"\")","v":""},145]
[null,null,{"$f":"IF('OBJECTIFS GENERAUX'!$D$73=\"x\",'Actions Ligue-district'!B56,\"\")","v":""},null,null,null,null,null,null,{"$f":"IF('OBJECTIFS GENERAUX'!$D$73=\"x\",\"x\",\"\")","v":""},146]
[{"$f":"IF('OBJECTIFS GENERAUX'!$D$74=\"x\",Feuil3!$G$1,\"\")","v":""},{"$f":"IF('OBJECTIFS GENERAUX'!$D$74=\"x\",Feuil3!H22,\"\")","v":""},{"$f":"IF('OBJECTIFS GENERAUX'!$D$74=\"x\",Feuil3!H23,\"\")","v":""},null,null,null,null,null,null,{"$f":"IF('OBJECTIFS GENERAUX'!$D$74=\"x\",\"x\",\"\")","v":""},151]
[null,null,{"$f":"IF('OBJECTIFS GENERAUX'!$D$74=\"x\",Feuil3!H24,\"\")","v":""},null,null,null,null,null,null,{"$f":"IF('OBJECTIFS GENERAUX'!$D$74=\"x\",\"x\",\"\")","v":""},152]
[null,null,{"$f":"IF('OBJECTIFS GENERAUX'!$D$74=\"x\",Feuil3!H25,\"\")","v":""},null,null,null,null,null,null,{"$f":"IF('OBJECTIFS GENERAUX'!$D$74=\"x\",\"x\",\"\")","v":""},153]
[null,null,{"$f":"IF('OBJECTIFS GENERAUX'!$D$74=\"x\",'Actions Ligue-district'!B57,\"\")","v":""},null,null,null,null,null,null,{"$f":"IF('OBJECTIFS GENERAUX'!$D$74=\"x\",\"x\",\"\")","v":""},154]
[{"$f":"IF('OBJECTIFS GENERAUX'!$I$70=\"x\",Feuil3!G26,\"\")","v":""},{"$f":"IF('OBJECTIFS GENERAUX'!$I$70=\"x\",Feuil3!H27,\"\")","v":""},{"$f":"IF('OBJECTIFS GENERAUX'!$I$70=\"x\",Feuil3!H28,\"\")","v":""},null,null,null,null,null,null,{"$f":"IF('OBJECTIFS GENERAUX'!$I$70=\"x\",\"x\",\"\")","v":""},211]
[null,null,{"$f":"IF('OBJECTIFS GENERAUX'!$I$70=\"x\",Feuil3!H29,\"\")","v":""},null,null,null,null,null,null,{"$f":"IF('OBJECTIFS GENERAUX'!$I$70=\"x\",\"x\",\"\")","v":""},212]
[null,null,{"$f":"IF('OBJECTIFS GENERAUX'!$I$70=\"x\",Feuil3!H30,\"\")","v":""},null,null,null,null,null,null,{"$f":"IF('OBJECTIFS GENERAUX'!$I$70=\"x\",\"x\",\"\")","v":""},213]
[null,null,{"$f":"IF('OBJECTIFS GENERAUX'!$I$70=\"x\",Feuil3!H31,\"\")","v":""},null,null,null,null,null,null,{"$f":"IF('OBJECTIFS GENERAUX'!$I$70=\"x\",\"x\",\"\")","v":""},214]
[null,null,{"$f":"IF('OBJECTIFS GENERAUX'!$I$70=\"x\",'Actions Ligue-district'!B59,\"\")","v":""},null,null,null,null,null,null,{"$f":"IF('OBJECTIFS GENERAUX'!$I$70=\"x\",\"x\",\"\")","v":""},215]
[{"$f":"IF('OBJECTIFS GENERAUX'!$I$71=\"x\",Feuil3!G26,\"\")","v":""},{"$f":"IF('OBJECTIFS GENERAUX'!$I$71=\"x\",Feuil3!H32,\"\")","v":""},{"$f":"IF('OBJECTIFS GENERAUX'!$I$71=\"x\",Feuil3!H33,\"\")","v":""},null,null,null,null,null,null,{"$f":"IF('OBJECTIFS GENERAUX'!$I$71=\"x\",\"x\",\"\")","v":""},221]
[null,null,{"$f":"IF('OBJECTIFS GENERAUX'!$I$71=\"x\",Feuil3!H34,\"\")","v":""},null,null,null,null,null,null,{"$f":"IF('OBJECTIFS GENERAUX'!$I$71=\"x\",\"x\",\"\")","v":""},222]
[null,null,{"$f":"IF('OBJECTIFS GENERAUX'!$I$71=\"x\",Feuil3!H35,\"\")","v":""},null,null,null,null,null,null,{"$f":"IF('OBJECTIFS GENERAUX'!$I$71=\"x\",\"x\",\"\")","v":""},223]
[null,null,{"$f":"IF('OBJECTIFS GENERAUX'!$I$71=\"x\",Feuil3!H36,\"\")","v":""},null,null,null,null,null,null,{"$f":"IF('OBJECTIFS GENERAUX'!$I$71=\"x\",\"x\",\"\")","v":""},224]
[null,null,{"$f":"IF('OBJECTIFS GENERAUX'!$I$71=\"x\",'Actions Ligue-district'!B60,\"\")","v":""},null,null,null,null,null,null,{"$f":"IF('OBJECTIFS GENERAUX'!$I$71=\"x\",\"x\",\"\")","v":""},225]

{"sheet":"Actions Ligue-district","index":10,"n_rows":60,"n_cols":2,"rows_kept":60,"cut":false,"hidden":false,"merged":[[0,0,0,1]]}
["ACTIONS LIGUES ET OU DISTRICTS"]
["1. Augmenter l'effectif jeunes"]
["Des joueurs",1]
["Des joueuses",2]
["2. Fidéliser l'effectif jeunes"]
["Des joueurs ",3]
["Des joueuses",4]
["3. Augmenter l'effectif dirigeants"]
["Avec des parents",5]
["Avec des femmes",6]
["4. Améliorer la sécurité opérationnelle",7]
["5. Améliorer la qualité des installations"]
["Actions à l'école élémentaire",8]
["Journées portes ouvertes",9]
["Outils de communication",10]
["6. Mettre en place des actions de promotion et de recrutement"]
["Actions à l'école élémentaire",11]
["Journées portes ouvertes",12]
["Outils de communication",13]
["7. Améliorer l'animation du club"]
["Le club house",14]
["Actions d'intégrations des parents",15]
["Initiatives en faveur des jeunes",16]
["Actions en direction du publics handicapés",17]
["Représentation aux réunions des instances",18]
[]
["1. Développer le nombre d'équipes engagées"]
["Développer le nombre d'équipes garçons",1]
["Développer le nombre d'équipes filles",2]
["2. Créer et ou optimiser une équipe techinque"]
["Mettre en place des programmations annuelles et ou des contenus d'entrainements",3]
["Mettre en place des réunions d'éducateurs",4]
["3. Améliorer les méthodes pédagogiques utilisées",5]
["4. Améliorer les participations et normes d'entrainments"]
["Participer aux journées et plateaux garçons et filles",6]
["Développer le perfectionnement gardien de but",7]
["Créer une section sportive",8]
["5. Proposer des pratiques nouvelles"]
["Futsal",9]
["Beach soccer",10]
["Loisir pour les jeunes",11]
[]
["1. Améliorer la structuration du PEF"]
["Améliorer et ou créer la structuration du PEF",1]
["Concevoir une programmation",2]
["2. Améliorer le déploiement du PEF"]
["Optimiser le travail de la Commission",3]
["Implication des éducateurs",4]
["3. Améliorer la communication du PEF"]
["Valoriser le PEF",5]
[]
["1. Améliorer l'encadrement","N"]
["Structuration technique du club",1]
["La sécurité des adhérents",2]
["Féminiser l'encadrement",3]
["Former les encadrants",4]
["Trouver des jeunes arbitres",5]
["2. Fidéliser l'encadrement","N"]
["Valoriser les encadrants",6]
["Renforcer l'identité club",7]